Workbook

Sheet macro (hidden)
B2: DOM-XL
B3: Eine Excelanwendung zum Erfassen von Schließplänen
B4: Programme Excel pour la saisie d’organigrammes
B5: Excel application - master key systems
B7: Diese Excelanwendung muß mit "Makros aktivieren" geöffnet werden.
B8: Ab Excel 2000 müssen Sie zuerst unter EXTRAS>Macro>Sicherheit die Sicherheitsstufe auf "Mittel" einstellen
B10: Ce programme doit être ouvert avec la fonction " activer les macros "
B11: Avec Excel 2000 vous devez définir dans le menu Outils> Macros>Sécurité le niveau de sécurité " moyen ".
B13: Open this file with active macros.
B14: In Excel 2000 you must change the safety stage in Extras>Macro>Security to "Middel" .
B16: Infos:
B17: DOM-Sicherheitstechnik
B18: Wesselinger Str.10-16
B19: 50321 Brühl
B20: 02232-704-0

Sheet Import (hidden)
A1: Deur-Ruimteomschrijving | B1: Sleutelnummer | C1: Vrije invoer | D1: Aantal Cilinder | E1: Aantal Sleutel | F1: Cilindertype | G1: Lengte (A / B) | H1: Import vanaf positie | I1: 1
A2: test

Sheet netto (hidden)
A1: Netto Gruppen | B1: Netto ES
A2: B | B2: B
A10: Netto Typ | B10: Netto Ausführung | C10: Netto Länge | D10: Netto Farbe
A11: B | B11: B | C11: B | D11: B
A12: B | B12: B | C12: B | D12: B
A13: B | B13: B | C13: B | D13: B
A14: B | B14: B | C14: B | D14: B
A15: B | B15: B | C15: B | D15: B
A16: B | B16: B | C16: B | D16: B
A17: B | B17: B | C17: B | D17: B
A18: B | B18: B | C18: B | D18: B
A19: B | B19: B | C19: B | D19: B
A20: B | B20: B | C20: B | D20: B
A21: B | B21: B | C21: B | D21: B
A22: B | B22: B | C22: B | D22: B
A23: B | B23: B | C23: B | D23: B
A24: B | B24: B | C24: B | D24: B
A25: B | B25: B | C25: B | D25: B
A26: B | B26: B | C26: B | D26: B
A27: B | B27: B | C27: B | D27: B
A28: B | B28: B | C28: B | D28: B
A29: B | B29: B | C29: B | D29: B
A30: 0 | B30: 0 | C30: 0 | D30: 0
A31: 0 | B31: 0 | C31: 0 | D31: 0
A32: B | B32: B | C32: B | D32: B
A33: 0 | B33: B | C33: 0 | D33: 0
A34: 0 | B34: 0 | C34: 0 | D34: 0
A35: 0 | B35: 0 | C35: 0 | D35: 0
A36: 0 | B36: 0 | C36: 0 | D36: 0
A37: 0 | B37: B | C37: 0 | D37: 0
A38: 0 | B38: 0 | C38: 0 | D38: 0
A39: 0 | B39: 0 | C39: 0 | D39: 0
A40: 0 | B40: 0 | C40: 0 | D40: 0
A41: 0 | B41: 0 | C41: 0 | D41: 0
A42: 0 | B42: 0 | C42: 0 | D42: 0
A43: 0 | B43: 0 | C43: 0 | D43: 0
A44: 0 | B44: 0 | C44: 0 | D44: 0
A45: 0 | B45: 0 | C45: 0 | D45: 0
A46: 0 | B46: 0 | C46: 0 | D46: 0
A47: 0 | B47: 0 | C47: 0 | D47: 0
A48: 0 | B48: 0 | C48: 0 | D48: 0
A49: 0 | B49: 0 | C49: 0 | D49: 0
A50: 0 | B50: 0 | C50: 0 | D50: 0
A51: 0 | B51: 0 | C51: 0 | D51: 0
A52: 0 | B52: 0 | C52: 0 | D52: 0
A53: B | B53: B | C53: B | D53: B
A54: B | B54: B | C54: B | D54: B
A55: B | B55: B | C55: B | D55: B
A56: B | B56: B | C56: B | D56: B
A57: B | B57: B | C57: B | D57: B
A58: B | B58: B | C58: B | D58: B
A59: B | B59: B | C59: B | D59: B
A60: B | B60: B | C60: B | D60: B
A61: B | B61: B | C61: B | D61: B
A62: B | B62: B | C62: B | D62: B
A63: B | B63: B | C63: B | D63: B
A64: B | B64: B | C64: B | D64: B
A65: B | B65: B | C65: B | D65: B
A66: B | B66: B | C66: B | D66: B
A67: B | B67: B | C67: B
A68: B | B68: B | C68: B | D68: B
A69: B | B69: B | C69: B | D69: B
A70: B | B70: B | C70: B | D70: B
A71: B | B71: B | C71: B | D71: B
A72: B | B72: B | C72: B | D72: B
A73: B | B73: B | C73: B | D73: B
A74: B | B74: B | C74: B | D74: B
A75: B | B75: B | C75: B | D75: B
A76: B | B76: B | C76: B | D76: B
A77: B | B77: B | C77: B | D77: B
A78: B | B78: B | C78: B | D78: B
A79: B | B79: B | C79: B | D79: B
A80: B | B80: B | C80: B | D80: B
A81: B | B81: B | C81: B | D81: B
A82: B | B82: B | C82: B | D82: B
A83: B | B83: B | C83: B | D83: B
A84: B | B84: B | C84: B | D84: B
A85: B | B85: B | C85: B | D85: B
A86: B | B86: B | C86: B
A87: B | B87: B | C87: B | D87: B
A88: B | B88: B | C88: B | D88: B
A89: B | B89: B | C89: B | D89: B
A90: B | B90: B | C90: B | D90: B
A91: B | B91: B | C91: B | D91: B
A92: B | B92: B | C92: B | D92: B
A93: B | B93: B | C93: B | D93: B
A94: B | B94: B | C94: B | D94: B
A95: B | C95: B
A96: B | C96: B
A97: B | C97: B
A98: B | C98: B
A99: B | C99: B
A100: B | C100: B
A101: B | C101: B
A102: B | C102: B
A103: B | C103: B
A104: B | C104: B
A105: B | C105: B
A106: B | C106: B
A107: B | C107: B
A108: B | C108: B
A109: B | C109: B
A110: B | C110: B
A111: B | C111: B
A112: B | C112: B
A113: B | C113: B
A114: B | C114: B
A115: B | C115: B
A116: B | C116: B
A117: B | C117: B
A118: B | C118: B
A119: B | C119: B
A120: B | C120: B
A121: B | C121: B
A122: B | C122: B
A123: B | C123: B
A124: B | C124: B
A125: B | C125: B
A126: B | C126: B
A127: B | C127: B
A128: B | C128: B
A129: B | C129: B
A130: B | C130: B
A131: B | C131: B
A132: B | C132: B
A133: B | C133: B
A134: B | C134: B
A135: B | C135: B
A136: B | C136: B
A137: B | C137: B
A138: B | C138: B
A139: B | C139: B
A140: B | C140: B
A141: B | C141: B
A142: B | C142: B
A143: B | C143: B
A144: B | C144: B
A145: B | C145: B
A146: B | C146: B
A147: B | C147: B
A148: B | C148: B
A149: B | C149: B
A150: B | C150: B
A151: B | C151: B
A154: B | B154: B | C154: B
A155: B | B155: B | C155: B
A156: B | C156: B
A157: B | C157: B
A158: B | C158: B
A159: B | C159: B
A160: B | C160: B
A161: B | C161: B
A162: B | C162: B
A163: B | C163: B
A164: B | C164: B
A165: B | C165: B
A166: B | C166: B
A167: B | C167: B
A168: B | C168: B
A169: B | C169: B
A170: B | C170: B
A171: B | C171: B
A172: B | C172: B
A173: B | C173: B
A174: B | C174: B
A175: B | C175: B
A176: B | C176: B
A177: B | C177: B
A178: B | C178: B
A179: B | C179: B
A180: B | C180: B
A181: B | C181: B
A182: B | C182: B
A183: B | C183: B
A184: B | C184: B
A185: B | C185: B
A186: B | C186: B
A187: B | C187: B
A188: B | C188: B
A189: B | C189: B
A190: B | C190: B
A191: B | C191: B
A192: B | C192: B
A193: B | C193: B
A194: B | C194: B
A195: B | C195: B
A196: B | C196: B
A197: B | C197: B
A198: B | C198: B
A199: B | C199: B
A200: B | C200: B
A201: B | C201: B
A202: B | C202: B
A203: B | C203: B
A204: B | C204: B
A205: B | C205: B
A206: B | C206: B
A207: B | C207: B
A208: B | C208: B
A209: B | B209: B | C209: B
... 106 more rows

Sheet diverses (hidden)
A1: Schlüsselnummer | B1: Anzahl
A2: 12 | B2: =COUNTIF('S-Plan'!E:E,A2) -> 0
A3: Bestehende vorhanden Status X | B3: Anzahl
A4: X | B4: =COUNTIF('S-Plan'!B:B,A4) -> 0

Sheet altanl (hidden)
A1: VON | B1: BIS | C1: Aufschlag | D1: Länge
C2: 0 | D2: 0
A3: FVTZ | B3: FWWW | C3: 15 | D3: 4
A4: NFCN | B4: NFKY | C4: 15 | D4: 4
A5: NHWO | B5: NWWW | C5: 15 | D5: 4
A6: REZO | B6: RWWW | C6: 15 | D6: 4
A7: YAAA | B7: YZZZ | C7: 15 | D7: 4
A8: XAAA | B8: XGYD | C8: 15 | D8: 4
A9: 179289 | B9: 347661 | C9: 15 | D9: 7
A10: 179289 | B10: 347661 | C10: 15 | D10: 8
A11: AA | B11: BB | C11: 15 | D11: 2
A12: AAA | B12: ZZZ | C12: 15 | D12: 3
A13: AA11 | B13: CM96 | C13: 15 | D13: 4
A14: AAAA | B14: FVTY | C14: 15 | D14: 4
A15: LAAA | B15: MWWW | C15: 15 | D15: 4
A16: NAAA | B16: NFCM | C16: 15 | D16: 4
A17: NHAV | B17: NHWN | C17: 15 | D17: 4
A18: PAAA | B18: RFAV | C18: 15 | D18: 4
A19: 800000 | B19: 806000 | C19: 15 | D19: 6
A20: 100000 | B20: 179288 | C20: 15 | D20: 7
A21: 337063 | B21: 999999 | C21: 0 | D21: 7
A22: 337063 | B22: 999999 | C22: 0 | D22: 8

Sheet SchAuf (hidden)
A1: System | B1: Frei pro Zyl | C1: Aufpreis | D1: Gruppen HS | E1: GHS | F1: Gefahr | G1: ES ohne zyl | H1: HS-GS ohne zyl | I1: GHS ohne zyl | J1: G ohne zyl | K1: Netto
A2: DIAMANT | B2: 0 | C2: 16.91 | D2: 23.56 | E2: 53.76 | G2: 35.87 | H2: 46.84 | I2: 53.76 | K2: B
A3: IX GAMMA | B3: 3 | C3: 11.67 | D3: 17.3 | E3: 23.1 | G3: 27.17 | H3: 35.9 | I3: 43.11 | K3: B
A4: IX10KG | B4: 3 | C4: 11.67 | D4: 17.3 | E4: 23.1 | G4: 27.17 | H4: 35.9 | I4: 43.11 | K4: B
A5: IX5HT | B5: 3 | C5: 11.67 | D5: 17.3 | E5: 23.1 | G5: 27.17 | H5: 35.9 | I5: 43.11 | K5: B
A6: IX6KG | B6: 3 | C6: 11.67 | D6: 17.3 | E6: 23.1 | G6: 27.17 | H6: 35.9 | I6: 43.11 | K6: B
A7: IX6SR | B7: 3 | C7: 11.67 | D7: 17.3 | E7: 23.1 | G7: 27.17 | H7: 35.9 | I7: 43.11 | K7: B
A8: IXHT | B8: 3 | C8: 11.67 | D8: 17.3 | E8: 23.1 | G8: 27.17 | H8: 35.9 | I8: 43.11 | K8: B
A9: IXSAT | B9: 3 | C9: 11.67 | D9: 17.3 | E9: 23.1 | G9: 27.17 | H9: 35.9 | I9: 43.11 | K9: B
A10: RS SIGMA | B10: 3 | C10: 9.48 | D10: 15.22 | E10: 21.26 | G10: 17.77 | H10: 25.94 | I10: 30.85 | K10: B
A11: RS5 | B11: 3 | C11: 9.48 | D11: 15.22 | E11: 21.26 | G11: 17.77 | H11: 25.94 | I11: 30.85 | K11: B
A12: RS8 | B12: 3 | C12: 9.48 | D12: 15.22 | E12: 21.26 | G12: 17.77 | H12: 25.94 | I12: 30.85 | K12: B
A13: IXTWINSTAR | B13: 3 | C13: 11.67 | D13: 17.3 | E13: 23.1 | G13: 27.17 | H13: 35.9 | I13: 43.11 | K13: B
A14: IXTWIDO | B14: 3 | C14: 11.67 | D14: 17.3 | E14: 23.1 | G14: 27.17 | H14: 35.9 | I14: 43.11 | K14: B
A15: IXTECO | B15: 3 | C15: 11.67 | D15: 17.3 | E15: 23.1 | G15: 27.17 | H15: 35.9 | I15: 43.11 | K15: B
A16: IXTWINSTAR-C | B16: 3 | C16: 11.67 | D16: 17.3 | E16: 23.1 | G16: 27.17 | H16: 35.9 | I16: 43.11 | K16: B

Sheet preis (hidden)

Sheet Start
C1: DOM-XL 2020 V5.3.1
C18: Klant | F18: Project | I18: Afwijkend leveradres
C19: Klantnummer | D19: 617441 | F19: Versienummer | I19: Naam 1
C20: Telefoon | F20: Postcode | I20: Naam 2
C21: Contactpersoon | F21: Woonplaats | I21: Straat
C22: Straat | F22: Provincie
C23: Postcode | I23: Postcode
C24: Woonplaats | F24: Referentie | I24: Woonplaats
C25: Provincie | I25: Provincie
C27: Bijzonderheden 2
J30: we domore for security

Sheet Ausf (hidden)
A1: ID | B1: Kurzzeichen | C1: Beschreibung | D1: Tabelle | E1: Aufpreis | F1: Merkmal1 | G1: Wert1 | H1: Merkmal2 | I1: Wert2 | J1: Merkmal3 | K1: Wert3 | L1: Merkmal4 | M1: Wert4 | N1: Merkmal5 | O1: Wert5 | P1: Netto | Q1: Tabelle | R1: Beschreibung
A2: 1 | B2: K1 | C2: Knauf | E2: 0 | F2: B_KNAUFAUSF | G2: KNK1 | P2: B | Q2: 1 | R2: Ohne G Fuktion Doppelzyl
A3: 1 | B3: K2 | C3: Knauf | E3: 0 | F3: B_KNAUFAUSF | G3: KNK2 | P3: B | Q3: 2 | R3: Mit G Funktion Doppelzyl
A4: 1 | B4: K3 | C4: Knauf | E4: 0 | F4: B_KNAUFAUSF | G4: KNK3 | P4: B | Q4: 3 | R4: K2
A5: 1 | B5: K4 | C5: Knauf | E5: 0 | F5: B_KNAUFAUSF | G5: KNK4 | P5: B | Q5: 4 | R5: 382
A6: 1 | B6: K6 | C6: Knauf | E6: 0 | F6: B_KNAUFAUSF | G6: KNK6 | P6: B | Q6: 6 | R6: 419/1
A7: 1 | B7: SEW | C7: Seewasser | D7: Ohne G Fuktion Doppelzyl | E7: 0 | F7: B_SEEWASSERAUSF | G7: SEW | H7: B_STULPSCHRAUBENAUSF | I7: SA80 SEEW | J7: B_FAERBUNG_AUSSEN | K7: FA004 | L7: B_FAERBUNG_INNEN | M7: FI004 | P7: B | Q7: 7 | R7: 777
A8: 1 | B8: Slipkoppeling | C8: Slipkoppeling | E8: 23.22
A9: 1 | B9: T | C9: Beidseitig | D9: Ohne G Fuktion Doppelzyl | E9: 7.46 | F9: B_FUNKTIONEN | G9: FUT | P9: B | Q9: 8 | R9: Halbzyl
A10: 2 | B10: G | C10: Gefahrenfunktion mit sep. Gefahrenschlüssel | D10: Mit G Funktion Doppelzyl | E10: 2.9 | F10: B_FUNKTIONEN | G10: FUG | P10: B | Q10: 9 | R10: gelöscht
A11: 2 | B11: K1 | C11: Knauf | E11: 0 | F11: B_KNAUFAUSF | G11: KNK1 | P11: B | Q11: 10 | R11: 3020
A12: 2 | B12: K2 | C12: Knauf | E12: 0 | F12: B_KNAUFAUSF | G12: KNK2 | P12: B | Q12: 11 | R12: 333RI
A13: 2 | B13: K3 | C13: Knauf | E13: 0 | F13: B_KNAUFAUSF | G13: KNK3 | P13: B | Q13: 12 | R13: Blindzyl
A14: 2 | B14: K4 | C14: Knauf | E14: 0 | F14: B_KNAUFAUSF | G14: KNK4 | P14: B | Q14: 13 | R14: Ohne T und G
A15: 2 | B15: K6 | C15: Knauf | E15: 0 | F15: B_KNAUFAUSF | G15: KNK6 | P15: B | Q15: 14 | R15: VAR
A16: 2 | B16: SEW | C16: Seewasser | D16: Mit G Funktion Doppelzyl | E16: 0 | F16: B_SEEWASSERAUSF | G16: SEW | H16: B_STULPSCHRAUBENAUSF | I16: SA80 SEEW | J16: B_FAERBUNG_AUSSEN | K16: FA004 | L16: B_FAERBUNG_INNEN | M16: FI004 | P16: B | Q16: 15 | R16: Cod ES fü Enet
A17: 2 | B17: Slipkoppeling | C17: Slipkoppeling | E17: 23.22 | Q17: 16 | R17: 555
A18: 2 | B18: T | C18: Beidseitig | D18: Mit G Funktion Doppelzyl | E18: 7.46 | F18: B_FUNKTIONEN | G18: FUT | K18: FA004 | P18: B
A19: 3 | B19: SEW | C19: Seewasser | D19: Ohne G Fuktion Doppelzyl | E19: 0 | F19: B_SEEWASSERAUSF | G19: SEW | H19: B_STULPSCHRAUBENAUSF | I19: SA80 SEEW | J19: B_FAERBUNG_AUSSEN | K19: FA004 | L19: B_FAERBUNG_INNEN | M19: FI004 | P19: B
A20: 3 | B20: Zorgfunctie | C20: Zorgfunctie | E20: 12.02 | F20: B_SCHLIESSFUNKTION_AU_IN | G20: SHJA
A21: 4 | B21: LI | D21: 382 | F21: B_AUSFUEHRUNG_LI_RE | G21: AGLI | H21: B_TEILENR_HEBEL_10_8_BAU | I21: 200013F013 | P21: B
A22: 4 | B22: RE | D22: 382 | F22: B_AUSFUEHRUNG_LI_RE | G22: AGRE | H22: B_TEILENR_HEBEL_10_8_BAU | I22: 200013F013 | P22: B
A23: 4 | B23: SD-LI | C23: Zahnrad Schlüsseldepot | D23: 382 | F23: B_AUSFUEHRUNG_LI_RE | G23: AGLI | H23: B_TEILENR_HEBEL_10_8_BAU | I23: 200013F013 | J23: B_ZUBEHOER_SCHRANK | K23: SD
A24: 4 | B24: SD-RE | C24: Zahnrad Schlüsseldepot | D24: 382 | F24: B_AUSFUEHRUNG_LI_RE | G24: AGRE | H24: B_TEILENR_HEBEL_10_8_BAU | I24: 200013F013 | J24: B_ZUBEHOER_SCHRANK | K24: SD
A25: 5 | B25: 393/1 - 1 x 90° | C25: Schlüsseldrehweg | D25: 393 | E25: 0 | F25: B_SCHALTERAUSF | G25: 2S/FE STE | P25: B
A26: 5 | B26: 393/2 - 1 x 90° rückfedernd | C26: Schlüsseldrehweg | D26: 393 | E26: 0 | F26: B_SCHALTERAUSF | G26: 2S/RE STE | P26: B
A27: 5 | B27: 393/3 - 1 x 360° 90° | C27: Schlüsseldrehweg | D27: 393 | E27: 0 | F27: B_SCHALTERAUSF | G27: 2S/1X STE | P27: B
A28: 5 | B28: 393/4 - 2 x 90° | C28: Schlüsseldrehweg | D28: 393 | E28: 0 | F28: B_SCHALTERAUSF | G28: 2S/2X STE | P28: B
A29: 6 | B29: A | C29: Gewinde - Mitnehmer | D29: 419/1 | E29: 0 | F29: B_MITNEHMERAUSF_419 | G29: CMA | P29: B
A30: 6 | B30: B | C30: Gewinde - Mitnehmer | D30: 419/1 | E30: 0 | F30: B_MITNEHMERAUSF_419 | G30: CMB | P30: B
A31: 6 | B31: C | C31: Gewinde - Mitnehmer | D31: 419/1 | E31: 0 | F31: B_MITNEHMERAUSF_419 | G31: CMC | P31: B
A32: 6 | B32: D | C32: Gewinde - Mitnehmer | D32: 419/1 | E32: 0 | F32: B_MITNEHMERAUSF_419 | G32: CMD | P32: B
A33: 6 | B33: E | C33: Gewinde - Mitnehmer | D33: 419/1 | E33: 0 | F33: B_MITNEHMERAUSF_419 | G33: CME | P33: B
A34: 6 | B34: F | C34: Gewinde - Mitnehmer | D34: 419/1 | E34: 0 | F34: B_MITNEHMERAUSF_419 | G34: CMF | P34: B
A35: 6 | B35: G | C35: Gewinde - Mitnehmer | D35: 419/1 | E35: 0 | F35: B_MITNEHMERAUSF_419 | G35: CMG | P35: B
A36: 7 | B36: 60 mm HB | C36: Bügelhöhe 60 mm | D36: 777 | E36: 11.86 | F36: B_BUEGEL | G36: BULANG | P36: B
A37: 8 | B37: SEW | C37: Seewasser | D37: Ohne G Fuktion Halbzyl | E37: 0 | F37: B_SEEWASSERAUSF | G37: SEW | H37: B_STULPSCHRAUBENAUSF | I37: SA80 SEEW | J37: B_FAERBUNG_AUSSEN | K37: FA004 | P37: B
A38: 11 | B38: RI10 | D38: 333RI | F38: B_MITNEHMERAUSF | G38: MIRI10 | P38: B
A39: 11 | B39: RI14 | D39: 333RI | F39: B_MITNEHMERAUSF | G39: MIRI14 | P39: B
A40: 12 | B40: 52-144 mm
A41: 14 | B41: BLN | C41: Einseitig Blind einseitig normal | D41: VAR | E41: 0 | F41: B_VARIOAUSF_AUSSEN | G41: VAN | H41: B_VARIOAUSF_INNEN | I41: VIBL
A42: 14 | B42: BLS | C42: Eins. Blind, Eins SS | D42: VAR | E42: 0 | F42: B_VARIOAUSF_AUSSEN | G42: VAS | H42: B_VARIOAUSF_INNEN | I42: VIBL
A43: 14 | B43: SN | C43: Eins SS Eins Normal | D43: VAR | E43: 0 | F43: B_VARIOAUSF_AUSSEN | G43: VAS | H43: B_VARIOAUSF_INNEN | I43: VIN
A44: 14 | B44: SS | C44: SS | D44: VAR | E44: 0 | F44: B_VARIOAUSF_AUSSEN | G44: VAS | H44: B_VARIOAUSF_INNEN | I44: VIS
A45: 16 | B45: RPP | E45: 0 | F45: B_AUSFUEHRUNG_ROHR_PLATTE | G45: RPP
A46: 16 | B46: RPR35 | E46: 0 | F46: B_AUSFUEHRUNG_ROHR_PLATTE | G46: RPR35
A47: 16 | B47: RPR38 | E47: 0 | F47: B_AUSFUEHRUNG_ROHR_PLATTE | G47: RPR38
A48: 16 | B48: RPR43 | E48: 0 | F48: B_AUSFUEHRUNG_ROHR_PLATTE | G48: RPR43
A49: 16 | B49: RPR48 | E49: 0 | F49: B_AUSFUEHRUNG_ROHR_PLATTE | G49: RPR48
A50: 16 | B50: RPR53 | E50: 0 | F50: B_AUSFUEHRUNG_ROHR_PLATTE | G50: RPR53
A51: 16 | B51: RPR58 | E51: 0 | F51: B_AUSFUEHRUNG_ROHR_PLATTE | G51: RPR58
A52: 16 | B52: RPR63 | E52: 0 | F52: B_AUSFUEHRUNG_ROHR_PLATTE | G52: RPR63
A53: 16 | B53: RPR68 | E53: 0 | F53: B_AUSFUEHRUNG_ROHR_PLATTE | G53: RPR68
A54: 16 | B54: RPR73 | E54: 0 | F54: B_AUSFUEHRUNG_ROHR_PLATTE | G54: RPR73
A55: 16 | B55: RPR78 | E55: 0 | F55: B_AUSFUEHRUNG_ROHR_PLATTE | G55: RPR78
A56: 16 | B56: RPR83 | E56: 0 | F56: B_AUSFUEHRUNG_ROHR_PLATTE | G56: RPR83
A57: 17 | B57: A | F57: B_MITNEHMERAUSF_419 | G57: CMA
A58: 17 | B58: A TOYOKO | F58: B_MITNEHMERAUSF_419 | G58: CMA TOYOKO
A59: 17 | B59: B | F59: B_MITNEHMERAUSF_419 | G59: CMB
A60: 17 | B60: C | F60: B_MITNEHMERAUSF_419 | G60: CMC
A61: 17 | B61: D | F61: B_MITNEHMERAUSF_419 | G61: CMD
A62: 17 | B62: E | F62: B_MITNEHMERAUSF_419 | G62: CME
A63: 17 | B63: F | F63: B_MITNEHMERAUSF_419 | G63: CMF
A64: 17 | B64: G | F64: B_MITNEHMERAUSF_419 | G64: CMG
A65: 17 | B65: H | F65: B_MITNEHMERAUSF_419 | G65: CMH
A66: 17 | B66: X | F66: B_MITNEHMERAUSF_419 | G66: CMX
A67: 17 | B67: Y | F67: B_MITNEHMERAUSF_419 | G67: CMY
A68: 17 | B68: Z | F68: B_MITNEHMERAUSF_419 | G68: CMZ
A69: 18 | B69: K2 | C69: Knauf | E69: 6.21 | F69: B_KNAUFAUSF | G69: KNK2
A70: 18 | B70: K3 | C70: Knauf | E70: 6.21 | F70: B_KNAUFAUSF | G70: KNK3
A71: 18 | B71: K4 | C71: Knauf | E71: 6.21 | F71: B_KNAUFAUSF | G71: KNK4
A72: 18 | B72: K6 | C72: Knauf | E72: 0 | F72: B_KNAUFAUSF | G72: KNK6
A73: 19 | B73: DM-25 | C73: DOORMAAT | E73: 0 | F73: B_DORNMASS | G73: DO25
A74: 19 | B74: DM-30 | C74: DOORMAAT | E74: 0 | F74: B_DORNMASS | G74: DO30
A75: 19 | B75: DM-35 | C75: DOORMAAT | E75: 0 | F75: B_DORNMASS | G75: DO35
A76: 19 | B76: DM-40 | C76: DOORMAAT | E76: 0 | F76: B_DORNMASS | G76: DO40
A77: 19 | B77: DM-45 | C77: DOORMAAT | E77: 0 | F77: B_DORNMASS | G77: DO45
A78: 19 | B78: DM-50 | C78: DOORMAAT | E78: 0 | F78: B_DORNMASS | G78: DO50
A79: 20 | B79: SEW | C79: Seewasser | D79: Ohne G Fuktion Doppelzyl | E79: 0 | F79: B_SEEWASSERAUSF | G79: SEW | H79: B_STULPSCHRAUBENAUSF | I79: SA80 SEEW | J79: B_FAERBUNG_AUSSEN | K79: FA004 | L79: B_FAERBUNG_INNEN | M79: FI004 | P79: B
A80: 21 | B80: Dwangsluiting-Ja | C80: Dwangsluiting-Ja | E80: 0 | F80: B_Verriegelung | G80: VRZV
A81: 21 | B81: Dwangsluiting-Nee | C81: Dwangsluiting-Nee | E81: 0 | F81: B_Verriegelung | G81: VRSV
Q92: 1 | R92: Ohne G Fuktion Doppelzyl
Q93: 2 | R93: Mit G Funktion Doppelzyl
Q94: 3 | R94: K2
Q95: 4 | R95: 382
Q96: 6 | R96: 419/1
Q97: 7 | R97: 777
Q98: 8 | R98: Ohne G Fuktion Halbzyl
Q99: 9 | R99: Mit G Funktion Halbzyl
Q100: 10 | R100: 3020
Q101: 11 | R101: 333RI
Q102: 12 | R102: Blindzyl
Q103: 13 | R103: Ohne T und G
Q109: 6 | R109: 419/1
Q111: 2 | R111: Mit G Funktion Doppelzyl
Q141: 4 | R141: 382
Q145: 3 | R145: K2
Q146: 4 | R146: 382
Q150: 3 | R150: K2

Sheet Farbe (hidden)
A1: ID | B1: Nummer | C1: Name | D1: Aufpreis Halbzylinder | E1: MName1 | F1: MWert1 | G1: MNAME2 | H1: MWERT2 | I1: netto | L1: Tabelle | M1: Name
A2: 0 | C2: ohne | D2: 0 | I2: B
A3: 1 | B3: 01 | C3: matt vernickelt | D3: 0 | E3: B_FAERBUNG_AUSSEN | F3: FA001 | G3: B_FAERBUNG_INNEN | H3: FI001 | I3: B | L3: 0 | M3: ohne
A4: 1 | B4: 03 | C4: Mattverchromt | D4: 12.79 | E4: B_FAERBUNG_AUSSEN | F4: FA003 | G4: B_FAERBUNG_INNEN | H4: FI003 | I4: B | L4: 1 | M4: messing
A5: 1 | B5: 04 | C5: Glanzverchromt | D5: 12.79 | E5: B_FAERBUNG_AUSSEN | F5: FA004 | G5: B_FAERBUNG_INNEN | H5: FI004 | I5: B | L5: 2 | M5: Stahl
A6: 1 | B6: 04-S | C6: Glanzverchromt | D6: 19.09 | E6: B_FAERBUNG_AUSSEN | F6: FA004 | G6: B_FAERBUNG_INNEN | H6: FI004 | I6: B | L6: 3 | M6: Duracast
A7: 1 | B7: 05 | C7: messing matt gebürstet | D7: 12.79 | E7: B_FAERBUNG_AUSSEN | F7: FA005 | G7: B_FAERBUNG_INNEN | H7: FI005 | I7: B | L7: 4 | M7: messing halbzylinder
A8: 1 | B8: 06 | C8: messing poliert | D8: 12.79 | E8: B_FAERBUNG_AUSSEN | F8: FA006 | G8: B_FAERBUNG_INNEN | H8: FI006 | I8: B | L8: 5 | M8: Stahl halbzylinder
A9: 1 | B9: 07 | C9: messing brüniert | D9: 12.79 | E9: B_FAERBUNG_AUSSEN | F9: FA007 | G9: B_FAERBUNG_INNEN | H9: FA007 | I9: B | L9: 6 | M9: Duracast halbzylinder
A10: 1 | B10: 09 | C10: altdeutsch | D10: 12.79 | E10: B_FAERBUNG_AUSSEN | F10: FA009 | G10: B_FAERBUNG_INNEN | H10: FI009 | I10: B | L10: 7 | M10: GAMMA
A11: 1 | B11: 25 | C11: vergoldet | D11: 12.79 | E11: B_FAERBUNG_AUSSEN | F11: FA025 | G11: B_FAERBUNG_INNEN | H11: FA025 | I11: B | L11: 8 | M11: GAMMA HALF
A12: 1 | D12: 0 | I12: B | L12: 9 | M12: 419 Lips
A13: 2 | B13: 01 | C13: matt vernickelt | D13: 12.79 | E13: B_FAERBUNG_AUSSEN | F13: FA001 | G13: B_FAERBUNG_INNEN | H13: FI001 | I13: B | L13: 10 | M13: AM Knop K7
A14: 2 | B14: 03 | C14: Mattverchromt | D14: 12.79 | E14: B_FAERBUNG_AUSSEN | F14: FA003 | G14: B_FAERBUNG_INNEN | H14: FI003 | I14: B | L14: 11 | M14: RS-Sigma messing
A15: 2 | B15: 04 | C15: Glanzverchromt | D15: 12.79 | E15: B_FAERBUNG_AUSSEN | F15: FA004 | G15: B_FAERBUNG_INNEN | H15: FI004 | I15: B | L15: 12 | M15: RS-Sigma messing Half
A16: 2 | B16: 04-S | C16: Glanzverchromt | D16: 19.09 | E16: B_FAERBUNG_AUSSEN | F16: FA004 | G16: B_FAERBUNG_INNEN | H16: FI004 | I16: B
A17: 2 | B17: 50 | C17: messing matt gebürstet | D17: 12.79 | E17: B_FAERBUNG_AUSSEN | F17: FA050 | G17: B_FAERBUNG_INNEN | H17: FI050 | I17: B
A18: 2 | B18: 51 | C18: messing poliert | D18: 12.79 | E18: B_FAERBUNG_AUSSEN | F18: FA051 | G18: B_FAERBUNG_INNEN | H18: FI051 | I18: B
A19: 2 | B19: 00 | C19: edelsahl matt | D19: 0 | E19: B_FAERBUNG_AUSSEN | G19: B_FAERBUNG_INNEN | I19: B
A20: 2 | D20: 0 | I20: B
A21: 3 | B21: 01 | C21: matt vernickelt | D21: 0 | E21: B_FAERBUNG_AUSSEN | F21: FA001 | G21: B_FAERBUNG_INNEN | H21: FI001 | I21: B
A22: 3 | B22: 03 | C22: Mattverchromt | D22: 12.79 | E22: B_FAERBUNG_AUSSEN | F22: FA003 | G22: B_FAERBUNG_INNEN | H22: FI003 | I22: B
A23: 3 | B23: 04 | C23: Glanzverchromt | D23: 12.79 | E23: B_FAERBUNG_AUSSEN | F23: FA004 | G23: B_FAERBUNG_INNEN | H23: FI004 | I23: B
A24: 3 | B24: 04-S | C24: Glanzverchromt | D24: 19.09 | E24: B_FAERBUNG_AUSSEN | F24: FA004 | G24: B_FAERBUNG_INNEN | H24: FI004 | I24: B
A25: 3 | B25: 50 | C25: messing matt gebürstet | D25: 12.79 | E25: B_FAERBUNG_AUSSEN | F25: FA050 | G25: B_FAERBUNG_INNEN | H25: FI050 | I25: B
A26: 3 | B26: 51 | C26: messing poliert | D26: 12.79 | E26: B_FAERBUNG_AUSSEN | F26: FA051 | G26: B_FAERBUNG_INNEN | H26: FI051 | I26: B
A27: 3 | D27: 0 | I27: B
A28: 4 | B28: 01 | C28: matt vernickelt | D28: 0 | E28: B_FAERBUNG_AUSSEN | F28: FA001 | I28: B
A29: 4 | B29: 03 | C29: Mattverchromt | D29: 12.79 | E29: B_FAERBUNG_AUSSEN | F29: FA003 | I29: B
A30: 4 | B30: 04 | C30: Glanzverchromt | D30: 12.79 | E30: B_FAERBUNG_AUSSEN | F30: FA004 | I30: B
A31: 4 | B31: 04-S | C31: Glanzverchromt | D31: 19.09 | E31: B_FAERBUNG_AUSSEN | F31: FA004 | I31: B
A32: 4 | B32: 05 | C32: messing matt gebürstet | D32: 12.79 | E32: B_FAERBUNG_AUSSEN | F32: FA005 | I32: B
A33: 4 | B33: 06 | C33: messing poliert | D33: 12.79 | E33: B_FAERBUNG_AUSSEN | F33: FA006 | I33: B
A34: 4 | B34: 07 | C34: messing brüniert | D34: 12.79 | E34: B_FAERBUNG_AUSSEN | F34: FA007 | I34: B
A35: 4 | B35: 09 | C35: altdeutsch | D35: 12.79 | E35: B_FAERBUNG_AUSSEN | F35: FA009 | I35: B
A36: 4 | B36: 25 | C36: vergoldet | D36: 12.79 | E36: B_FAERBUNG_AUSSEN | F36: FA025 | I36: B
A37: 4 | D37: 0 | I37: B
A38: 5 | B38: 01 | C38: matt vernickelt | D38: 12.79 | E38: B_FAERBUNG_AUSSEN | F38: FA001 | I38: B
A39: 5 | B39: 03 | C39: Mattverchromt | D39: 12.79 | E39: B_FAERBUNG_AUSSEN | F39: FA003 | I39: B
A40: 5 | B40: 04 | C40: Glanzverchromt | D40: 12.79 | E40: B_FAERBUNG_AUSSEN | F40: FA004 | I40: B
A41: 5 | B41: 04-S | C41: Glanzverchromt | D41: 19.09 | E41: B_FAERBUNG_AUSSEN | F41: FA004 | I41: B
A42: 5 | B42: 50 | C42: messing matt gebürstet | D42: 12.79 | E42: B_FAERBUNG_AUSSEN | F42: FA050 | I42: B
A43: 5 | B43: 51 | C43: messing poliert | D43: 12.79 | E43: B_FAERBUNG_AUSSEN | F43: FA051 | I43: B
A44: 5 | B44: 00 | C44: edelsahl matt | D44: 0 | E44: B_FAERBUNG_AUSSEN | I44: B
A45: 5 | D45: 0 | I45: B
A46: 6 | B46: 01 | C46: matt vernickelt | D46: 0 | E46: B_FAERBUNG_AUSSEN | F46: FA001 | I46: B
A47: 6 | B47: 03 | C47: Mattverchromt | D47: 12.79 | E47: B_FAERBUNG_AUSSEN | F47: FA003 | I47: B
A48: 6 | B48: 04 | C48: Glanzverchromt | D48: 12.79 | E48: B_FAERBUNG_AUSSEN | F48: FA004 | I48: B
A49: 6 | B49: 04-S | C49: Glanzverchromt | D49: 19.09 | E49: B_FAERBUNG_AUSSEN | F49: FA004 | I49: B
A50: 6 | B50: 50. | C50: messing matt gebürstet | D50: 12.79 | E50: B_FAERBUNG_AUSSEN | F50: FA050 | I50: B
A51: 6 | B51: 51 | C51: messing poliert | D51: 12.79 | E51: B_FAERBUNG_AUSSEN | F51: FA051 | I51: B
A52: 6 | D52: 0 | I52: B
A53: 7 | B53: 01 | C53: matt vernickelt | D53: 0 | E53: B_FAERBUNG_AUSSEN | F53: FA001 | G53: B_FAERBUNG_INNEN | H53: FI001 | I53: B
A54: 7 | B54: 04 | C54: Glanzverchromt | D54: 12.79 | E54: B_FAERBUNG_AUSSEN | F54: FA004 | G54: B_FAERBUNG_INNEN | H54: FI004 | I54: B
A55: 7 | B55: 04-S | C55: Glanzverchromt | D55: 19.09 | E55: B_FAERBUNG_AUSSEN | F55: FA004 | G55: B_FAERBUNG_INNEN | H55: FI004 | I55: B
A56: 7 | B56: 05 | C56: messing matt gebürstet | D56: 12.79 | E56: B_FAERBUNG_AUSSEN | F56: FA005 | G56: B_FAERBUNG_INNEN | H56: FI005 | I56: B
A57: 7 | B57: 06 | C57: messing poliert | D57: 12.79 | E57: B_FAERBUNG_AUSSEN | F57: FA006 | G57: B_FAERBUNG_INNEN | H57: FI006 | I57: B
A58: 7 | B58: 07 | C58: messing brüniert | D58: 12.79 | E58: B_FAERBUNG_AUSSEN | F58: FA007 | G58: B_FAERBUNG_INNEN | H58: FA007 | I58: B
A59: 7 | B59: 09 | C59: altdeutsch | D59: 12.79 | E59: B_FAERBUNG_AUSSEN | F59: FA009 | G59: B_FAERBUNG_INNEN | H59: FI009 | I59: B
A60: 7 | B60: 25 | C60: vergoldet | D60: 12.79 | E60: B_FAERBUNG_AUSSEN | F60: FA025 | G60: B_FAERBUNG_INNEN | H60: FA025 | I60: B
A61: 7 | D61: 0 | I61: B
A62: 8 | B62: 01 | C62: matt vernickelt | D62: 0 | E62: B_FAERBUNG_AUSSEN | F62: FA001 | I62: B
A63: 8 | B63: 04 | C63: Glanzverchromt | D63: 12.79 | E63: B_FAERBUNG_AUSSEN | F63: FA004 | I63: B
A64: 8 | B64: 04-S | C64: Glanzverchromt | D64: 19.09 | E64: B_FAERBUNG_AUSSEN | F64: FA004 | I64: B
A65: 8 | B65: 05 | C65: messing matt gebürstet | D65: 12.79 | E65: B_FAERBUNG_AUSSEN | F65: FA005 | I65: B
A66: 8 | B66: 06 | C66: messing poliert | D66: 12.79 | E66: B_FAERBUNG_AUSSEN | F66: FA006 | I66: B
A67: 8 | B67: 07 | C67: messing brüniert | D67: 12.79 | E67: B_FAERBUNG_AUSSEN | F67: FA007 | I67: B
A68: 8 | B68: 09 | C68: altdeutsch | D68: 12.79 | E68: B_FAERBUNG_AUSSEN | F68: FA009 | I68: B
A69: 8 | B69: 25 | C69: vergoldet | D69: 12.79 | E69: B_FAERBUNG_AUSSEN | F69: FA025 | I69: B
A70: 8 | D70: 0 | I70: B
A71: 9 | B71: 01 | C71: matt vernickelt | D71: 0 | E71: B_FAERBUNG_AUSSEN | F71: FA001 | G71: B_FAERBUNG_INNEN | H71: FI001 | I71: B
A72: 10 | B72: 01 | C72: matt vernickelt | D72: 0 | E72: B_FAERBUNG_AUSSEN | F72: FA001 | G72: B_FAERBUNG_INNEN | H72: FI001 | I72: B
A73: 10 | B73: 06 | C73: messing poliert | D73: 12.79 | E73: B_FAERBUNG_AUSSEN | F73: FA006 | G73: B_FAERBUNG_INNEN | H73: FI006 | I73: B
A74: 11 | B74: 01 | C74: matt vernickelt | D74: 0 | E74: B_FAERBUNG_AUSSEN | F74: FA001 | G74: B_FAERBUNG_INNEN | H74: FI001 | I74: B
A75: 11 | B75: 03 | C75: Mattverchromt | D75: 12.79 | E75: B_FAERBUNG_AUSSEN | F75: FA003 | G75: B_FAERBUNG_INNEN | H75: FI003 | I75: B
A76: 11 | B76: 04 | C76: Glanzverchromt | D76: 12.79 | E76: B_FAERBUNG_AUSSEN | F76: FA004 | G76: B_FAERBUNG_INNEN | H76: FI004 | I76: B
A77: 11 | B77: 04-S | C77: Glanzverchromt | D77: 19.09 | E77: B_FAERBUNG_AUSSEN | F77: FA004 | G77: B_FAERBUNG_INNEN | H77: FI004 | I77: B
A78: 11 | B78: 05 | C78: messing matt gebürstet | D78: 12.79 | E78: B_FAERBUNG_AUSSEN | F78: FA005 | G78: B_FAERBUNG_INNEN | H78: FI005 | I78: B
A79: 11 | B79: 06 | C79: messing poliert | D79: 12.79 | E79: B_FAERBUNG_AUSSEN | F79: FA006 | G79: B_FAERBUNG_INNEN | H79: FI006 | I79: B
A80: 11 | B80: 07 | C80: messing brüniert | D80: 12.79 | E80: B_FAERBUNG_AUSSEN | F80: FA007 | G80: B_FAERBUNG_INNEN | H80: FI007 | I80: B
A81: 11 | B81: 09 | C81: altdeutsch | D81: 12.79 | E81: B_FAERBUNG_AUSSEN | F81: FA009 | G81: B_FAERBUNG_INNEN | H81: FI009 | I81: B
A82: 11 | B82: 17 | C82: Zwart | D82: 12.79 | E82: B_FAERBUNG_AUSSEN | F82: FA017 | G82: B_FAERBUNG_INNEN | H82: FI017 | I82: B
A83: 11 | B83: 25 | C83: vergoldet | D83: 12.79 | E83: B_FAERBUNG_AUSSEN | F83: FA025 | G83: B_FAERBUNG_INNEN | H83: FI025 | I83: B
A84: 12 | B84: 01 | C84: matt vernickelt | D84: 0 | E84: B_FAERBUNG_AUSSEN | F84: FA001 | I84: B
A85: 12 | B85: 03 | C85: Mattverchromt | D85: 12.79 | E85: B_FAERBUNG_AUSSEN | F85: FA003 | I85: B
A86: 12 | B86: 04 | C86: Glanzverchromt | D86: 12.79 | E86: B_FAERBUNG_AUSSEN | F86: FA004 | I86: B
A87: 12 | B87: 04-S | C87: Glanzverchromt | D87: 19.09 | E87: B_FAERBUNG_AUSSEN | F87: FA004 | I87: B
A88: 12 | B88: 05 | C88: messing matt gebürstet | D88: 12.79 | E88: B_FAERBUNG_AUSSEN | F88: FA005 | I88: B
A89: 12 | B89: 06 | C89: messing poliert | D89: 12.79 | E89: B_FAERBUNG_AUSSEN | F89: FA006 | I89: B
A90: 12 | B90: 07 | C90: messing brüniert | D90: 12.79 | E90: B_FAERBUNG_AUSSEN | F90: FA007 | I90: B
A91: 12 | B91: 09 | C91: altdeutsch | D91: 12.79 | E91: B_FAERBUNG_AUSSEN | F91: FA009 | I91: B
A92: 12 | B92: 17 | C92: Zwart | D92: 12.79 | E92: B_FAERBUNG_AUSSEN | F92: FA017 | I92: B
A93: 12 | B93: 25 | C93: vergoldet | D93: 12.79 | E93: B_FAERBUNG_AUSSEN | F93: FA025 | I93: B

Sheet Längen (hidden)
A1: ID | B1: A | C1: B | D1: Gesamt | E1: Text | F1: VLA | G1: VLB | H1: Aufpreis | I1: Netto
A2: 0 | B2: * | C2: * | D2: * | F2: * | G2: * | H2: 0 | I2: B | J2: 0 | K2: ohne Längen | M2: Aufpreis | N2: €
A3: 1 | B3: 30 | C3: 30 | D3: =B3+C3 -> 60 | E3: =CONCATENATE(B3," / ",C3) -> 30 / 30 | F3: =ROUNDDOWN((B3-30) /5,0) -> 0 | G3: =ROUNDDOWN((C3-30) /5,0) -> 0 | H3: =(G3+F3)*N$3 -> 0 | I3: B | J3: 1 | K3: Messing | L3: N3 | M3: Messing <=100 | N3: 5.86 | O3: je 5mm
A4: 1 | B4: 30 | C4: 35 | D4: 65 | E4: 30 / 35 | F4: 0 | G4: 1 | H4: 5.86 | I4: B | J4: 2 | K4: Stahl | L4: N5 | M4: Messing > 100 | N4: 5.86 | O4: je 5mm
A5: 1 | B5: 30 | C5: 40 | D5: 70 | E5: 30 / 40 | F5: 0 | G5: 2 | H5: 11.72 | I5: B | J5: 3 | K5: Modular | L5: N5 | M5: Stahl alle langen | N5: 9.42 | O5: je 5mm
A6: 1 | B6: 30 | C6: 45 | D6: 75 | E6: 30 / 45 | F6: 0 | G6: 3 | H6: 17.58 | I6: B | J6: 4 | K6: Halb messing | L6: N3 | M6: duracast alle langen | N6: 9.42 | O6: je 5mm
A7: 1 | B7: 30 | C7: 50 | D7: 80 | E7: 30 / 50 | F7: 0 | G7: 4 | H7: 23.44 | I7: B | J7: 5 | K7: Kurz/Lang | M7: Modular alle langen | N7: 9.42 | O7: je 5mm
A8: 1 | B8: 30 | C8: 55 | D8: 85 | E8: 30 / 55 | F8: 0 | G8: 5 | H8: 29.3 | I8: B | J8: 6 | K8: Kurz/Kurz | M8: GAMMA | N8: 5.86 | O8: je 5mm
A9: 1 | B9: 30 | C9: 60 | D9: 90 | E9: 30 / 60 | F9: 0 | G9: 6 | H9: 35.16 | I9: B | J9: 10 | K9: Halb Stahl | L9: N5 | M9: GAMMA MODULAIR | N9: 9.42 | O9: je 5mm
A10: 1 | B10: 30 | C10: 65 | D10: 95 | E10: 30 / 65 | F10: 0 | G10: 7 | H10: 41.02 | I10: B | J10: 17 | K10: Modular Halb | L10: N5
A11: 1 | B11: 30 | C11: 70 | D11: 100 | E11: 30 / 70 | F11: 0 | G11: 8 | H11: 46.88 | I11: B | J11: 18 | K11: Duracast | L11: N5
A12: 1 | B12: 30 | C12: 75 | D12: 105 | E12: 30 / 75 | F12: 0 | G12: 9 | H12: 52.74 | I12: B | J12: 19 | K12: Halb Duracast | L12: N5
A13: 1 | B13: 30 | C13: 80 | D13: 110 | E13: 30 / 80 | F13: 0 | G13: 10 | H13: 58.6 | I13: B | J13: 24 | K13: Messing vrijloop IX frl vanaf 35/35
A14: 1 | B14: 35 | C14: 30 | D14: 65 | E14: 35 / 30 | F14: 1 | G14: 0 | H14: 5.86 | I14: B | J14: 25 | K14: Halb messing vrijloop IX
A15: 1 | B15: 35 | C15: 35 | D15: 70 | E15: 35 / 35 | F15: 1 | G15: 1 | H15: 11.72 | I15: B | J15: 26 | K15: Messing Keso
A16: 1 | B16: 35 | C16: 40 | D16: 75 | E16: 35 / 40 | F16: 1 | G16: 2 | H16: 17.58 | I16: B | J16: 27 | K16: Halb messing Keso
A17: 1 | B17: 35 | C17: 45 | D17: 80 | E17: 35 / 45 | F17: 1 | G17: 3 | H17: 23.44 | I17: B | J17: 30 | K17: Knop K7 max 60/60
A18: 1 | B18: 35 | C18: 50 | D18: 85 | E18: 35 / 50 | F18: 1 | G18: 4 | H18: 29.3 | I18: B | J18: 31 | K18: Knop K7 Modulair max 60/60
A19: 1 | B19: 35 | C19: 55 | D19: 90 | E19: 35 / 55 | F19: 1 | G19: 5 | H19: 35.16 | I19: B | J19: 7 | K19: 444 | L19: NVT
A20: 1 | B20: 35 | C20: 60 | D20: 95 | E20: 35 / 60 | F20: 1 | G20: 6 | H20: 41.02 | I20: B | J20: 8 | K20: 633 | L20: NVT
A21: 1 | B21: 35 | C21: 65 | D21: 100 | E21: 35 / 65 | F21: 1 | G21: 7 | H21: 46.88 | I21: B | J21: 9 | K21: 666H | L21: NVT
A22: 1 | B22: 35 | C22: 70 | D22: 105 | E22: 35 / 70 | F22: 1 | G22: 8 | H22: 52.74 | I22: B | J22: 12 | K22: S6 35 / 35 | L22: NVT
A23: 1 | B23: 35 | C23: 75 | D23: 110 | E23: 35 / 75 | F23: 1 | G23: 9 | H23: 58.6 | I23: B | J23: 13 | K23: S6 MX | L23: NVT
A24: 1 | B24: 35 | C24: 80 | D24: 115 | E24: 35 / 80 | F24: 1 | G24: 10 | H24: 64.46 | I24: B | J24: 14 | K24: S6H 35 | L24: NVT
A25: 1 | B25: 40 | C25: 30 | D25: 70 | E25: 40 / 30 | F25: 2 | G25: 0 | H25: 11.72 | I25: B | J25: 15 | K25: S6H MX | L25: NVT
A26: 1 | B26: 40 | C26: 35 | D26: 75 | E26: 40 / 35 | F26: 2 | G26: 1 | H26: 17.58 | I26: B | J26: 16 | K26: Blind | L26: NVT
A27: 1 | B27: 40 | C27: 40 | D27: 80 | E27: 40 / 40 | F27: 2 | G27: 2 | H27: 23.44 | I27: B | J27: 20 | K27: GAMMA | L27: NVT
A28: 1 | B28: 40 | C28: 45 | D28: 85 | E28: 40 / 45 | F28: 2 | G28: 3 | H28: 29.3 | I28: B | J28: 22 | K28: GAMMA MODU. | L28: NVT
A29: 1 | B29: 40 | C29: 50 | D29: 90 | E29: 40 / 50 | F29: 2 | G29: 4 | H29: 35.16 | I29: B | J29: 28 | K29: Modular vrijloop >35/35 | L29: NVT
A30: 1 | B30: 40 | C30: 55 | D30: 95 | E30: 40 / 55 | F30: 2 | G30: 5 | H30: 41.02 | I30: B | J30: 29 | K30: Modular Halb vrijloop >35 | L30: NVT
A31: 1 | B31: 40 | C31: 60 | D31: 100 | E31: 40 / 60 | F31: 2 | G31: 6 | H31: 46.88 | I31: B | J31: 33 | K31: MESSING IX MET SKG2 60/60 MAX
A32: 1 | B32: 40 | C32: 65 | D32: 105 | E32: 40 / 65 | F32: 2 | G32: 7 | H32: 52.74 | I32: B | J32: 21 | K32: GAMMA HALF | L32: NVT
A33: 1 | B33: 40 | C33: 70 | D33: 110 | E33: 40 / 70 | F33: 2 | G33: 8 | H33: 58.6 | I33: B | J33: 23 | K33: GAMMA MODU.HALF | L33: NVT
A34: 1 | B34: 40 | C34: 75 | D34: 115 | E34: 40 / 75 | F34: 2 | G34: 9 | H34: 64.46 | I34: B | J34: 35 | K34: twinstarh skg2 tot 0/50
A35: 1 | B35: 40 | C35: 80 | D35: 120 | E35: 40 / 80 | F35: 2 | G35: 10 | H35: 70.32 | I35: B
A36: 1 | B36: 45 | C36: 30 | D36: 75 | E36: 45 / 30 | F36: 3 | G36: 0 | H36: 17.58 | I36: B
A37: 1 | B37: 45 | C37: 35 | D37: 80 | E37: 45 / 35 | F37: 3 | G37: 1 | H37: 23.44 | I37: B
A38: 1 | B38: 45 | C38: 40 | D38: 85 | E38: 45 / 40 | F38: 3 | G38: 2 | H38: 29.3 | I38: B
A39: 1 | B39: 45 | C39: 45 | D39: 90 | E39: 45 / 45 | F39: 3 | G39: 3 | H39: 35.16 | I39: B
A40: 1 | B40: 45 | C40: 50 | D40: 95 | E40: 45 / 50 | F40: 3 | G40: 4 | H40: 41.02 | I40: B
A41: 1 | B41: 45 | C41: 55 | D41: 100 | E41: 45 / 55 | F41: 3 | G41: 5 | H41: 46.88 | I41: B
A42: 1 | B42: 45 | C42: 60 | D42: 105 | E42: 45 / 60 | F42: 3 | G42: 6 | H42: 52.74 | I42: B
A43: 1 | B43: 45 | C43: 65 | D43: 110 | E43: 45 / 65 | F43: 3 | G43: 7 | H43: 58.6 | I43: B
A44: 1 | B44: 45 | C44: 70 | D44: 115 | E44: 45 / 70 | F44: 3 | G44: 8 | H44: 64.46 | I44: B
A45: 1 | B45: 50 | C45: 30 | D45: 80 | E45: 50 / 30 | F45: 4 | G45: 0 | H45: 23.44 | I45: B
A46: 1 | B46: 50 | C46: 35 | D46: 85 | E46: 50 / 35 | F46: 4 | G46: 1 | H46: 29.3 | I46: B
A47: 1 | B47: 50 | C47: 40 | D47: 90 | E47: 50 / 40 | F47: 4 | G47: 2 | H47: 35.16 | I47: B
A48: 1 | B48: 50 | C48: 45 | D48: 95 | E48: 50 / 45 | F48: 4 | G48: 3 | H48: 41.02 | I48: B
A49: 1 | B49: 50 | C49: 50 | D49: 100 | E49: 50 / 50 | F49: 4 | G49: 4 | H49: 46.88 | I49: B
A50: 1 | B50: 50 | C50: 55 | D50: 105 | E50: 50 / 55 | F50: 4 | G50: 5 | H50: 52.74 | I50: B
A51: 1 | B51: 50 | C51: 60 | D51: 110 | E51: 50 / 60 | F51: 4 | G51: 6 | H51: 58.6 | I51: B
A52: 1 | B52: 50 | C52: 65 | D52: 115 | E52: 50 / 65 | F52: 4 | G52: 7 | H52: 64.46 | I52: B
A53: 1 | B53: 50 | C53: 70 | D53: 120 | E53: 50 / 70 | F53: 4 | G53: 8 | H53: 70.32 | I53: B
A54: 1 | B54: 55 | C54: 30 | D54: 85 | E54: 55 / 30 | F54: 5 | G54: 0 | H54: 29.3 | I54: B
A55: 1 | B55: 55 | C55: 35 | D55: 90 | E55: 55 / 35 | F55: 5 | G55: 1 | H55: 35.16 | I55: B
A56: 1 | B56: 55 | C56: 40 | D56: 95 | E56: 55 / 40 | F56: 5 | G56: 2 | H56: 41.02 | I56: B
A57: 1 | B57: 55 | C57: 45 | D57: 100 | E57: 55 / 45 | F57: 5 | G57: 3 | H57: 46.88 | I57: B
A58: 1 | B58: 55 | C58: 50 | D58: 105 | E58: 55 / 50 | F58: 5 | G58: 4 | H58: 52.74 | I58: B
A59: 1 | B59: 55 | C59: 55 | D59: 110 | E59: 55 / 55 | F59: 5 | G59: 5 | H59: 58.6 | I59: B
A60: 1 | B60: 55 | C60: 60 | D60: 115 | E60: 55 / 60 | F60: 5 | G60: 6 | H60: 64.46 | I60: B
A61: 1 | B61: 55 | C61: 65 | D61: 120 | E61: 55 / 65 | F61: 5 | G61: 7 | H61: 70.32 | I61: B
A62: 1 | B62: 60 | C62: 30 | D62: 90 | E62: 60 / 30 | F62: 6 | G62: 0 | H62: 35.16 | I62: B
A63: 1 | B63: 60 | C63: 35 | D63: 95 | E63: 60 / 35 | F63: 6 | G63: 1 | H63: 41.02 | I63: B
A64: 1 | B64: 60 | C64: 40 | D64: 100 | E64: 60 / 40 | F64: 6 | G64: 2 | H64: 46.88 | I64: B
A65: 1 | B65: 60 | C65: 45 | D65: 105 | E65: 60 / 45 | F65: 6 | G65: 3 | H65: 52.74 | I65: B
A66: 1 | B66: 60 | C66: 50 | D66: 110 | E66: 60 / 50 | F66: 6 | G66: 4 | H66: 58.6 | I66: B
A67: 1 | B67: 60 | C67: 55 | D67: =B67+C67 -> 115 | E67: =CONCATENATE(B67," / ",C67) -> 60 / 55 | F67: 6 | G67: 5 | H67: =(G67+F67)*N$3 -> 64.46 | I67: B
A68: 1 | B68: 60 | C68: 60 | D68: 120 | E68: 60 / 60 | F68: 6 | G68: 6 | H68: 70.32 | I68: B
A69: 1 | B69: 65 | C69: 30 | D69: 95 | E69: 65 / 30 | F69: 7 | G69: 0 | H69: 41.02 | I69: B
A70: 1 | B70: 65 | C70: 35 | D70: 100 | E70: 65 / 35 | F70: 7 | G70: 1 | H70: 46.88 | I70: B
A71: 1 | B71: 65 | C71: 40 | D71: 105 | E71: 65 / 40 | F71: 7 | G71: 2 | H71: 52.74 | I71: B
A72: 1 | B72: 65 | C72: 45 | D72: 110 | E72: 65 / 45 | F72: 7 | G72: 3 | H72: 58.6 | I72: B
A73: 1 | B73: 65 | C73: 50 | D73: 115 | E73: 65 / 50 | F73: 7 | G73: 4 | H73: 64.46 | I73: B
A74: 1 | B74: 65 | C74: 55 | D74: 120 | E74: 65 / 55 | F74: 7 | G74: 5 | H74: 70.32 | I74: B
A75: 1 | B75: 70 | C75: 30 | D75: 100 | E75: 70 / 30 | F75: 8 | G75: 0 | H75: 46.88 | I75: B
A76: 1 | B76: 70 | C76: 35 | D76: 105 | E76: 70 / 35 | F76: 8 | G76: 1 | H76: 52.74 | I76: B
A77: 1 | B77: 70 | C77: 40 | D77: 110 | E77: 70 / 40 | F77: 8 | G77: 2 | H77: 58.6 | I77: B
A78: 1 | B78: 70 | C78: 45 | D78: 115 | E78: 70 / 45 | F78: 8 | G78: 3 | H78: 64.46 | I78: B
A79: 1 | B79: 70 | C79: 50 | D79: 120 | E79: 70 / 50 | F79: 8 | G79: 4 | H79: 70.32 | I79: B
A80: 1 | B80: 75 | C80: 30 | D80: 105 | E80: 75 / 30 | F80: 9 | G80: 0 | H80: 52.74 | I80: B
A81: 1 | B81: 75 | C81: 35 | D81: 110 | E81: 75 / 35 | F81: 9 | G81: 1 | H81: 58.6 | I81: B
A82: 1 | B82: 75 | C82: 40 | D82: 115 | E82: 75 / 40 | F82: 9 | G82: 2 | H82: 64.46 | I82: B
A83: 1 | B83: 80 | C83: 30 | D83: 110 | E83: 80 / 30 | F83: 10 | G83: 0 | H83: 58.6 | I83: B
A84: 1 | B84: 80 | C84: 35 | D84: 115 | E84: 80 / 35 | F84: 10 | G84: 1 | H84: 64.46 | I84: B
A85: 1 | B85: 80 | C85: 40 | D85: 120 | E85: 80 / 40 | F85: 10 | G85: 2 | H85: 70.32 | I85: B
A86: 2 | B86: 32 | C86: 32 | D86: 64 | E86: 32 / 32 | F86: 0 | G86: 0 | H86: 0 | I86: B
A87: 2 | B87: 32 | C87: 37 | D87: 69 | E87: 32 / 37 | F87: 0 | G87: 1 | H87: =(G87+F87)*N$5 -> 9.42 | I87: B
A88: 2 | B88: 32 | C88: 42 | D88: 74 | E88: 32 / 42 | F88: 0 | G88: 2 | H88: 18.84 | I88: B
A89: 2 | B89: 32 | C89: 47 | D89: 79 | E89: 32 / 47 | F89: 0 | G89: 3 | H89: 28.26 | I89: B
A90: 2 | B90: 32 | C90: 52 | D90: 84 | E90: 32 / 52 | F90: 0 | G90: 4 | H90: 37.68 | I90: B
A91: 2 | B91: 32 | C91: 57 | D91: 89 | E91: 32 / 57 | F91: 0 | G91: 5 | H91: 47.1 | I91: B
A92: 2 | B92: 32 | C92: 62 | D92: 94 | E92: 32 / 62 | F92: 0 | G92: 6 | H92: 56.52 | I92: B
A93: 2 | B93: 32 | C93: 67 | D93: 99 | E93: 32 / 67 | F93: 0 | G93: 7 | H93: 65.94 | I93: B
A94: 2 | B94: 32 | C94: 72 | D94: 104 | E94: 32 / 72 | F94: 0 | G94: 8 | H94: 75.36 | I94: B
A95: 2 | B95: 32 | C95: 82 | D95: 114 | E95: 32 / 82 | F95: 0 | G95: 10 | H95: 94.2 | I95: B
A96: 2 | B96: 32 | C96: 92 | D96: 124 | E96: 32 / 92 | F96: 0 | G96: 12 | H96: 113.04 | I96: B
A97: 2 | B97: 32 | C97: 102 | D97: 134 | E97: 32 / 102 | F97: 0 | G97: 14 | H97: 131.88 | I97: B
A98: 2 | B98: 32 | C98: 112 | D98: 144 | E98: 32 / 112 | F98: 0 | G98: 16 | H98: 150.72 | I98: B
A99: 2 | B99: 32 | C99: 122 | D99: 154 | E99: 32 / 122 | F99: 0 | G99: 18 | H99: 169.56 | I99: B
A100: 2 | B100: 32 | C100: 132 | D100: 164 | E100: 32 / 132 | F100: 0 | G100: 20 | H100: 188.4 | I100: B
A101: 2 | B101: 37 | C101: 32 | D101: 69 | E101: 37 / 32 | F101: 1 | G101: 0 | H101: 9.42 | I101: B
A102: 2 | B102: 37 | C102: 37 | D102: 74 | E102: 37 / 37 | F102: 1 | G102: 1 | H102: 18.84 | I102: B
A103: 2 | B103: 37 | C103: 42 | D103: 79 | E103: 37 / 42 | F103: 1 | G103: 2 | H103: 28.26 | I103: B
A104: 2 | B104: 37 | C104: 47 | D104: 84 | E104: 37 / 47 | F104: 1 | G104: 3 | H104: 37.68 | I104: B
A105: 2 | B105: 37 | C105: 52 | D105: 89 | E105: 37 / 52 | F105: 1 | G105: 4 | H105: 47.1 | I105: B
A106: 2 | B106: 37 | C106: 57 | D106: 94 | E106: 37 / 57 | F106: 1 | G106: 5 | H106: 56.52 | I106: B
A107: 2 | B107: 37 | C107: 62 | D107: 99 | E107: 37 / 62 | F107: 1 | G107: 6 | H107: 65.94 | I107: B
A108: 2 | B108: 37 | C108: 67 | D108: 104 | E108: 37 / 67 | F108: 1 | G108: 7 | H108: 75.36 | I108: B
A109: 2 | B109: 42 | C109: 32 | D109: 74 | E109: 42 / 32 | F109: 2 | G109: 0 | H109: 18.84 | I109: B
A110: 2 | B110: 42 | C110: 37 | D110: 79 | E110: 42 / 37 | F110: 2 | G110: 1 | H110: 28.26 | I110: B
A111: 2 | B111: 42 | C111: 42 | D111: 84 | E111: 42 / 42 | F111: 2 | G111: 2 | H111: 37.68 | I111: B
A112: 2 | B112: 42 | C112: 47 | D112: 89 | E112: 42 / 47 | F112: 2 | G112: 3 | H112: 47.1 | I112: B
A113: 2 | B113: 42 | C113: 52 | D113: 94 | E113: 42 / 52 | F113: 2 | G113: 4 | H113: 56.52 | I113: B
A114: 2 | B114: 42 | C114: 57 | D114: 99 | E114: 42 / 57 | F114: 2 | G114: 5 | H114: 65.94 | I114: B
A115: 2 | B115: 42 | C115: 62 | D115: 104 | E115: 42 / 62 | F115: 2 | G115: 6 | H115: 75.36 | I115: B
A116: 2 | B116: 42 | C116: 67 | D116: 109 | E116: 42 / 67 | F116: 2 | G116: 7 | H116: 84.78 | I116: B
A117: 2 | B117: 42 | C117: 72 | D117: 114 | E117: 42 / 72 | F117: 2 | G117: 8 | H117: 94.2 | I117: B
A118: 2 | B118: 42 | C118: 82 | D118: 124 | E118: 42 / 82 | F118: 2 | G118: 10 | H118: 113.04 | I118: B
A119: 2 | B119: 42 | C119: 92 | D119: 134 | E119: 42 / 92 | F119: 2 | G119: 12 | H119: 131.88 | I119: B
A120: 2 | B120: 42 | C120: 102 | D120: 144 | E120: 42 / 102 | F120: 2 | G120: 14 | H120: 150.72 | I120: B
A121: 2 | B121: 42 | C121: 112 | D121: 154 | E121: 42 / 112 | F121: 2 | G121: 16 | H121: 169.56 | I121: B
A122: 2 | B122: 42 | C122: 122 | D122: 164 | E122: 42 / 122 | F122: 2 | G122: 18 | H122: 188.4 | I122: B
A123: 2 | B123: 42 | C123: 132 | D123: 174 | E123: 42 / 132 | F123: 2 | G123: 20 | H123: 207.24 | I123: B
A124: 2 | B124: 47 | C124: 32 | D124: 79 | E124: 47 / 32 | F124: 3 | G124: 0 | H124: 28.26 | I124: B
A125: 2 | B125: 47 | C125: 37 | D125: 84 | E125: 47 / 37 | F125: 3 | G125: 1 | H125: 37.68 | I125: B
A126: 2 | B126: 47 | C126: 42 | D126: 89 | E126: 47 / 42 | F126: 3 | G126: 2 | H126: 47.1 | I126: B
A127: 2 | B127: 47 | C127: 47 | D127: 94 | E127: 47 / 47 | F127: 3 | G127: 3 | H127: 56.52 | I127: B
A128: 2 | B128: 47 | C128: 52 | D128: 99 | E128: 47 / 52 | F128: 3 | G128: 4 | H128: 65.94 | I128: B
A129: 2 | B129: 47 | C129: 57 | D129: 104 | E129: 47 / 57 | F129: 3 | G129: 5 | H129: 75.36 | I129: B
A130: 2 | B130: 47 | C130: 62 | D130: 109 | E130: 47 / 62 | F130: 3 | G130: 6 | H130: 84.78 | I130: B
A131: 2 | B131: 47 | C131: 67 | D131: =B131+C131 -> 114 | E131: =CONCATENATE(B131," / ",C131) -> 47 / 67 | F131: 3 | G131: 7 | H131: 94.2 | I131: B
A132: 2 | B132: 52 | C132: 32 | D132: 84 | E132: 52 / 32 | F132: 4 | G132: 0 | H132: 37.68 | I132: B
A133: 2 | B133: 52 | C133: 37 | D133: 89 | E133: 52 / 37 | F133: 4 | G133: 1 | H133: 47.1 | I133: B
A134: 2 | B134: 52 | C134: 42 | D134: 94 | E134: 52 / 42 | F134: 4 | G134: 2 | H134: 56.52 | I134: B
A135: 2 | B135: 52 | C135: 47 | D135: 99 | E135: 52 / 47 | F135: 4 | G135: 3 | H135: 65.94 | I135: B
A136: 2 | B136: 52 | C136: 52 | D136: 104 | E136: 52 / 52 | F136: 4 | G136: 4 | H136: 75.36 | I136: B
A137: 2 | B137: 52 | C137: 57 | D137: 109 | E137: 52 / 57 | F137: 4 | G137: 5 | H137: 84.78 | I137: B
A138: 2 | B138: 52 | C138: 62 | D138: 114 | E138: 52 / 62 | F138: 4 | G138: 6 | H138: 94.2 | I138: B
A139: 2 | B139: 52 | C139: 67 | D139: 119 | E139: 52 / 67 | F139: 4 | G139: 7 | H139: 103.62 | I139: B
A140: 2 | B140: 52 | C140: 72 | D140: 124 | E140: 52 / 72 | F140: 4 | G140: 8 | H140: 113.04 | I140: B
A141: 2 | B141: 52 | C141: 82 | D141: 134 | E141: 52 / 82 | F141: 4 | G141: 10 | H141: 131.88 | I141: B
A142: 2 | B142: 52 | C142: 92 | D142: 144 | E142: 52 / 92 | F142: 4 | G142: 12 | H142: 150.72 | I142: B
A143: 2 | B143: 52 | C143: 102 | D143: 154 | E143: 52 / 102 | F143: 4 | G143: 14 | H143: 169.56 | I143: B
A144: 2 | B144: 52 | C144: 112 | D144: 164 | E144: 52 / 112 | F144: 4 | G144: 16 | H144: 188.4 | I144: B
A145: 2 | B145: 52 | C145: 122 | D145: 174 | E145: 52 / 122 | F145: 4 | G145: 18 | H145: 207.24 | I145: B
A146: 2 | B146: 52 | C146: 132 | D146: 184 | E146: 52 / 132 | F146: 4 | G146: 20 | H146: 226.08 | I146: B
A147: 2 | B147: 57 | C147: 32 | D147: 89 | E147: 57 / 32 | F147: 5 | G147: 0 | H147: 47.1 | I147: B
A148: 2 | B148: 57 | C148: 37 | D148: 94 | E148: 57 / 37 | F148: 5 | G148: 1 | H148: 56.52 | I148: B
A149: 2 | B149: 57 | C149: 42 | D149: 99 | E149: 57 / 42 | F149: 5 | G149: 2 | H149: 65.94 | I149: B
A150: 2 | B150: 57 | C150: 47 | D150: 104 | E150: 57 / 47 | F150: 5 | G150: 3 | H150: 75.36 | I150: B
A151: 2 | B151: 57 | C151: 52 | D151: 109 | E151: 57 / 52 | F151: 5 | G151: 4 | H151: =(G151+F151)*N$5 -> 84.78 | I151: B
A152: 2 | B152: 57 | C152: 57 | D152: 114 | E152: 57 / 57 | F152: 5 | G152: 5 | H152: 94.2 | I152: B
A153: 2 | B153: 57 | C153: 62 | D153: 119 | E153: 57 / 62 | F153: 5 | G153: 6 | H153: 103.62 | I153: B
A154: 2 | B154: 57 | C154: 67 | D154: 124 | E154: 57 / 67 | F154: 5 | G154: 7 | H154: 113.04 | I154: B
A155: 2 | B155: 62 | C155: 32 | D155: 94 | E155: 62 / 32 | F155: 6 | G155: 0 | H155: 56.52 | I155: B
A156: 2 | B156: 62 | C156: 37 | D156: 99 | E156: 62 / 37 | F156: 6 | G156: 1 | H156: 65.94 | I156: B
A157: 2 | B157: 62 | C157: 42 | D157: 104 | E157: 62 / 42 | F157: 6 | G157: 2 | H157: 75.36 | I157: B
A158: 2 | B158: 62 | C158: 47 | D158: 109 | E158: 62 / 47 | F158: 6 | G158: 3 | H158: 84.78 | I158: B
A159: 2 | B159: 62 | C159: 52 | D159: 114 | E159: 62 / 52 | F159: 6 | G159: 4 | H159: 94.2 | I159: B
A160: 2 | B160: 62 | C160: 57 | D160: 119 | E160: 62 / 57 | F160: 6 | G160: 5 | H160: 103.62 | I160: B
A161: 2 | B161: 62 | C161: 62 | D161: 124 | E161: 62 / 62 | F161: 6 | G161: 6 | H161: 113.04 | I161: B
A162: 2 | B162: 62 | C162: 67 | D162: 129 | E162: 62 / 67 | F162: 6 | G162: 7 | H162: 122.46 | I162: B
A163: 2 | B163: 62 | C163: 72 | D163: 134 | E163: 62 / 72 | F163: 6 | G163: 8 | H163: 131.88 | I163: B
A164: 2 | B164: 62 | C164: 82 | D164: 144 | E164: 62 / 82 | F164: 6 | G164: 10 | H164: 150.72 | I164: B
A165: 2 | B165: 62 | C165: 92 | D165: 154 | E165: 62 / 92 | F165: 6 | G165: 12 | H165: 169.56 | I165: B
A166: 2 | B166: 62 | C166: 102 | D166: 164 | E166: 62 / 102 | F166: 6 | G166: 14 | H166: 188.4 | I166: B
A167: 2 | B167: 62 | C167: 112 | D167: 174 | E167: 62 / 112 | F167: 6 | G167: 16 | H167: 207.24 | I167: B
A168: 2 | B168: 62 | C168: 122 | D168: 184 | E168: 62 / 122 | F168: 6 | G168: 18 | H168: 226.08 | I168: B
A169: 2 | B169: 62 | C169: 132 | D169: 194 | E169: 62 / 132 | F169: 6 | G169: 20 | H169: 244.92 | I169: B
A170: 2 | B170: 67 | C170: 32 | D170: 99 | E170: 67 / 32 | F170: 7 | G170: 0 | H170: 65.94 | I170: B
A171: 2 | B171: 67 | C171: 37 | D171: 104 | E171: 67 / 37 | F171: 7 | G171: 1 | H171: 75.36 | I171: B
A172: 2 | B172: 67 | C172: 42 | D172: 109 | E172: 67 / 42 | F172: 7 | G172: 2 | H172: 84.78 | I172: B
A173: 2 | B173: 67 | C173: 47 | D173: 114 | E173: 67 / 47 | F173: 7 | G173: 3 | H173: 94.2 | I173: B
A174: 2 | B174: 67 | C174: 52 | D174: 119 | E174: 67 / 52 | F174: 7 | G174: 4 | H174: 103.62 | I174: B
A175: 2 | B175: 67 | C175: 57 | D175: 124 | E175: 67 / 57 | F175: 7 | G175: 5 | H175: 113.04 | I175: B
A176: 2 | B176: 67 | C176: 62 | D176: 129 | E176: 67 / 62 | F176: 7 | G176: 6 | H176: 122.46 | I176: B
A177: 2 | B177: 67 | C177: 67 | D177: 134 | E177: 67 / 67 | F177: 7 | G177: 7 | H177: 131.88 | I177: B
A178: 2 | B178: 72 | C178: 32 | D178: 104 | E178: 72 / 32 | F178: 8 | G178: 0 | H178: 75.36 | I178: B
A179: 2 | B179: 72 | C179: 42 | D179: 114 | E179: 72 / 42 | F179: 8 | G179: 2 | H179: 94.2 | I179: B
A180: 2 | B180: 72 | C180: 52 | D180: 124 | E180: 72 / 52 | F180: 8 | G180: 4 | H180: 113.04 | I180: B
A181: 2 | B181: 72 | C181: 62 | D181: 134 | E181: 72 / 62 | F181: 8 | G181: 6 | H181: 131.88 | I181: B
A182: 2 | B182: 72 | C182: 72 | D182: 144 | E182: 72 / 72 | F182: 8 | G182: 8 | H182: 150.72 | I182: B
A183: 2 | B183: 72 | C183: 82 | D183: 154 | E183: 72 / 82 | F183: 8 | G183: 10 | H183: 169.56 | I183: B
A184: 2 | B184: 72 | C184: 92 | D184: 164 | E184: 72 / 92 | F184: 8 | G184: 12 | H184: 188.4 | I184: B
A185: 2 | B185: 72 | C185: 102 | D185: 174 | E185: 72 / 102 | F185: 8 | G185: 14 | H185: 207.24 | I185: B
A186: 2 | B186: 72 | C186: 112 | D186: 184 | E186: 72 / 112 | F186: 8 | G186: 16 | H186: 226.08 | I186: B
A187: 2 | B187: 72 | C187: 122 | D187: 194 | E187: 72 / 122 | F187: 8 | G187: 18 | H187: 244.92 | I187: B
A188: 2 | B188: 72 | C188: 132 | D188: 204 | E188: 72 / 132 | F188: 8 | G188: 20 | H188: 263.76 | I188: B
A189: 2 | B189: 82 | C189: 32 | D189: 114 | E189: 82 / 32 | F189: 10 | G189: 0 | H189: 94.2 | I189: B
A190: 2 | B190: 82 | C190: 42 | D190: 124 | E190: 82 / 42 | F190: 10 | G190: 2 | H190: 113.04 | I190: B
A191: 2 | B191: 82 | C191: 52 | D191: 134 | E191: 82 / 52 | F191: 10 | G191: 4 | H191: 131.88 | I191: B
A192: 2 | B192: 82 | C192: 62 | D192: 144 | E192: 82 / 62 | F192: 10 | G192: 6 | H192: 150.72 | I192: B
A193: 2 | B193: 82 | C193: 72 | D193: 154 | E193: 82 / 72 | F193: 10 | G193: 8 | H193: 169.56 | I193: B
A194: 2 | B194: 82 | C194: 82 | D194: 164 | E194: 82 / 82 | F194: 10 | G194: 10 | H194: 188.4 | I194: B
A195: 2 | B195: 82 | C195: 92 | D195: =B195+C195 -> 174 | E195: =CONCATENATE(B195," / ",C195) -> 82 / 92 | F195: 10 | G195: 12 | H195: 207.24 | I195: B
A196: 2 | B196: 82 | C196: 102 | D196: 184 | E196: 82 / 102 | F196: 10 | G196: 14 | H196: 226.08 | I196: B
A197: 2 | B197: 82 | C197: 112 | D197: 194 | E197: 82 / 112 | F197: 10 | G197: 16 | H197: 244.92 | I197: B
A198: 2 | B198: 82 | C198: 122 | D198: 204 | E198: 82 / 122 | F198: 10 | G198: 18 | H198: 263.76 | I198: B
A199: 2 | B199: 82 | C199: 132 | D199: 214 | E199: 82 / 132 | F199: 10 | G199: 20 | H199: 282.6 | I199: B
A200: 2 | B200: 92 | C200: 32 | D200: 124 | E200: 92 / 32 | F200: 12 | G200: 0 | H200: 113.04 | I200: B
... 1351 more rows

Sheet S-Plan
L1: Aantal
L3: Type
L7: Omschrijving
L8: Sleutelnummer
D9: !!Niet in DOM-plan!! | F9: Aantal
A10: Positie | B10: Status | C10: Deur-Ruimteomschrijving | D10: Vrije invoer | E10: Sleutelnummer | F10: Cil. | G10: Sl. | I10: Cilindertype | J10: Uitvoering | K10: Lengte (A / B) | L10: kleur | N10: PAusf. | O10: PLänge | P10: PFrb
A11: 1
A12: 2
A13: 3
A14: 4
A15: 5
A16: 6
A17: 7
A18: 8
A19: 9
A20: 10
A21: 11
A22: 12
A23: 13
A24: 14
A25: 15
A26: 16
A27: 17
A28: 18
A29: 19
A30: 20

Sheet art_system (hidden)
A1: Anlagenart | B1: Systeme | C1: Neuanlage E/N | D1: Sichtbar J/N | E1: ART | F1: System
A2: ? | B2: ? | C2: N | D2: J | E2: ? | F2: ?
A3: GHS | B3: DIAMANT | C3: E | D3: J | E3: ? | F3: GHS
A4: HS | B4: IX GAMMA | C4: E | D4: J | E4: ? | F4: HS
A5: ZHS | B5: IX10KG | C5: E | D5: J | E5: ? | F5: ZHS
A6: Z | B6: IX5HT | C6: E | D6: J | E6: ? | F6: Z
B7: IX6KG | C7: E | D7: J | E7: DIAMANT | F7: ?
B8: IX6SR | C8: E | D8: J | E8: DIAMANT | F8: HS
B9: IXHT | C9: E | D9: J | E9: DIAMANT | F9: GHS
B10: IXSAT | C10: E | D10: J | E10: IX GAMMA | F10: ZHS
B11: IXTWINSTAR | C11: N | D11: J | E11: IX GAMMA | F11: HS
B12: RS SIGMA | C12: N | D12: J | E12: IX GAMMA | F12: GHS
B13: RS5 | C13: E | D13: J | E13: IX10KG | F13: ?
B14: RS8 | C14: E | D14: J | E14: IX10KG | F14: Z
B15: IXTWIDO | C15: N | D15: J | E15: IX10KG | F15: ZHS
B16: IXTECO | C16: N | D16: J | E16: IX10KG | F16: HS
B17: IXTWINSTAR-C | C17: N | D17: J | E17: IX10KG | F17: GHS
E18: IX5HT | F18: ?
E19: IX5HT | F19: Z
E20: IX5HT | F20: ZHS
E21: IX5HT | F21: HS
E22: IX5HT | F22: GHS
E23: IX5KG | F23: ?
E24: IX5KG | F24: Z
E25: IX5KG | F25: ZHS
E26: IX5KG | F26: HS
E27: IX5KG | F27: GHS
E28: IX6KG | F28: ?
E29: IX6KG | F29: Z
E30: IX6KG | F30: ZHS
E31: IX6KG | F31: HS
E32: IX6KG | F32: GHS
E33: IX6SR | F33: ?
E34: IX6SR | F34: Z
E35: IX6SR | F35: ZHS
E36: IX6SR | F36: HS
E37: IX6SR | F37: GHS
E38: IXHT | F38: Z
E39: IXHT | F39: ZHS
E40: IXHT | F40: HS
E41: IXHT | F41: GHS
E42: IXSAT | F42: ?
E43: IXSAT | F43: Z
E44: IXSAT | F44: ZHS
E45: IXSAT | F45: HS
E46: IXSAT | F46: GHS
E47: RS SIGMA | F47: ?
E48: RS SIGMA | F48: Z
E49: RS SIGMA | F49: ZHS
E50: RS SIGMA | F50: HS
E51: RS SIGMA | F51: GHS
E52: RS5 | F52: ?
E53: RS5 | F53: Z
E54: RS5 | F54: ZHS
E55: RS5 | F55: HS
E56: RS5 | F56: GHS
E57: RS8 | F57: ?
E58: RS8 | F58: Z
E59: RS8 | F59: ZHS
E60: RS8 | F60: HS
E61: RS8 | F61: GHS
E62: IXTWINSTAR | F62: ?
E63: IXTWINSTAR | F63: Z
E64: IXTWINSTAR | F64: ZHS
E65: IXTWINSTAR | F65: HS
E66: IXTWINSTAR | F66: GHS
E67: IXTWIDO | F67: ?
E68: IXTWIDO | F68: Z
E69: IXTWIDO | F69: ZHS
E70: IXTWIDO | F70: HS
E71: IXTWIDO | F71: GHS
E72: IXTECO | F72: ?
E73: IXTECO | F73: Z
E74: IXTECO | F74: ZHS
E75: IXTECO | F75: HS
E76: IXTECO | F76: GHS
E77: IXTWINSTAR-C | F77: ?
E78: IXTWINSTAR-C | F78: Z
E79: IXTWINSTAR-C | F79: ZHS
E80: IXTWINSTAR-C | F80: HS
E81: IXTWINSTAR-C | F81: GHS

Sheet typen (hidden)
A1: 333K1SKG2|IXTWINSTAR | B1: =VLOOKUP($A1,$A3:$AG800,2,0) -> 333K1SKG2 | C1: =VLOOKUP($A1,$A3:$AG800,3,0) -> IXTWINSTAR | D1: =VLOOKUP($A1,$A3:$AG800,4,0) -> 171.14 | E1: =VLOOKUP($A1,$A3:$AG800,5,0) -> 171.14 | F1: =VLOOKUP($A1,$A3:$AG800,6,0) -> 171.14 | G1: =VLOOKUP($A1,$A3:$AG800,7,0) -> 513.42 | H1: =VLOOKUP($A1,$A3:$AG800,8,0) -> 33 | I1: =VLOOKUP($A1,$A3:$AG800,9,0) -> 11 | J1: =VLOOKUP($A1,$A3:$AG800,10,0) -> 20 | K1: =VLOOKUP($A1,$A3:$AG800,11,0) -> D | L1: =VLOOKUP($A1,$A3:$AG800,12,0) -> N | M1: =VLOOKUP($A1,$A3:$AG800,13,0) -> 333IXSTAR SKG2 | N1: =VLOOKUP($A1,$A3:$AG800,14,0) -> B_KNAUFAUSF | O1: =VLOOKUP($A1,$A3:$AG800,15,0) -> KNK1 | P1: =VLOOKUP($A1,$A3:$AG800,16,0) -> 0 | Q1: =VLOOKUP($A1,$A3:$AG800,17,0) -> 0 | R1: =VLOOKUP($A1,$A3:$AG800,18,0) -> 0 | S1: =VLOOKUP($A1,$A3:$AG800,19,0) -> 0 | T1: =VLOOKUP($A1,$A3:$AG800,20,0) -> 0 | U1: =VLOOKUP($A1,$A3:$AG800,21,0) -> 0 | V1: =VLOOKUP($A1,$A3:$AG800,22,0) -> 0 | W1: =VLOOKUP($A1,$A3:$AG800,23,0) -> 0 | X1: =VLOOKUP($A1,$A3:$AG800,24,0) -> 0 | Y1: =VLOOKUP($A1,$A3:$AG800,25,0) -> 0 | Z1: =VLOOKUP($A1,$A3:$AG800,26,0) -> 0 | AA1: =VLOOKUP($A1,$A3:$AG800,27,0) -> 0 | AB1: =VLOOKUP($A1,$A3:$AG800,28,0) -> 0 | AC1: =VLOOKUP($A1,$A3:$AG800,29,0) -> 0 | AD1: =VLOOKUP($A1,$A3:$AG800,30,0) -> 0 | AE1: =VLOOKUP($A1,$A3:$AG800,31,0) -> 0 | AF1: =VLOOKUP($A1,$A3:$AG800,32,0) -> 0 | AG1: =VLOOKUP($A1,$A3:$AG800,33,0) -> 0 | AH1: =VLOOKUP($A1,$A3:$AH800,34,0) -> B | AK1: =VLOOKUP($A1,$A3:$AK800,37,0) -> 0 | AL1: Aufpreis Z nach HS | AM1: Aufpreis HS nachGHS | AO1: =VLOOKUP($A1,$A3:$AO800,41,0) -> M | AP1: =VLOOKUP($A1,$A3:$AP591,42,0) -> 0
A2: Typ SYS | B2: Typ | C2: System | D2: PZ/ZHS | E2: PHS | F2: PGHS | G2: P? | H2: L_Länge | I2: L_Farbe | J2: l_ausf | K2: Doppel | L2: Neuanlage | M2: MATERIAL | N2: Merkmal1 | O2: Mwert1 | P2: Merkmal2 | Q2: Mwert2 | R2: Merkmal3 | S2: Mwert3 | T2: Merkmal4 | U2: Mwert4 | V2: Merkmal5 | W2: Mwert5 | X2: Merkmal6 | Y2: Mwert6 | Z2: Merkmal7 | AA2: Mwert7 | AB2: Merkmal8 | AC2: Mwert8 | AD2: Merkmal9 | AE2: Mwert9 | AF2: Merkmal10 | AG2: Mwert10 | AH2: Netto | AI2: ENET | AJ2: COD ES | AK2: Preisanteil merkmale | AL2: 7.1 | AM2: 22.2 | AN2: Doppel | AO2: Variante ? | AP2: Text | AQ2: fam | AR2: sorteer
A3: =CONCATENATE(B3,"|",C3) -> 333|? | B3: 333 | C3: ? | D3: 0 | E3: 0 | F3: 0 | G3: =D3+E3+F3 -> 0 | H3: 0 | I3: 0 | J3: 0 | K3: D | L3: N | AH3: B | AI3: x | AK3: 0 | AO3: M | AR3: 1
A4: 333H|? | B4: 333H | C4: ? | D4: 0 | E4: 0 | F4: 0 | G4: 0 | H4: 0 | I4: 0 | J4: 0 | K4: H | L4: N | AH4: B | AI4: x | AK4: 0 | AO4: M | AR4: 2
A5: 333K6|? | B5: 333K6 | C5: ? | D5: 0 | E5: 0 | F5: 0 | G5: 0 | H5: 0 | I5: 0 | J5: 0 | K5: D | L5: N | AH5: B | AK5: 0 | AO5: M | AR5: 3
A6: 333T|? | B6: 333T | C6: ? | D6: 0 | E6: 0 | F6: 0 | G6: 0 | H6: 0 | I6: 0 | J6: 0 | K6: D | L6: N | AH6: B | AK6: 0 | AO6: M | AR6: 4
A7: 333M|? | B7: 333M | C7: ? | D7: 1 | E7: 1 | F7: 1 | G7: 3 | H7: 0 | I7: 0 | J7: 0 | K7: D | L7: N | AH7: B | AI7: x | AO7: M | AR7: 5
A8: 333K2|? | B8: 333K2 | C8: ? | D8: 0 | E8: 0 | F8: 0 | G8: 0 | H8: 0 | I8: 0 | J8: 0 | K8: D | L8: N | AH8: B | AK8: 0 | AO8: M | AR8: 6
A9: 333KK|? | B9: 333KK | C9: ? | D9: 0 | E9: 0 | F9: 0 | G9: 0 | H9: 0 | I9: 0 | J9: 0 | K9: D | L9: N | AH9: B | AI9: x | AK9: 0 | AO9: M | AR9: 7
A10: 333KL|? | B10: 333KL | C10: ? | D10: 0 | E10: 0 | F10: 0 | G10: 0 | H10: 0 | I10: 0 | J10: 0 | K10: D | L10: N | AH10: B | AI10: x | AK10: 0 | AO10: M | AR10: 8
A11: 472|? | B11: 472 | C11: ? | D11: 0 | E11: 0 | F11: 0 | G11: 0 | H11: 0 | I11: 0 | J11: 0 | K11: D | L11: N | AH11: B | AK11: 0 | AO11: M | AR11: 9
A12: 472K6|? | B12: 472K6 | C12: ? | D12: 0 | E12: 0 | F12: 0 | G12: 0 | H12: 0 | I12: 0 | J12: 0 | K12: D | L12: N | AH12: B | AK12: 0 | AO12: M | AR12: 10
A13: 555P|? | B13: 555P | C13: ? | D13: 0 | E13: 0 | F13: 0 | G13: 0 | H13: 0 | I13: 0 | J13: 0 | K13: H | L13: N | AH13: B | AI13: x | AK13: 0 | AO13: M | AR13: 11
A14: 555P|? | B14: 555P | C14: ? | D14: 0 | E14: 0 | F14: 0 | G14: 0 | H14: 0 | I14: 0 | J14: 0 | K14: H | L14: N | AH14: B | AI14: x | AK14: 0 | AO14: M | AR14: 12
A15: 325/464|? | B15: 325/464 | C15: ? | D15: 0 | E15: 0 | F15: 0 | G15: 0 | H15: 0 | I15: 0 | J15: 0 | K15: H | L15: N | AH15: B | AI15: x | AK15: 0 | AO15: M | AR15: 13
A16: 777G3|? | B16: 777G3 | C16: ? | D16: 0 | E16: 0 | F16: 0 | G16: 0 | H16: 0 | I16: 0 | J16: 21 | K16: H | L16: N | AH16: B | AI16: x | AJ16: 70.5 | AO16: M | AR16: 14
A17: 393|? | B17: 393 | C17: ? | D17: 0 | E17: 0 | F17: 0 | G17: 0 | H17: 0 | I17: 0 | J17: 0 | K17: H | L17: N | AH17: B | AI17: x | AK17: 0 | AO17: M | AR17: 15
A18: 333STAALSKG3|DIAMANT | B18: 333STAALSKG3 | C18: DIAMANT | D18: 221.59 | E18: 221.59 | F18: 221.59 | G18: 664.77 | H18: 2 | I18: 5 | J18: 0 | K18: D | L18: E | M18: 333DIA | N18: B_AUSF_ST_DUR | O18: SDST | AH18: B | AI18: x | AJ18: 142.9 | AO18: M | AR18: 90
A19: 333TSTAALSKG3|DIAMANT | B19: 333TSTAALSKG3 | C19: DIAMANT | D19: 229.05 | E19: 229.05 | F19: 229.05 | G19: 687.15 | H19: 2 | I19: 5 | J19: 0 | K19: D | L19: E | M19: 333DIA | N19: B_AUSF_ST_DUR | O19: SDST | P19: B_FUNKTION | Q19: FUT | AH19: B | AO19: M | AR19: 91
A20: 333HSTAALSKG3|DIAMANT | B20: 333HSTAALSKG3 | C20: DIAMANT | D20: 199.43 | E20: 199.43 | F20: 199.43 | G20: 598.29 | H20: 10 | I20: 5 | J20: 0 | K20: H | L20: E | M20: 333DIAH | N20: B_AUSF_ST_DUR | O20: SDST | AH20: B | AI20: x | AJ20: 118.3 | AO20: M | AR20: 92
A21: 333K6STAALSKG3|DIAMANT | B21: 333K6STAALSKG3 | C21: DIAMANT | D21: 232.67 | E21: 232.67 | F21: 232.67 | G21: 698.01 | H21: 2 | I21: 5 | J21: 0 | K21: D | L21: E | M21: 333DIA | N21: B_KNAUFAUSF | O21: KNK6 | P21: B_AUSF_ST_DUR | Q21: SDST/DUR | AH21: B | AO21: M | AR21: 93
A22: 333DUR|DIAMANT | B22: 333DUR | C22: DIAMANT | D22: 166.2 | E22: 166.2 | F22: 166.2 | G22: 498.6 | H22: 18 | I22: 3 | J22: 0 | K22: D | L22: E | M22: 333DIA | N22: B_AUSF_ST_DUR | O22: SDDUR | AH22: B | AI22: x | AO22: M | AR22: 94
A23: 333TDUR|DIAMANT | B23: 333TDUR | C23: DIAMANT | D23: 173.66 | E23: 173.66 | F23: 173.66 | G23: 520.98 | H23: 18 | I23: 3 | J23: 0 | K23: D | L23: E | M23: 333DIA | N23: B_AUSF_ST_DUR | O23: SDDUR | P23: B_FUNKTION | Q23: FUT | AH23: B | AI23: x | AO23: M | AR23: 94.1
A24: 333HDUR|DIAMANT | B24: 333HDUR | C24: DIAMANT | D24: 149.54 | E24: 149.54 | F24: 149.54 | G24: 448.62 | H24: 19 | I24: 6 | J24: 0 | K24: H | L24: E | M24: 333DIAH | N24: B_AUSF_ST_DUR | O24: SDDUR | AH24: B | AI24: x | AO24: M | AR24: 95
A25: 333K6DUR|DIAMANT | B25: 333K6DUR | C25: DIAMANT | D25: 174.52 | E25: 174.52 | F25: 174.52 | G25: 523.56 | H25: 18 | I25: 3 | J25: 0 | K25: D | L25: E | M25: 333DIA | N25: B_AUSF_ST_DUR | O25: SDDUR | P25: B_KNAUFAUSF | Q25: KNK6 | AH25: B | AO25: M | AR25: 96
A26: 555PDUR|DIAMANT | B26: 555PDUR | C26: DIAMANT | D26: 174.52 | E26: 174.52 | F26: 174.52 | G26: 523.56 | H26: 0 | I26: 6 | J26: 0 | K26: H | L26: E | M26: 555DIADUR | N26: B_AUSFUEHRUNG_ROHR_PLATTE | O26: RPP | AH26: B | AI26: x | AJ26: 74.5 | AO26: M | AR26: 97
A27: 382DUR|DIAMANT | B27: 382DUR | C27: DIAMANT | D27: 149.54 | E27: 149.54 | F27: 149.54 | G27: 448.62 | H27: 0 | I27: 6 | J27: 4 | K27: H | L27: E | M27: 382DIA | N27: B_TEILENR_HEBEL_10_8_BAU | O27: 200013F013 | AH27: B | AI27: x | AJ27: 68,7 | AO27: M | AR27: 98
A28: 393DUR|DIAMANT | B28: 393DUR | C28: DIAMANT | D28: 191.12 | E28: 191.12 | F28: 191.12 | G28: 573.36 | H28: 0 | I28: 6 | J28: 5 | K28: H | L28: E | M28: 393DIADUR | N28: B_AUSF_ST_DUR | O28: SDDUR | AH28: B | AI28: x | AO28: M | AR28: 99
A29: 333|IX GAMMA | B29: 333 | C29: IX GAMMA | D29: 98.28 | E29: 98.28 | F29: 98.28 | G29: 294.84 | H29: 1 | I29: 7 | J29: 20 | K29: D | L29: E | M29: 333IXGA | AH29: B | AI29: x | AO29: M | AR29: 1
A30: 333SKG2|IX GAMMA | B30: 333SKG2 | C30: IX GAMMA | D30: 105.14 | E30: 105.14 | F30: 105.14 | G30: 315.42 | H30: 33 | I30: 7 | J30: 20 | K30: D | L30: E | M30: 333IXGA SKG2 | AH30: B | AI30: x | AO30: M | AR30: 2
A31: 333H|IX GAMMA | B31: 333H | C31: IX GAMMA | D31: 88.42 | E31: 88.42 | F31: 88.42 | G31: 265.26 | H31: 4 | I31: 8 | J31: 8 | K31: H | L31: E | M31: 333IXGAH | AH31: B | AI31: x | AO31: M | AR31: 2.1
A32: 333HSKG2|IX GAMMA | B32: 333HSKG2 | C32: IX GAMMA | D32: 95.28 | E32: 95.28 | F32: 95.28 | G32: 285.84 | H32: 4 | I32: 8 | J32: 8 | K32: H | L32: E | M32: 333IXGAH SKG2 | AH32: B | AI32: x | AO32: M | AR32: 2.2
A33: 333K6|IX GAMMA | B33: 333K6 | C33: IX GAMMA | D33: 103.17 | E33: 103.17 | F33: 103.17 | G33: 309.51 | H33: 1 | I33: 7 | J33: 20 | K33: D | L33: E | M33: 333IXGA | N33: B_KNAUFAUSF | O33: KNK6 | AH33: B | AO33: M | AR33: 2.3
A34: 333K6SKG2|IX GAMMA | B34: 333K6SKG2 | C34: IX GAMMA | D34: 110.03 | E34: 110.03 | F34: 110.03 | G34: 330.09 | H34: 33 | I34: 7 | J34: 20 | K34: D | L34: E | M34: 333IXGA SKG2 | N34: B_KNAUFAUSF | O34: KNK6 | AH34: B | AO34: M | AR34: 2.4
A35: 333T|IX GAMMA | B35: 333T | C35: IX GAMMA | D35: 105.74 | E35: 105.74 | F35: 105.74 | G35: 317.22 | H35: 1 | I35: 7 | J35: 3 | K35: D | L35: E | M35: 333IXGA | N35: B_FUNKTIONEN | O35: FUT | AH35: B | AO35: M | AR35: 4
A36: 333TSKG2|IX GAMMA | B36: 333TSKG2 | C36: IX GAMMA | D36: 112.6 | E36: 112.6 | F36: 112.6 | G36: 337.8 | H36: 33 | I36: 7 | J36: 3 | K36: D | L36: E | M36: 333IXGA SKG2 | N36: B_FUNKTIONEN | O36: FUT | AH36: B | AO36: M | AR36: 5
A37: 333FRL|IX GAMMA | B37: 333FRL | C37: IX GAMMA | D37: 108.47 | E37: 108.47 | F37: 108.47 | G37: 325.41 | H37: 24 | I37: 7 | J37: 0 | K37: D | L37: E | M37: 333IXGA FRL | AH37: B | AI37: x | AO37: M | AR37: 7
A38: 333FRLSKG2|IX GAMMA | B38: 333FRLSKG2 | C38: IX GAMMA | D38: 115.33 | E38: 115.33 | F38: 115.33 | G38: 345.99 | H38: 24 | I38: 7 | J38: 0 | K38: D | L38: E | M38: 333IXGA FRL SKG2 | AH38: B | AI38: x | AO38: M | AR38: 8
A39: 333M|IX GAMMA | B39: 333M | C39: IX GAMMA | D39: 129.38 | E39: 129.38 | F39: 129.38 | G39: 388.14 | H39: 3 | I39: 7 | J39: 20 | K39: D | L39: E | M39: 333IXGAM | AH39: B | AI39: x | AO39: M | AR39: 12
A40: 333MSKG2|IX GAMMA | B40: 333MSKG2 | C40: IX GAMMA | D40: 136.24 | E40: 136.24 | F40: 136.24 | G40: 408.72 | H40: 3 | I40: 7 | J40: 20 | K40: D | L40: E | M40: 333IXGAM SKG2 | AH40: B | AI40: x | AO40: M | AR40: 13
A41: 333MT|IX GAMMA | B41: 333MT | C41: IX GAMMA | D41: 136.84 | E41: 136.84 | F41: 136.84 | G41: 410.52 | H41: 3 | I41: 7 | J41: 3 | K41: D | L41: E | M41: 333IXGAM | N41: B_FUNKTIONEN | O41: FUT | AH41: B | AN41: H | AO41: M | AR41: 15
A42: 333HFRL|IX GAMMA | B42: 333HFRL | C42: IX GAMMA | D42: 98.61 | E42: 98.61 | F42: 98.61 | G42: 295.83 | H42: 25 | I42: 8 | J42: 0 | K42: H | L42: E | M42: 333IXGAH FRL | AH42: B | AI42: x | AO42: M | AR42: 24
A43: 333HFRLSKG2|IX GAMMA | B43: 333HFRLSKG2 | C43: IX GAMMA | D43: 105.47 | E43: 105.47 | F43: 105.47 | G43: 316.41 | H43: 25 | I43: 8 | J43: 0 | K43: H | L43: E | M43: 333IXGAH FRL SKG2 | AH43: B | AI43: x | AO43: M | AR43: 25
A44: 333MH|IX GAMMA | B44: 333MH | C44: IX GAMMA | D44: 116.45 | E44: 116.45 | F44: 116.45 | G44: 349.35 | H44: 17 | I44: 8 | J44: 0 | K44: H | L44: E | M44: 333IXGAHM | AH44: B | AI44: x | AO44: M | AR44: 27
A45: 333MHSKG2|IX GAMMA | B45: 333MHSKG2 | C45: IX GAMMA | D45: 123.31 | E45: 123.31 | F45: 123.31 | G45: 369.93 | H45: 17 | I45: 8 | J45: 0 | K45: H | L45: E | M45: 333IXGAHM SKG2 | AH45: B | AI45: x | AO45: M | AR45: 28
A46: 333K1|IX GAMMA | B46: 333K1 | C46: IX GAMMA | D46: 109.38 | E46: 109.38 | F46: 109.38 | G46: 328.14 | H46: 1 | I46: 7 | J46: 20 | K46: D | L46: E | M46: 333IXGA | N46: B_KNAUFAUSF | O46: KNK1 | AH46: B | AO46: M | AR46: 36
A47: 333K1SKG2|IX GAMMA | B47: 333K1SKG2 | C47: IX GAMMA | D47: 116.24 | E47: 116.24 | F47: 116.24 | G47: 348.72 | H47: 33 | I47: 7 | J47: 20 | K47: D | L47: E | M47: 333IXGA SKG2 | N47: B_KNAUFAUSF | O47: KNK1 | AH47: B | AO47: M | AR47: 37
A48: 333K2|IX GAMMA | B48: 333K2 | C48: IX GAMMA | D48: 109.38 | E48: 109.38 | F48: 109.38 | G48: 328.14 | H48: 1 | I48: 7 | J48: 20 | K48: D | L48: E | M48: 333IXGA | N48: B_KNAUFAUSF | O48: KNK2 | AH48: B | AO48: M | AR48: 39
A49: 333K2SKG2|IX GAMMA | B49: 333K2SKG2 | C49: IX GAMMA | D49: 116.24 | E49: 116.24 | F49: 116.24 | G49: 348.72 | H49: 33 | I49: 7 | J49: 20 | K49: D | L49: E | M49: 333IXGA SKG2 | N49: B_KNAUFAUSF | O49: KNK2 | AH49: B | AO49: M | AR49: 40
A50: 333K3|IX GAMMA | B50: 333K3 | C50: IX GAMMA | D50: 109.38 | E50: 109.38 | F50: 109.38 | G50: 328.14 | H50: 1 | I50: 7 | J50: 20 | K50: D | L50: E | M50: 333IXGA | N50: B_KNAUFAUSF | O50: KNK3 | AH50: B | AO50: M | AR50: 42
A51: 333K3SKG2|IX GAMMA | B51: 333K3SKG2 | C51: IX GAMMA | D51: 116.24 | E51: 116.24 | F51: 116.24 | G51: 348.72 | H51: 33 | I51: 7 | J51: 20 | K51: D | L51: E | M51: 333IXGA SKG2 | N51: B_KNAUFAUSF | O51: KNK3 | AH51: B | AO51: M | AR51: 43
A52: 333K4|IX GAMMA | B52: 333K4 | C52: IX GAMMA | D52: 109.38 | E52: 109.38 | F52: 109.38 | G52: 328.14 | H52: 1 | I52: 7 | J52: 20 | K52: D | L52: E | M52: 333IXGA | N52: B_KNAUFAUSF | O52: KNK4 | AH52: B | AO52: M | AR52: 45
A53: 333K4SKG2|IX GAMMA | B53: 333K4SKG2 | C53: IX GAMMA | D53: 116.24 | E53: 116.24 | F53: 116.24 | G53: 348.72 | H53: 33 | I53: 7 | J53: 20 | K53: D | L53: E | M53: 333IXGA SKG2 | N53: B_KNAUFAUSF | O53: KNK4 | AH53: B | AO53: M | AR53: 46
A54: 333K7|IX GAMMA | B54: 333K7 | C54: IX GAMMA | D54: 139.48 | E54: 139.48 | F54: 139.48 | G54: 418.44 | H54: 30 | I54: 10 | J54: 0 | K54: D | L54: E | M54: 333IXGA K7 SKG2 | AH54: B | AO54: M | AR54: 48
A55: 333K7SKG2|IX GAMMA | B55: 333K7SKG2 | C55: IX GAMMA | D55: 146.34 | E55: 146.34 | F55: 146.34 | G55: 439.02 | H55: 30 | I55: 10 | J55: 0 | K55: D | L55: E | M55: 333IXGA K7 SKG2 | AH55: B | AO55: M | AR55: 49
A56: 333K6KRU|IX GAMMA | B56: 333K6KRU | C56: IX GAMMA | D56: 126.39 | E56: 126.39 | F56: 126.39 | G56: 379.17 | H56: 1 | I56: 7 | J56: 20 | K56: D | L56: E | M56: 333IXGA KRU | N56: B_KNAUFAUSF | O56: KNK6 | AH56: B | AO56: M | AR56: 50
A57: 333MK6|IX GAMMA | B57: 333MK6 | C57: IX GAMMA | D57: 135.84 | E57: 135.84 | F57: 135.84 | G57: 407.52 | H57: 3 | I57: 7 | J57: 20 | K57: D | L57: E | M57: 333IXGAM | N57: B_KNAUFAUSF | O57: KNK6 | AH57: B | AO57: M | AR57: 51
A58: 333MK6SKG2|IX GAMMA | B58: 333MK6SKG2 | C58: IX GAMMA | D58: 142.7 | E58: 142.7 | F58: 142.7 | G58: 428.1 | H58: 3 | I58: 7 | J58: 20 | K58: D | L58: E | M58: 333IXGAM SKG2 | N58: B_KNAUFAUSF | O58: KNK6 | AH58: B | AO58: M | AR58: 52
A59: 333MK7|IX GAMMA | B59: 333MK7 | C59: IX GAMMA | D59: 172.15 | E59: 172.15 | F59: 172.15 | G59: 516.45 | H59: 31 | I59: 10 | J59: 0 | K59: D | L59: E | M59: 333IXGAM K7 SKG2 | AH59: B | AO59: M | AR59: 58
A60: 333MK7SKG2|IX GAMMA | B60: 333MK7SKG2 | C60: IX GAMMA | D60: 179.01 | E60: 179.01 | F60: 179.01 | G60: 537.03 | H60: 31 | I60: 10 | J60: 0 | K60: D | L60: E | M60: 333IXGAM K7 SKG2 | AH60: B | AO60: M | AR60: 59
A61: 333KL|IX GAMMA | B61: 333KL | C61: IX GAMMA | D61: 103.17 | E61: 103.17 | F61: 103.17 | G61: 309.51 | H61: 5 | I61: 7 | J61: 18 | K61: D | L61: E | M61: 333IXGAKL | AH61: B | AI61: x | AO61: M | AR61: 62
A62: 333KLK6|IX GAMMA | B62: 333KLK6 | C62: IX GAMMA | D62: 103.17 | E62: 103.17 | F62: 103.17 | G62: 309.51 | H62: 5 | I62: 7 | J62: 0 | K62: D | L62: E | M62: 333IXGAKL | N62: B_KNAUFAUSF | O62: KNK6 | AH62: B | AO62: M | AR62: 63
A63: 333KLSKG2|IX GAMMA | B63: 333KLSKG2 | C63: IX GAMMA | D63: 110.03 | E63: 110.03 | F63: 110.03 | G63: 330.09 | H63: 5 | I63: 7 | J63: 18 | K63: D | L63: E | M63: 333IXGAKL SKG2 | AH63: B | AI63: x | AO63: M | AR63: 64
A64: 333KLT|IX GAMMA | B64: 333KLT | C64: IX GAMMA | D64: 110.63 | E64: 110.63 | F64: 110.63 | G64: 331.89 | H64: 5 | I64: 7 | J64: 0 | K64: D | L64: E | M64: 333IXGAKL | N64: B_FUNKTIONEN | O64: FUT | AH64: B | AO64: M | AR64: 65
A65: 333RI-10|IX GAMMA | B65: 333RI-10 | C65: IX GAMMA | D65: 121.44 | E65: 121.44 | F65: 121.44 | G65: 364.32 | H65: 1 | I65: 7 | J65: 0 | K65: D | L65: E | M65: 333IXGA | N65: B_MITNEHMERAUSF | O65: MIRI10 | AH65: B | AO65: M | AR65: 65.5
A66: 333RI-14|IX GAMMA | B66: 333RI-14 | C66: IX GAMMA | D66: 121.44 | E66: 121.44 | F66: 121.44 | G66: 364.32 | H66: 1 | I66: 7 | J66: 0 | K66: D | L66: E | M66: 333IXGA | N66: B_MITNEHMERAUSF | O66: MIRI14 | AH66: B | AO66: M | AR66: 65.6
A67: =CONCATENATE(B67,"|",C67) -> 472|IX GAMMA | B67: 472 | C67: IX GAMMA | D67: 108.61 | E67: 108.61 | F67: 108.61 | G67: =D67+E67+F67 -> 325.83 | H67: 1 | I67: 7 | J67: 0 | K67: D | L67: E | M67: 2222IXGA | AH67: B | AO67: M | AR67: 66
A68: 472H|IX GAMMA | B68: 472H | C68: IX GAMMA | D68: 97.72 | E68: 97.72 | F68: 97.72 | G68: 293.16 | H68: 4 | I68: 8 | J68: 8 | K68: H | L68: E | M68: 2222IXGAH | AH68: B | AO68: M | AR68: 67
A69: 472K6|IX GAMMA | B69: 472K6 | C69: IX GAMMA | D69: 114.04 | E69: 114.04 | F69: 114.04 | G69: 342.12 | H69: 1 | I69: 7 | J69: 0 | K69: D | L69: E | M69: 2222IXGA | N69: B_KNAUFAUSF | O69: KNK6 | AH69: B | AO69: M | AR69: 68
A70: 555P|IX GAMMA | B70: 555P | C70: IX GAMMA | D70: 103.17 | E70: 103.17 | F70: 103.17 | G70: 309.51 | H70: 0 | I70: 8 | J70: 0 | K70: H | L70: E | M70: 555IXGA | N70: B_AUSFUEHRUNG_ROHR_PLATTE | O70: RPP | AH70: B | AI70: x | AO70: M | AR70: 69
A71: 555PSKG2*|IX GAMMA | B71: 555PSKG2* | C71: IX GAMMA | D71: 110.03 | E71: 110.03 | F71: 110.03 | G71: 330.09 | H71: 0 | I71: 8 | J71: 0 | K71: H | L71: E | M71: 555IXGA | AH71: B | AI71: x | AO71: M | AR71: 70
A72: 325L|IX GAMMA | B72: 325L | C72: IX GAMMA | D72: 88.42 | E72: 88.42 | F72: 88.42 | G72: 265.26 | H72: 0 | I72: 8 | J72: 0 | K72: H | L72: E | M72: 325IXGA | N72: B_AUSFUEHRUNG_325 | O72: LIPS | AH72: B | AO72: M | AR72: 71
A73: 325L/1754DR1|IX GAMMA | B73: 325L/1754DR1 | C73: IX GAMMA | D73: 280.62 | E73: 280.62 | F73: 280.62 | G73: 841.86 | H73: 0 | I73: 8 | J73: 0 | K73: H | L73: E | M73: 325IXGA | N73: B_AUSFUEHRUNG_325 | O73: LIPS | AH73: B | AO73: M | AR73: 72
A74: 325L/1754DR2|IX GAMMA | B74: 325L/1754DR2 | C74: IX GAMMA | D74: 280.62 | E74: 280.62 | F74: 280.62 | G74: 841.86 | H74: 0 | I74: 8 | J74: 0 | K74: H | L74: E | M74: 325IXGA | N74: B_AUSFUEHRUNG_325 | O74: LIPS | AH74: B | AO74: M | AR74: 73
A75: 777G3|IX GAMMA | B75: 777G3 | C75: IX GAMMA | D75: 131.32 | E75: 131.32 | F75: 131.32 | G75: 393.96 | H75: 0 | I75: 0 | J75: 21 | K75: H | L75: E | M75: 777IXGAG3 | AH75: B | AI75: x | AJ75: 70.5 | AO75: M | AR75: 75
A76: 777G3-HB60|IX GAMMA | B76: 777G3-HB60 | C76: IX GAMMA | D76: 143.18 | E76: 143.18 | F76: 143.18 | G76: 429.54 | H76: 0 | I76: 0 | J76: 21 | K76: H | L76: E | M76: 777IXGAG3 | N76: B_BUEGELLAENGE | O76: BU60 | AH76: B | AI76: x | AJ76: 70.5 | AO76: M | AR76: 76
A77: 777G3-HB120|IX GAMMA | B77: 777G3-HB120 | C77: IX GAMMA | D77: 145.9 | E77: 145.9 | F77: 145.9 | G77: 437.7 | H77: 0 | I77: 0 | J77: 21 | K77: H | L77: E | M77: 777IXGAG3 | N77: B_BUEGELLAENGE | O77: BU120 | AH77: B | AI77: x | AJ77: 70.5 | AO77: M | AR77: 77
A78: 382LI|IX GAMMA | B78: 382LI | C78: IX GAMMA | D78: 88.42 | E78: 88.42 | F78: 88.42 | G78: 265.26 | H78: 0 | I78: 8 | J78: 4 | K78: H | L78: E | M78: 382IXGA | N78: B_TEILENR_HEBEL_10_8_BAU | O78: 200013F013 | P78: B_AUSFUEHRUNG_LI_RE | Q78: AGLI | AH78: B | AI78: x | AO78: M | AR78: 78
A79: 382RE|IX GAMMA | B79: 382RE | C79: IX GAMMA | D79: 88.42 | E79: 88.42 | F79: 88.42 | G79: 265.26 | H79: 0 | I79: 8 | J79: 4 | K79: H | L79: E | M79: 382IXGA | N79: B_TEILENR_HEBEL_10_8_BAU | O79: 200013F013 | P79: B_AUSFUEHRUNG_LI_RE | Q79: AGRE | AH79: B | AI79: x | AO79: M | AR79: 79
A80: 393|IX GAMMA | B80: 393 | C80: IX GAMMA | D80: 160.48 | E80: 160.48 | F80: 160.48 | G80: 481.44 | H80: 0 | I80: 8 | J80: 5 | K80: H | L80: E | M80: 393IXGA | AH80: B | AI80: x | AO80: M | AR80: 80
A81: 419 LIPS|IX GAMMA | B81: 419 LIPS | C81: IX GAMMA | D81: 113 | E81: 113 | F81: 113 | G81: 339 | H81: 0 | I81: 9 | J81: 0 | K81: H | L81: E | M81: 419IXGA LIPS | AH81: B | AO81: M | AR81: 81
A82: 3020/473|IX GAMMA | B82: 3020/473 | C82: IX GAMMA | D82: 0 | E82: 0 | F82: 0 | G82: 0 | H82: 0 | I82: 0 | J82: 0 | K82: H | L82: E | M82: 3020/473IXHT | N82: B_RUNDMUTTER_3020 | O82: 217060 | P82: B_TNR_FUEHRUNGSDUEBEL_BAUZYL | Q82: 217128F | R82: B_TNR_SCHLIESSBLECH_BAUZYL | S82: 222750 002 | T82: B_TNR_WERKZEUG_BAUZYLINDER | U82: 204271 002 | AH82: B | AO82: M | AR82: 84
A83: 3020/473 ESP|IX GAMMA | B83: 3020/473 ESP | C83: IX GAMMA | D83: 0 | E83: 0 | F83: 0 | G83: 0 | H83: 0 | I83: 0 | J83: 0 | K83: H | L83: E | M83: 3020/473IXHT | N83: B_RUNDMUTTER_3020 | O83: 217060 | P83: B_TNR_DREHSTANGE_BAUZYL | Q83: 205185 001 | R83: B_TNR_ANSCHLAGSTIFT_BAUZYL | S83: 207257F002 | T83: B_TNR_SCHLIESSHAKEN_BAUZYL | U83: 204476F002 | V83: B_TNR_SCHLIESSHAKEN_2_BAUZYL | W83: 204478F002 | X83: B_TNR_SCHLAUFEN_UNTERTEIL | Y83: 218420F002 | Z83: B_TNR_SCHLAUFEN_OBERTEIL | AA83: 218418F002 | AB83: B_TNR_SCHLIESSBLECH_BAUZYL | AC83: 222750 002 | AD83: B_TNR_FUEHRUNGSDUEBEL_BAUZYL | AE83: 217128F | AF83: B_TNR_BUCHSE_DREHSTANGE | AG83: 218422F036 | AH83: B | AO83: M | AR83: 85
A84: 3020/4015|IX GAMMA | B84: 3020/4015 | C84: IX GAMMA | D84: 0 | E84: 0 | F84: 0 | G84: 0 | H84: 0 | I84: 0 | J84: 0 | K84: H | L84: E | M84: 3020/4015IXHT | N84: B_RUNDMUTTER_3020 | O84: 217060 | P84: B_TNR_FUEHRUNGSDUEBEL_BAUZYL | Q84: 217128F | R84: B_TNR_SCHLIESSBLECH_BAUZYL | S84: 222750 002 | T84: B_TNR_WERKZEUG_BAUZYLINDER | U84: 204271 002 | AH84: B | AO84: M | AR84: 86
A85: 3020/4015 ESP|IX GAMMA | B85: 3020/4015 ESP | C85: IX GAMMA | D85: 0 | E85: 0 | F85: 0 | G85: 0 | H85: 0 | I85: 0 | J85: 0 | K85: H | L85: E | M85: 3020/4015IXHT | N85: B_RUNDMUTTER_3020 | O85: 217060 | P85: B_TNR_DREHSTANGE_BAUZYL | Q85: 205185 001 | R85: B_TNR_ANSCHLAGSTIFT_BAUZYL | S85: 207257F002 | T85: B_TNR_SCHLIESSHAKEN_BAUZYL | U85: 204476F002 | V85: B_TNR_SCHLIESSHAKEN_2_BAUZYL | W85: 204478F002 | X85: B_TNR_SCHLAUFEN_UNTERTEIL | Y85: 218420F002 | Z85: B_TNR_SCHLAUFEN_OBERTEIL | AA85: 218418F002 | AB85: B_TNR_SCHLIESSBLECH_BAUZYL | AC85: 222750 002 | AD85: B_TNR_FUEHRUNGSDUEBEL_BAUZYL | AE85: 217128F | AF85: B_TNR_BUCHSE_DREHSTANGE | AG85: 218422F036 | AH85: B | AO85: M | AR85: 87
A86: |IX GAMMA | C86: IX GAMMA | D86: 0 | E86: 0 | F86: 0 | G86: 0 | H86: 0 | I86: 0 | J86: 0 | L86: E | M86: 235271 | AH86: B | AO86: M
A87: 333|IX10KG | B87: 333 | C87: IX10KG | D87: 162.84 | E87: 162.84 | F87: 162.84 | G87: 488.52 | H87: 1 | I87: 1 | J87: 20 | K87: D | L87: E | M87: 333IXKG | AH87: B | AI87: x | AJ87: 1 | AO87: M | AR87: 1
A88: 333H|IX10KG | B88: 333H | C88: IX10KG | D88: 146.53 | E88: 146.53 | F88: 146.53 | G88: 439.59 | H88: 4 | I88: 4 | J88: 8 | K88: H | L88: E | M88: 333IXKGH | AH88: B | AI88: x | AJ88: 70 | AO88: M | AR88: 2.1
A89: 333K6|IX10KG | B89: 333K6 | C89: IX10KG | D89: 170.99 | E89: 170.99 | F89: 170.99 | G89: 512.97 | H89: 1 | I89: 1 | J89: 20 | K89: D | L89: E | M89: 333IXKG | N89: B_KNAUFAUSF | O89: KNK6 | AH89: B | AO89: M | AR89: 2.3
A90: 333T|IX10KG | B90: 333T | C90: IX10KG | D90: 170.3 | E90: 170.3 | F90: 170.3 | G90: 510.9 | H90: 1 | I90: 1 | J90: 3 | K90: D | L90: E | M90: 333IXKG | N90: B_FUNKTIONEN | O90: FUT | AH90: B | AO90: M | AR90: 4
A91: 333FRL|IX10KG | B91: 333FRL | C91: IX10KG | D91: 173.03 | E91: 173.03 | F91: 173.03 | G91: 519.09 | H91: 24 | I91: 1 | J91: 0 | K91: D | L91: E | M91: 333IXKG | AH91: B | AI91: x | AJ91: 102.1 | AO91: M | AR91: 7
A92: 333M|IX10KG | B92: 333M | C92: IX10KG | D92: 193.93 | E92: 193.93 | F92: 193.93 | G92: 581.79 | H92: 3 | I92: 1 | J92: 20 | K92: D | L92: E | M92: 333IXKGM | AH92: B | AI92: x | AO92: M | AR92: 12
A93: 333MT|IX10KG | B93: 333MT | C93: IX10KG | D93: 201.39 | E93: 201.39 | F93: 201.39 | G93: 604.17 | H93: 3 | I93: 1 | J93: 3 | K93: D | L93: E | M93: 333IXKGM | N93: B_FUNKTIONEN | O93: FUT | AH93: B | AO93: M | AR93: 15
A94: 333HFRL|IX10KG | B94: 333HFRL | C94: IX10KG | D94: 156.72 | E94: 156.72 | F94: 156.72 | G94: 470.16 | H94: 25 | I94: 4 | J94: 8 | K94: H | L94: E | M94: 333IXKGH | O94: MIFRLIX | AH94: B | AI94: x | AJ94: 70 | AO94: M | AR94: 24
A95: 333MH|IX10KG | B95: 333MH | C95: IX10KG | D95: 174.54 | E95: 174.54 | F95: 174.54 | G95: 523.62 | H95: 17 | I95: 4 | J95: 0 | K95: H | L95: E | M95: 333IXKGHM | AH95: B | AI95: x | AO95: M | AR95: 27
A96: 333K1|IX10KG | B96: 333K1 | C96: IX10KG | D96: 177.2 | E96: 177.2 | F96: 177.2 | G96: 531.6 | H96: 1 | I96: 1 | J96: 20 | K96: D | L96: E | M96: 333IXKG | N96: B_KNAUFAUSF | O96: KNK1 | AH96: B | AO96: M | AR96: 36
A97: 333K2|IX10KG | B97: 333K2 | C97: IX10KG | D97: 177.2 | E97: 177.2 | F97: 177.2 | G97: 531.6 | H97: 1 | I97: 1 | J97: 20 | K97: D | L97: E | M97: 333IXKG | N97: B_KNAUFAUSF | O97: KNK2 | AH97: B | AO97: M | AR97: 39
A98: 333K3|IX10KG | B98: 333K3 | C98: IX10KG | D98: 177.2 | E98: 177.2 | F98: 177.2 | G98: 531.6 | H98: 1 | I98: 1 | J98: 20 | K98: D | L98: E | M98: 333IXKG | N98: B_KNAUFAUSF | O98: KNK3 | AH98: B | AO98: M | AR98: 42
A99: 333K4|IX10KG | B99: 333K4 | C99: IX10KG | D99: 177.2 | E99: 177.2 | F99: 177.2 | G99: 531.6 | H99: 1 | I99: 1 | J99: 0 | K99: D | L99: E | M99: 333IXKG | N99: B_KNAUFAUSF | O99: KNK4 | AH99: B | AO99: M | AR99: 45
A100: 333MK6|IX10KG | B100: 333MK6 | C100: IX10KG | D100: 203.65 | E100: 203.65 | F100: 203.65 | G100: 610.95 | H100: 3 | I100: 1 | J100: 20 | K100: D | L100: E | M100: 333IXKGM | N100: B_KNAUFAUSF | O100: KNK6 | AH100: B | AO100: M | AR100: 51
A101: 472|IX10KG | B101: 472 | C101: IX10KG | D101: 187.29 | E101: 187.29 | F101: 187.29 | G101: 561.87 | H101: 26 | I101: 1 | J101: 0 | K101: D | L101: E | M101: 2222IXKG | AH101: B | AO101: M | AR101: 66
A102: 472H|IX10KG | B102: 472H | C102: IX10KG | D102: 168.52 | E102: 168.52 | F102: 168.52 | G102: 505.56 | H102: 27 | I102: 4 | J102: 8 | K102: H | L102: E | M102: 2222HIXKG | AH102: B | AO102: M | AR102: 67
A103: 472K6|IX10KG | B103: 472K6 | C103: IX10KG | D103: 196.66 | E103: 196.66 | F103: 196.66 | G103: 589.98 | H103: 26 | I103: 1 | J103: 0 | K103: D | L103: E | M103: 2222IXKG | N103: B_KNAUFAUSF | O103: KNK6 | AH103: B | AO103: M | AR103: 68
A104: 555P|IX10KG | B104: 555P | C104: IX10KG | D104: 170.99 | E104: 170.99 | F104: 170.99 | G104: 512.97 | H104: 0 | I104: 4 | J104: 0 | K104: H | L104: E | M104: 555IXKG | N104: B_AUSFUEHRUNG_ROHR_PLATTE | O104: RPP | AH104: B | AI104: x | AJ104: 62.2 | AO104: M | AR104: 69
A105: 777G3|IX10KG | B105: 777G3 | C105: IX10KG | D105: 189.43 | E105: 189.43 | F105: 189.43 | G105: 568.29 | H105: 0 | I105: 0 | J105: 21 | K105: H | L105: E | M105: 777IXKGG3 | AH105: B | AI105: x | AJ105: 1 | AO105: M | AR105: 75
A106: 777G3-HB60|IX10KG | B106: 777G3-HB60 | C106: IX10KG | D106: 201.29 | E106: 201.29 | F106: 201.29 | G106: 603.87 | H106: 0 | I106: 0 | J106: 21 | K106: H | L106: E | M106: 777IXKGG3 | N106: B_BUEGELLAENGE | O106: BU60 | AH106: B | AI106: x | AN106: H | AO106: M | AR106: 76
A107: 393|IX10KG | B107: 393 | C107: IX10KG | D107: 187.29 | E107: 187.29 | F107: 187.29 | G107: 561.87 | H107: 0 | I107: 4 | J107: 5 | K107: H | L107: E | M107: 393IXKG | AH107: B | AI107: x | AJ107: 110.6 | AO107: M | AR107: 80
A108: |IX10KG | C108: IX10KG | D108: 0 | E108: 0 | F108: 0 | G108: 0 | H108: 0 | I108: 0 | J108: 0 | L108: E | M108: 235271 | AH108: B | AO108: M
A109: 333|IX5HT | B109: 333 | C109: IX5HT | D109: 118.19 | E109: 118.19 | F109: 118.19 | G109: 354.57 | H109: 1 | I109: 1 | J109: 20 | K109: D | L109: E | M109: 333IX5HT | AH109: B | AI109: x | AO109: M | AR109: 1
A110: 333H|IX5HT | B110: 333H | C110: IX5HT | D110: 106.36 | E110: 106.36 | F110: 106.36 | G110: 319.08 | H110: 4 | I110: 4 | J110: 8 | K110: H | L110: E | M110: 333IX5HTH | AH110: B | AI110: x | AO110: M | AR110: 2.1
A111: 333K6|IX5HT | B111: 333K6 | C111: IX5HT | D111: 124.06 | E111: 124.06 | F111: 124.06 | G111: 372.18 | H111: 1 | I111: 1 | J111: 20 | K111: D | L111: E | M111: 333IX5HT | N111: B_KNAUFAUSF | O111: KNK6 | AH111: B | AO111: M | AR111: 2.3
A112: 333T|IX5HT | B112: 333T | C112: IX5HT | D112: 125.65 | E112: 125.65 | F112: 125.65 | G112: 376.95 | H112: 1 | I112: 1 | J112: 3 | K112: D | L112: E | M112: 333IX5HT | N112: B_FUNKTIONEN | O112: FUT | AH112: B | AO112: M | AR112: 4
A113: 333FRL|IX5HT | B113: 333FRL | C113: IX5HT | D113: 128.38 | E113: 128.38 | F113: 128.38 | G113: 385.14 | H113: 24 | I113: 1 | J113: 0 | K113: D | L113: E | M113: 333IX5HT FRL | AH113: B | AI113: x | AO113: M | AR113: 7
A114: 333M|IX5HT | B114: 333M | C114: IX5HT | D114: 149.31 | E114: 149.31 | F114: 149.31 | G114: 447.93 | H114: 3 | I114: 1 | J114: 20 | K114: D | L114: E | M114: 333IX5HTM | AH114: B | AI114: x | AO114: M | AR114: 12
A115: 333MT|IX5HT | B115: 333MT | C115: IX5HT | D115: 156.77 | E115: 156.77 | F115: 156.77 | G115: 470.31 | H115: 3 | I115: 1 | J115: 3 | K115: D | L115: E | M115: 333IX5HTM | N115: B_FUNKTIONEN | O115: FUT | AH115: B | AO115: M | AR115: 15
A116: 333HFRL|IX5HT | B116: 333HFRL | C116: IX5HT | D116: 116.55 | E116: 116.55 | F116: 116.55 | G116: 349.65 | H116: 25 | I116: 4 | J116: 8 | K116: H | L116: E | M116: 333IX5HTH FRL | AH116: B | AI116: x | AO116: M | AR116: 24
A117: 333MH|IX5HT | B117: 333MH | C117: IX5HT | D117: 134.34 | E117: 134.34 | F117: 134.34 | G117: 403.02 | H117: 17 | I117: 4 | J117: 0 | K117: H | L117: E | M117: 333IX5HTHM | AH117: B | AI117: x | AO117: M | AR117: 27
A118: 333K1|IX5HT | B118: 333K1 | C118: IX5HT | D118: 130.27 | E118: 130.27 | F118: 130.27 | G118: 390.81 | H118: 1 | I118: 1 | J118: 20 | K118: D | L118: E | M118: 333IX5HT | N118: B_KNAUFAUSF | O118: KNK1 | AH118: B | AO118: M | AR118: 36
A119: 333K2|IX5HT | B119: 333K2 | C119: IX5HT | D119: 130.27 | E119: 130.27 | F119: 130.27 | G119: 390.81 | H119: 1 | I119: 1 | J119: 20 | K119: D | L119: E | M119: 333IX5HT | N119: B_KNAUFAUSF | O119: KNK2 | AH119: B | AO119: M | AR119: 39
A120: 333K3|IX5HT | B120: 333K3 | C120: IX5HT | D120: 130.27 | E120: 130.27 | F120: 130.27 | G120: 390.81 | H120: 1 | I120: 1 | J120: 20 | K120: D | L120: E | M120: 333IX5HT | N120: B_KNAUFAUSF | O120: KNK3 | AH120: B | AO120: M | AR120: 42
A121: 333K4|IX5HT | B121: 333K4 | C121: IX5HT | D121: 130.27 | E121: 130.27 | F121: 130.27 | G121: 390.81 | H121: 1 | I121: 1 | J121: 0 | K121: D | L121: E | M121: 333IX5HT | N121: B_KNAUFAUSF | O121: KNK4 | AH121: B | AO121: M | AR121: 45
A122: 333MK6|IX5HT | B122: 333MK6 | C122: IX5HT | D122: 156.73 | E122: 156.73 | F122: 156.73 | G122: 470.19 | H122: 3 | I122: 1 | J122: 20 | K122: D | L122: E | M122: 333IX5HTM | N122: B_KNAUFAUSF | O122: KNK6 | AH122: B | AO122: M | AR122: 51
A123: 333KL|IX5HT | B123: 333KL | C123: IX5HT | D123: 124.06 | E123: 124.06 | F123: 124.06 | G123: 372.18 | H123: 5 | I123: 1 | J123: 18 | K123: D | L123: E | M123: 333IX5HTKL | AH123: B | AI123: x | AO123: M | AR123: 62
A124: 333KLT|IX5HT | B124: 333KLT | C124: IX5HT | D124: 131.52 | E124: 131.52 | F124: 131.52 | G124: 394.56 | H124: 5 | I124: 1 | J124: 0 | K124: D | L124: E | M124: 333IX5HTKL | N124: B_FUNKTIONEN | O124: FUT | AH124: B | AO124: M | AR124: 65
A125: 472|IX5HT | B125: 472 | C125: IX5HT | D125: 122.3 | E125: 122.3 | F125: 122.3 | G125: 366.9 | H125: 1 | I125: 1 | J125: 0 | K125: D | L125: E | M125: 2222IX5HT | AH125: B | AO125: M | AR125: 66
A126: 472H|IX5HT | B126: 472H | C126: IX5HT | D126: 110.04 | E126: 110.04 | F126: 110.04 | G126: 330.12 | H126: 4 | I126: 4 | J126: 8 | K126: H | L126: E | M126: 2222HIX5HT | AH126: B | AO126: M | AR126: 67
A127: 472K6|IX5HT | B127: 472K6 | C127: IX5HT | D127: 128.41 | E127: 128.41 | F127: 128.41 | G127: 385.23 | H127: 1 | I127: 1 | J127: 0 | K127: D | L127: E | M127: 2222IX5HT | N127: B_KNAUFAUSF | O127: KNK6 | AH127: B | AO127: M | AR127: 68
A128: 555P|IX5HT | B128: 555P | C128: IX5HT | D128: 124.06 | E128: 124.06 | F128: 124.06 | G128: 372.18 | H128: 0 | I128: 4 | J128: 0 | K128: H | L128: E | M128: 555IX5HT | N128: B_AUSFUEHRUNG_ROHR_PLATTE | O128: RPP | AH128: B | AI128: x | AO128: M | AR128: 69
A129: 325L|IX5HT | B129: 325L | C129: IX5HT | D129: 106.36 | E129: 106.36 | F129: 106.36 | G129: 319.08 | H129: 0 | I129: 1 | J129: 0 | K129: H | L129: E | M129: 325IX5HT | N129: B_AUSFUEHRUNG_325 | O129: LIPS | AH129: B | AO129: M | AR129: 71
A130: 325L/1754DR1|IX5HT | B130: 325L/1754DR1 | C130: IX5HT | D130: 298.56 | E130: 298.56 | F130: 298.56 | G130: 895.68 | H130: 0 | I130: 1 | J130: 0 | K130: H | L130: E | M130: 325IX5HT | N130: B_AUSFUEHRUNG_325 | O130: LIPS | AH130: B | AO130: M | AR130: 72
A131: =CONCATENATE(B131,"|",C131) -> 325L/1754DR2|IX5HT | B131: 325L/1754DR2 | C131: IX5HT | D131: 298.56 | E131: 298.56 | F131: 298.56 | G131: =D131+E131+F131 -> 895.68 | H131: 0 | I131: 1 | J131: 0 | K131: H | L131: E | M131: 325IX5HT | N131: B_AUSFUEHRUNG_325 | O131: LIPS | AH131: B | AO131: M | AR131: 73
A132: 325/464|IX5HT | B132: 325/464 | C132: IX5HT | D132: 0 | E132: 0 | F132: 0 | G132: 0 | H132: 0 | I132: 0 | J132: 0 | K132: H | L132: E | M132: 325IX5HT3464 | AH132: B | AO132: M | AR132: 74
A133: 777G3|IX5HT | B133: 777G3 | C133: IX5HT | D133: 149.26 | E133: 149.26 | F133: 149.26 | G133: 447.78 | H133: 0 | I133: 0 | J133: 21 | K133: H | L133: E | M133: 777IX5HTG3 | AH133: B | AI133: x | AJ133: 70.5 | AO133: M | AR133: 75
A134: 777G3-HB60|IX5HT | B134: 777G3-HB60 | C134: IX5HT | D134: 161.12 | E134: 161.12 | F134: 161.12 | G134: 483.36 | H134: 0 | I134: 0 | J134: 21 | K134: H | L134: E | M134: 777IX5HTG3 | N134: B_BUEGELLAENGE | O134: BU60 | AH134: B | AI134: x | AJ134: 1 | AO134: M | AR134: 76
A135: 393|IX5HT | B135: 393 | C135: IX5HT | D135: 135.89 | E135: 135.89 | F135: 135.89 | G135: 407.67 | H135: 0 | I135: 4 | J135: 5 | K135: H | L135: E | M135: 393IX5HT | AH135: B | AI135: x | AO135: M | AR135: 80
A136: 419 LIPS|IX5HT | B136: 419 LIPS | C136: IX5HT | D136: 141.82 | E136: 141.82 | F136: 141.82 | G136: 425.46 | H136: 0 | I136: 9 | J136: 0 | L136: E | M136: 419IX5HT LIPS | AH136: B | AO136: M | AR136: 81
A137: 464/325-L|IX5HT | B137: 464/325-L | C137: IX5HT | D137: 0 | E137: 0 | F137: 0 | G137: 0 | H137: 0 | I137: 4 | J137: 19 | K137: H | L137: E | M137: 3464IX5HT | N137: B_AUSFUEHRUNG_LI_RE | O137: AGLI | AH137: B | AI137: X | AO137: M | AR137: 82
A138: 464/325-R|IX5HT | B138: 464/325-R | C138: IX5HT | D138: 0 | E138: 0 | F138: 0 | G138: 0 | H138: 0 | I138: 4 | J138: 19 | K138: H | L138: E | M138: 3464IX5HT | N138: B_AUSFUEHRUNG_LI_RE | O138: AGRE | AH138: B | AI138: x | AO138: M | AR138: 83
A139: |IX5HT | C139: IX5HT | D139: 0 | E139: 0 | F139: 0 | G139: 0 | H139: 0 | I139: 0 | J139: 0 | L139: E | M139: 235271 | AH139: B | AO139: M
A140: 333|IX5KG | B140: 333 | C140: IX5KG | D140: 150.7 | E140: 150.7 | F140: 150.7 | G140: 452.1 | H140: 1 | I140: 1 | J140: 20 | K140: D | L140: E | M140: 333IX5KG | AH140: B | AI140: x | AJ140: 1 | AO140: M | AR140: 1
A141: 333H|IX5KG | B141: 333H | C141: IX5KG | D141: 135.66 | E141: 135.66 | F141: 135.66 | G141: 406.98 | H141: 4 | I141: 4 | J141: 8 | K141: H | L141: E | M141: 333IX5KGH | AH141: B | AI141: x | AJ141: 1 | AO141: M | AR141: 2.1
A142: 333K6|IX5KG | B142: 333K6 | C142: IX5KG | D142: 158.24 | E142: 158.24 | F142: 158.24 | G142: 474.72 | H142: 1 | I142: 1 | J142: 20 | K142: D | L142: E | M142: 333IX5KG | N142: B_KNAUFAUSF | O142: KNK6 | AH142: B | AO142: M | AR142: 2.3
A143: 333T|IX5KG | B143: 333T | C143: IX5KG | D143: 158.16 | E143: 158.16 | F143: 158.16 | G143: 474.48 | H143: 1 | I143: 1 | J143: 3 | K143: D | L143: E | M143: 333IX5KG | N143: B_FUNKTIONEN | O143: FUT | AH143: B | AO143: M | AR143: 4
A144: 333HFRL|IX5KG | B144: 333HFRL | C144: IX5KG | D144: 145.85 | E144: 145.85 | F144: 145.85 | G144: 437.55 | H144: 25 | I144: 4 | J144: 8 | K144: H | L144: E | M144: 333IX5KGH MIWE | AH144: B | AI144: x | AJ144: 1 | AO144: M | AR144: 24
A145: 333K1|IX5KG | B145: 333K1 | C145: IX5KG | D145: 164.45 | E145: 164.45 | F145: 164.45 | G145: 493.35 | H145: 1 | I145: 1 | J145: 20 | K145: D | L145: E | M145: 333IX5KG | N145: B_KNAUFAUSF | O145: KNK1 | AH145: B | AO145: M | AR145: 36
A146: 333K2|IX5KG | B146: 333K2 | C146: IX5KG | D146: 164.45 | E146: 164.45 | F146: 164.45 | G146: 493.35 | H146: 1 | I146: 1 | J146: 20 | K146: D | L146: E | M146: 333IX5KG | N146: B_KNAUFAUSF | O146: KNK2 | AH146: B | AN146: D | AO146: M | AR146: 39
A147: 333K3|IX5KG | B147: 333K3 | C147: IX5KG | D147: 164.45 | E147: 164.45 | F147: 164.45 | G147: 493.35 | H147: 1 | I147: 1 | J147: 20 | K147: D | L147: E | M147: 333IX5KG | N147: B_KNAUFAUSF | O147: KNK3 | AH147: B | AO147: M | AR147: 42
A148: 333K4|IX5KG | B148: 333K4 | C148: IX5KG | D148: 164.45 | E148: 164.45 | F148: 164.45 | G148: 493.35 | H148: 1 | I148: 1 | J148: 0 | K148: D | L148: E | M148: 333IX5KG | N148: B_KNAUFAUSF | O148: KNK4 | AH148: B | AO148: M | AR148: 45
A149: 333KL|IX5KG | B149: 333KL | C149: IX5KG | D149: 158.24 | E149: 158.24 | F149: 158.24 | G149: 474.72 | H149: 5 | I149: 1 | J149: 18 | K149: D | L149: E | M149: 333IX5KGKL | AH149: B | AI149: x | AJ149: 1 | AO149: M | AR149: 62
A150: 472|IX5KG | B150: 472 | C150: IX5KG | D150: 173.35 | E150: 173.35 | F150: 173.35 | G150: 520.05 | H150: 1 | I150: 1 | J150: 0 | K150: D | L150: E | M150: 2222IX5KG | AH150: B | AO150: M | AR150: 66
A151: 472H|IX5KG | B151: 472H | C151: IX5KG | D151: 156.01 | E151: 156.01 | F151: 156.01 | G151: 468.03 | H151: 4 | I151: 4 | J151: 8 | K151: H | L151: E | M151: 2222HIX5KG | AH151: B | AO151: M | AR151: 67
A152: 472K6|IX5KG | B152: 472K6 | C152: IX5KG | D152: 181.98 | E152: 181.98 | F152: 181.98 | G152: 545.94 | H152: 1 | I152: 1 | J152: 0 | K152: D | L152: E | M152: 2222IX5KG | N152: B_KNAUFAUSF | O152: KNK6 | AH152: B | AO152: M | AR152: 68
A153: 555P|IX5KG | B153: 555P | C153: IX5KG | D153: 158.24 | E153: 158.24 | F153: 158.24 | G153: 474.72 | H153: 0 | I153: 4 | J153: 0 | K153: H | L153: E | M153: 555IX5KG | N153: B_AUSFUEHRUNG_ROHR_PLATTE | O153: RPP | AH153: B | AI153: x | AJ153: 1 | AO153: M | AR153: 69
A154: 325/464|IX5KG | B154: 325/464 | C154: IX5KG | D154: 0 | E154: 0 | F154: 0 | G154: 0 | H154: 0 | I154: 0 | J154: 0 | K154: H | L154: E | M154: 325IX5KG3464 | AH154: B | AO154: M | AR154: 74
A155: 777G3|IX5KG | B155: 777G3 | C155: IX5KG | D155: 178.56 | E155: 178.56 | F155: 178.56 | G155: 535.68 | H155: 0 | I155: 0 | J155: 21 | K155: H | L155: E | M155: 777IX5KGG3 | AH155: B | AI155: x | AO155: M | AR155: 75
A156: 393|IX5KG | B156: 393 | C156: IX5KG | D156: 173.35 | E156: 173.35 | F156: 173.35 | G156: 520.05 | H156: 0 | I156: 4 | J156: 5 | K156: H | L156: E | M156: 393IX5KG | AH156: B | AI156: x | AO156: M | AR156: 80
A157: |IX5KG | C157: IX5KG | D157: 0 | E157: 0 | F157: 0 | G157: 0 | H157: 0 | I157: 0 | J157: 0 | L157: E | M157: 235271 | AH157: B | AO157: M
A158: 333|IX6KG | B158: 333 | C158: IX6KG | D158: 150.7 | E158: 150.7 | F158: 150.7 | G158: 452.1 | H158: 1 | I158: 1 | J158: 20 | K158: D | L158: E | M158: 333IX6KG | AH158: B | AI158: x | AJ158: 1 | AO158: M | AR158: 1
A159: 333H|IX6KG | B159: 333H | C159: IX6KG | D159: 135.66 | E159: 135.66 | F159: 135.66 | G159: 406.98 | H159: 4 | I159: 4 | J159: 8 | K159: H | L159: E | M159: 333IX6KGH | AH159: B | AI159: x | AJ159: 1 | AO159: M | AR159: 2.1
A160: 333K6|IX6KG | B160: 333K6 | C160: IX6KG | D160: 158.24 | E160: 158.24 | F160: 158.24 | G160: 474.72 | H160: 1 | I160: 1 | J160: 20 | K160: D | L160: E | M160: 333IX6KG | N160: B_KNAUFAUSF | O160: KNK6 | AH160: B | AO160: M | AR160: 2.3
A161: 333T|IX6KG | B161: 333T | C161: IX6KG | D161: 158.16 | E161: 158.16 | F161: 158.16 | G161: 474.48 | H161: 1 | I161: 1 | J161: 3 | K161: D | L161: E | M161: 333IX6KG | N161: B_FUNKTIONEN | O161: FUT | AH161: B | AO161: M | AR161: 4
A162: 333FRL|IX6KG | B162: 333FRL | C162: IX6KG | D162: 160.89 | E162: 160.89 | F162: 160.89 | G162: 482.67 | H162: 24 | I162: 1 | J162: 0 | K162: D | L162: E | M162: 333IX6KG FRL | AH162: B | AI162: x | AJ162: 102.1 | AO162: M | AR162: 7
A163: 333HFRL|IX6KG | B163: 333HFRL | C163: IX6KG | D163: 145.85 | E163: 145.85 | F163: 145.85 | G163: 437.55 | H163: 25 | I163: 4 | J163: 8 | K163: H | L163: E | M163: 333IX6KGH FRL | AH163: B | AI163: x | AJ163: 1 | AN163: H | AO163: M | AR163: 24
A164: 333K1|IX6KG | B164: 333K1 | C164: IX6KG | D164: 164.45 | E164: 164.45 | F164: 164.45 | G164: 493.35 | H164: 1 | I164: 1 | J164: 20 | K164: D | L164: E | M164: 333IX6KG | N164: B_KNAUFAUSF | O164: KNK1 | AH164: B | AO164: M | AR164: 36
A165: 333K2|IX6KG | B165: 333K2 | C165: IX6KG | D165: 164.45 | E165: 164.45 | F165: 164.45 | G165: 493.35 | H165: 1 | I165: 1 | J165: 20 | K165: D | L165: E | M165: 333IX6KG | N165: B_KNAUFAUSF | O165: KNK2 | AH165: B | AO165: M | AR165: 39
A166: 333K3|IX6KG | B166: 333K3 | C166: IX6KG | D166: 164.45 | E166: 164.45 | F166: 164.45 | G166: 493.35 | H166: 1 | I166: 1 | J166: 20 | K166: D | L166: E | M166: 333IX6KG | N166: B_KNAUFAUSF | O166: KNK3 | AH166: B | AO166: M | AR166: 42
A167: 333K4|IX6KG | B167: 333K4 | C167: IX6KG | D167: 164.45 | E167: 164.45 | F167: 164.45 | G167: 493.35 | H167: 1 | I167: 1 | J167: 0 | K167: D | L167: E | M167: 333IX6KG | N167: B_KNAUFAUSF | O167: KNK4 | AH167: B | AO167: M | AR167: 45
A168: 333KL|IX6KG | B168: 333KL | C168: IX6KG | D168: 158.24 | E168: 158.24 | F168: 158.24 | G168: 474.72 | H168: 5 | I168: 1 | J168: 18 | K168: D | L168: E | M168: 333IX6KGKL | AH168: B | AI168: x | AJ168: 1 | AO168: M | AR168: 62
A169: 472|IX6KG | B169: 472 | C169: IX6KG | D169: 173.35 | E169: 173.35 | F169: 173.35 | G169: 520.05 | H169: 1 | I169: 1 | J169: 0 | K169: D | L169: E | M169: 2222IX6KG | AH169: B | AO169: M | AR169: 66
A170: 472H|IX6KG | B170: 472H | C170: IX6KG | D170: 156.01 | E170: 156.01 | F170: 156.01 | G170: 468.03 | H170: 4 | I170: 4 | J170: 8 | K170: H | L170: E | M170: 2222HIX6KG | AH170: B | AO170: M | AR170: 67
A171: 472K6|IX6KG | B171: 472K6 | C171: IX6KG | D171: 181.98 | E171: 181.98 | F171: 181.98 | G171: 545.94 | H171: 1 | I171: 1 | J171: 0 | K171: D | L171: E | M171: 2222IX6KG | N171: B_KNAUFAUSF | O171: KNK6 | AH171: B | AO171: M | AR171: 68
A172: 555P|IX6KG | B172: 555P | C172: IX6KG | D172: 158.24 | E172: 158.24 | F172: 158.24 | G172: 474.72 | H172: 0 | I172: 4 | J172: 0 | K172: H | L172: E | M172: 555IX6KG | N172: B_AUSFUEHRUNG_ROHR_PLATTE | O172: RPP | AH172: B | AI172: x | AJ172: 1 | AO172: M | AR172: 69
A173: 325L|IX6KG | B173: 325L | C173: IX6KG | D173: 135.66 | E173: 135.66 | F173: 135.66 | G173: 406.98 | H173: 0 | I173: 1 | J173: 0 | K173: H | L173: E | M173: 325IX6KG | N173: B_AUSFUEHRUNG_325 | O173: LIPS | AH173: B | AO173: M | AR173: 71
A174: 325L/1754DR1|IX6KG | B174: 325L/1754DR1 | C174: IX6KG | D174: 327.86 | E174: 327.86 | F174: 327.86 | G174: 983.58 | H174: 0 | I174: 1 | J174: 0 | K174: H | L174: E | M174: 325IX6KG | N174: B_AUSFUEHRUNG_325 | O174: LIPS | AH174: B | AO174: M | AR174: 72
A175: 325L/1754DR2|IX6KG | B175: 325L/1754DR2 | C175: IX6KG | D175: 327.86 | E175: 327.86 | F175: 327.86 | G175: 983.58 | H175: 0 | I175: 1 | J175: 0 | K175: H | L175: E | M175: 325IX6KG | N175: B_AUSFUEHRUNG_325 | O175: LIPS | AH175: B | AO175: M | AR175: 73
A176: 325/464|IX6KG | B176: 325/464 | C176: IX6KG | D176: 0 | E176: 0 | F176: 0 | G176: 0 | H176: 0 | I176: 0 | J176: 0 | K176: H | L176: E | M176: 325IX6KG3464 | AH176: B | AO176: M | AR176: 74
A177: 777G3|IX6KG | B177: 777G3 | C177: IX6KG | D177: 178.56 | E177: 178.56 | F177: 178.56 | G177: 535.68 | H177: 0 | I177: 0 | J177: 21 | K177: H | L177: E | M177: 777IX6KGG3 | AH177: B | AI177: x | AJ177: 1 | AO177: M | AR177: 75
A178: 777G3-HB60|IX6KG | B178: 777G3-HB60 | C178: IX6KG | D178: 190.42 | E178: 190.42 | F178: 190.42 | G178: 571.26 | H178: 0 | I178: 0 | J178: 21 | K178: H | L178: E | M178: 777IX6KGG3 | N178: B_BUEGELLAENGE | O178: BU60 | AH178: B | AI178: x | AJ178: 70.5 | AO178: M | AR178: 76
A179: 393|IX6KG | B179: 393 | C179: IX6KG | D179: 173.35 | E179: 173.35 | F179: 173.35 | G179: 520.05 | H179: 0 | I179: 4 | J179: 5 | K179: H | L179: E | M179: 393IX6KG | AH179: B | AI179: x | AO179: M | AR179: 80
A180: |IX6KG | C180: IX6KG | D180: 0 | E180: 0 | F180: 0 | G180: 0 | H180: 0 | I180: 0 | J180: 0 | L180: E | M180: 235271 | AH180: B | AO180: M
A181: 333|IX6SR | B181: 333 | C181: IX6SR | D181: 150.7 | E181: 150.7 | F181: 150.7 | G181: 452.1 | H181: 1 | I181: 1 | J181: 20 | K181: D | L181: E | M181: 333IX6SR | AH181: B | AI181: x | AO181: M | AR181: 1
A182: 333SKG2|IX6SR | B182: 333SKG2 | C182: IX6SR | D182: 157.56 | E182: 157.56 | F182: 157.56 | G182: 472.68 | H182: 33 | I182: 1 | J182: 20 | K182: D | L182: E | M182: 333IX6SR SKG2 | AH182: B | AO182: M | AR182: 2
A183: 333H|IX6SR | B183: 333H | C183: IX6SR | D183: 135.66 | E183: 135.66 | F183: 135.66 | G183: 406.98 | H183: 4 | I183: 4 | J183: 8 | K183: H | L183: E | M183: 333IX6SRH | AH183: B | AI183: x | AO183: M | AR183: 2.1
A184: 333HSKG2|IX6SR | B184: 333HSKG2 | C184: IX6SR | D184: 142.52 | E184: 142.52 | F184: 142.52 | G184: 427.56 | H184: 4 | I184: 4 | J184: 8 | K184: H | L184: E | M184: 333IX6SRH SKG2 | AH184: B | AO184: M | AR184: 2.2
A185: 333K6|IX6SR | B185: 333K6 | C185: IX6SR | D185: 158.24 | E185: 158.24 | F185: 158.24 | G185: 474.72 | H185: 1 | I185: 1 | J185: 20 | K185: D | L185: E | M185: 333IX6SR | N185: B_KNAUFAUSF | O185: KNK6 | AH185: B | AO185: M | AR185: 2.3
A186: 333K6SKG2|IX6SR | B186: 333K6SKG2 | C186: IX6SR | D186: 165.1 | E186: 165.1 | F186: 165.1 | G186: 495.3 | H186: 1 | I186: 1 | J186: 20 | K186: D | L186: E | M186: 333IX6SR SKG2 | N186: B_KNAUFAUSF | O186: KNK6 | AH186: B | AO186: M | AR186: 2.4
A187: 333T|IX6SR | B187: 333T | C187: IX6SR | D187: 158.16 | E187: 158.16 | F187: 158.16 | G187: 474.48 | H187: 1 | I187: 1 | J187: 3 | K187: D | L187: E | M187: 333IX6SR | N187: B_FUNKTIONEN | O187: FUT | AH187: B | AO187: M | AR187: 4
A188: 333TSKG2|IX6SR | B188: 333TSKG2 | C188: IX6SR | D188: 165.02 | E188: 165.02 | F188: 165.02 | G188: 495.06 | H188: 1 | I188: 1 | J188: 3 | K188: D | L188: E | M188: 333IX6SR SKG2 | N188: B_FUNKTIONEN | O188: FUT | AH188: B | AO188: M | AR188: 5
A189: 333FRL|IX6SR | B189: 333FRL | C189: IX6SR | D189: 160.89 | E189: 160.89 | F189: 160.89 | G189: 482.67 | H189: 24 | I189: 1 | J189: 0 | K189: D | L189: E | M189: 333IX6SR FRL | AH189: B | AI189: x | AO189: M | AR189: 7
A190: 333FRLSKG2|IX6SR | B190: 333FRLSKG2 | C190: IX6SR | D190: 167.75 | E190: 167.75 | F190: 167.75 | G190: 503.25 | H190: 24 | I190: 1 | J190: 0 | K190: D | L190: E | M190: 333IX6SR FRL SKG2 | AH190: B | AO190: M | AR190: 8
A191: 333M|IX6SR | B191: 333M | C191: IX6SR | D191: 181.8 | E191: 181.8 | F191: 181.8 | G191: 545.4 | H191: 3 | I191: 1 | J191: 20 | K191: D | L191: E | M191: 333IX6SRM | AH191: B | AI191: x | AO191: M | AR191: 12
A192: 333MSKG2|IX6SR | B192: 333MSKG2 | C192: IX6SR | D192: 188.66 | E192: 188.66 | F192: 188.66 | G192: 565.98 | H192: 3 | I192: 1 | J192: 20 | K192: D | L192: E | M192: 333IX6SRM SKG2 | AH192: B | AO192: M | AR192: 13
A193: 333MT|IX6SR | B193: 333MT | C193: IX6SR | D193: 189.26 | E193: 189.26 | F193: 189.26 | G193: 567.78 | H193: 3 | I193: 1 | J193: 3 | K193: D | L193: E | M193: 333IX6SRM | N193: B_FUNKTIONEN | O193: FUT | AH193: B | AO193: M | AR193: 15
A194: 333HFRL|IX6SR | B194: 333HFRL | C194: IX6SR | D194: 145.85 | E194: 145.85 | F194: 145.85 | G194: 437.55 | H194: 25 | I194: 4 | J194: 8 | K194: H | L194: E | M194: 333IX6SRH FRL | AH194: B | AI194: x | AO194: M | AR194: 24
A195: =CONCATENATE(B195,"|",C195) -> 333HFRLSKG2|IX6SR | B195: 333HFRLSKG2 | C195: IX6SR | D195: 152.71 | E195: 152.71 | F195: 152.71 | G195: =D195+E195+F195 -> 458.13 | H195: 25 | I195: 4 | J195: 8 | K195: H | L195: E | M195: 333IX6SRH FRL SKG2 | AH195: B | AI195: x | AO195: M | AR195: 25
A196: 333MH|IX6SR | B196: 333MH | C196: IX6SR | D196: 163.61 | E196: 163.61 | F196: 163.61 | G196: 490.83 | H196: 17 | I196: 4 | J196: 0 | K196: H | L196: E | M196: 333IX6SRHM | AH196: B | AI196: x | AO196: M | AR196: 27
A197: 333MHSKG2|IX6SR | B197: 333MHSKG2 | C197: IX6SR | D197: 170.47 | E197: 170.47 | F197: 170.47 | G197: 511.41 | H197: 17 | I197: 4 | J197: 8 | K197: H | L197: E | M197: 333IX6SRHM SKG2 | AH197: B | AO197: M | AR197: 28
A198: 333K1|IX6SR | B198: 333K1 | C198: IX6SR | D198: 164.45 | E198: 164.45 | F198: 164.45 | G198: 493.35 | H198: 1 | I198: 1 | J198: 20 | K198: D | L198: E | M198: 333IX6SR | N198: B_KNAUFAUSF | O198: KNK1 | AH198: B | AO198: M | AR198: 36
A199: 333K1SKG2|IX6SR | B199: 333K1SKG2 | C199: IX6SR | D199: 171.31 | E199: 171.31 | F199: 171.31 | G199: 513.93 | H199: 1 | I199: 1 | J199: 20 | K199: D | L199: E | M199: 333IX6SR SKG2 | N199: B_KNAUFAUSF | O199: KNK1 | AH199: B | AO199: M | AR199: 37
A200: 333K2|IX6SR | B200: 333K2 | C200: IX6SR | D200: 164.45 | E200: 164.45 | F200: 164.45 | G200: 493.35 | H200: 1 | I200: 1 | J200: 20 | K200: D | L200: E | M200: 333IX6SR | N200: B_KNAUFAUSF | O200: KNK2 | AH200: B | AO200: M | AR200: 39
... 521 more rows

Sheet Sprachen (hidden)
A1: ID | B1: DE | C1: GB | D1: FR | E1: NL
A2: 1 | B2: Deutsch | C2: English | D2: Français | E2: Nederlands
A3: 2 | B3: S-Plan speichern unter | C3: Save MK-plan as | D3: Enregistrer sous | E3: Sluitplan opslaan als..
A4: 3 | B4: Dateiname/Projekt | C4: File name / Project | D4: Nom du fichier/Projet | E4: Bestand/ projectnaam
A5: 4 | B5: Schließplan bearbeiten | C5: Edit Masterkey Plan | D5: Éditer le plan | E5: Sluitplan bewerken
A6: 5 | B6: Kalkulieren (F4) ... | C6: Calculate (F4) ... | D6: Calcul du Prix (F4) ... | E6: Prijs ...
A7: 6 | B7: Fachhändler | C7: Customer | D7: Revendeur | E7: Klant
A8: 7 | B8: Kundennummer | C8: Customer No. | D8: N° de client | E8: Klantnummer
A9: 8 | B9: Telefon | C9: Telefon | D9: Téléphone | E9: Telefoon
A10: 9 | B10: Ansprechpartner | C10: Respond partner | D10: Contact | E10: Contactpersoon
A11: 10 | B11: Straße | C11: Road | D11: Rue | E11: Straat
A12: 11 | B12: Land | C12: Country | D12: Pays | E12: Postcode
A13: 12 | B13: Postleitzahl | C13: Postcode | D13: Code postal | E13: Woonplaats
A14: 13 | B14: Ort | C14: City | D14: Ville | E14: Provincie
A15: 14 | B15: Objekt | C15: Object | D15: Objet/Organigr. | E15: Project
A16: 15 | B16: Kommission | C16: Commission | D16: Référence cde | E16: Referentie
A17: 16 | B17: Wunschtermin | C17: Term of delivery | D17: Délais
A18: 17 | B18: Abweichende Lieferanschrift | C18: Special delivery adress | D18: Adresse de livraison complémentaire | E18: Afwijkend leveradres
A19: 18 | B19: Name 1 | C19: Name 1 | D19: Nom 1 | E19: Naam 1
A20: 19 | B20: Name 2 | C20: Name 2 | D20: Nom 2 | E20: Naam 2
A21: 20 | B21: Ortsteil | C21: District | D21: Lieu
A22: 21 | B22: Besondere Hinweise | C22: Special Hints | D22: Remarque particulière | E22: Bijzonderheden 2
A23: 22 | B23: Titel | C23: Titel | D23: Titre | E23: Titel
A24: 23 | B24: Sicherungskarte | C24: Security card | D24: Carte de propriété | E24: Veiligheidscertificaat
A25: 24 | B25: Anlagennummer | C25: System code | D25: Code organigramme | E25: Sluitplannummer
A26: 25 | B26: Anlagenart | C26: Type of System | D26: Type d'organigramme | E26: Inrichting
A27: 26 | B27: System | C27: System | D27: Système | E27: Systeem
A28: 27 | B28: Kartennummer | C28: No. of security card | D28: N° de carte | E28: Kaartnummer
A29: 28 | B29: Karte eingelesen am | C29: S.-card reading date | D29: Carte lu le | E29: Kaart ingelezen op..
A30: 29 | B30: Karte einlesen | C30: Reading card | D30: Lecture de la carte | E30: Kaart inlezen
A31: 30 | B31: Zurücksetzen | C31: Reset data | D31: Réinitialiser | E31: Terug
A32: 31 | B32: Anschluß des Kartenlesers | C32: Card reader connection | D32: Port du lecteur de carte | E32: Aansluiting kaartlezer
A33: 32 | B33: Tastaturleser (z.B.MAGTEC) | C33: Keybordreader (MAGTEC) | D33: clavier (MAGTEC) | E33: kaartlezer (MAGTEC)
A34: 33 | B34: Daten der Sicherungskarte | C34: Security card data | D34: Données de la carte de propriété | E34: Gegevens van het Veiligheidscertificaat
A35: 34 | B35: Neuanlage | C35: New System | D35: Nouvel organigramme | E35: Nieuw sluitsysteem
A36: 35 | B36: Erweiterung | C36: Extension | D36: Extension | E36: Uitbreiding
A37: 36 | B37: Funktion | C37: Function | D37: Fonction | E37: Functie
A38: 37 | B38: Nummer | C38: Number | D38: Numéro | E38: Nummer
A39: 38 | B39: Bezeichnung | C39: Marking | D39: Description | E39: Omschrijving
A40: 39 | B40: Anzahl | C40: Quantity | D40: Quantité | E40: Aantal
A41: 40 | B41: Pos | C41: Pos | D41: Lg | E41: Positie
A42: 41 | B42: Status | C42: State | D42: état | E42: Status
A43: 42 | B43: Tür.-Raumbez. | C43: Door/room-description | D43: Désignation/porte | E43: Deur-Ruimteomschrijving
A44: 43 | B44: Schlüssel-Nr. | C44: Key.-No. | D44: N° de clé | E44: Sleutelnummer
A45: 44 | B45: Freie Eingabe | C45: Free input | D45: Saisie libre | E45: Vrije invoer
A46: 45 | B46: Zyl. | C46: Cyl. | D46: Cyl. | E46: Cil.
A47: 46 | B47: Sch | C47: Key | D47: Clé | E47: Sl.
A48: 47 | B48: Zylindertyp | C48: Cylinder type | D48: Type | E48: Cilindertype
A49: 48 | B49: Ausführung | C49: Design | D49: Fonctions | E49: Uitvoering
A50: 49 | B50: Länge (A / B) | C50: Length (A / B) | D50: longueurs (A/B) | E50: Lengte (A / B)
A51: 50 | B51: Farbe | C51: Color | D51: Finition | E51: kleur
A52: 51 | B52: Keine Gruppenspalte | C52: column not defined for groups | D52: Pas de colonne de passe | E52: Geen groepenkolom
A53: 52 | B53: Gruppennummer fehlt | C53: masterkey number missing | D53: N° de passe inexistant | E53: Groepennummer ontbreekt
A54: 53 | B54: Schlüsselnummer fehlt bei Pos | C54: Key number missing in position | D54: N° de clé inexistant | E54: Sleutelnummer ontbreekt bij positie
A55: 54 | B55: In dieser Zeile/Spalte ist keine weitere Z/M-Funktion möglich | C55: No more Z/M-function not possible | D55: Impossible d'insérer 1 fonction d'OC suppl. | E55: In deze rij/ kolom is geen Z/M functie meer mogelijk
A56: 55 | B56: Schlüsselnummer für Zentralzylinder muß mit "Z..." beginnen | C56: Key number for Centralcylinder must start with "Z..." | D56: Les n° d' ouvertures centrales doivent commencer par "Z…." | E56: Sleutelnummer voor Centraalcilinder moet met "Z.." beginnen
A57: 56 | B57: Z/M-Funktion kann nicht überschrieben werden | C57: Overwrite Z/M not possible | D57: La Fonction OC ne peut être modifiée | E57: Z/M functie kan niet overschreven worden
A58: 57 | B58: Keine Z oder M-Spalte | C58: No Z or M row | D58: Pas de colonne d'OC | E58: Geen Z of M-kolom
A59: 58 | B59: G-Funktion bereits in Zeile vorhanden oder Schließfunktionen (X/I) ungleich | C59: G-function already exist or different X/I function. | E59: G functie reeds in regels beschikbaar of sluitfuncties X/I ongelijk
A60: 59 | B60: Max eine Mitschließung möglich | C60: Max one I-Funktion | D60: Une entrouverture max. possible ! | E60: Maximaal 1 meesluiting mogelijk
A61: 60 | B61: Gruppen | C61: Master key | D61: Passes | E61: Groepenfunctie
A62: 61 | B62: Schl.-Nummer | C62: MK number | D62: N° de clé | E62: Sleutelnummer
A63: 62 | B63: Bezeichnung | C63: Marking | D63: Désignation | E63: Omschrijving
A64: 63 | B64: Anz. | C64: Quant. | D64: Quantité | E64: Aantal
A65: 64 | B65: Typ | C65: Type | D65: Type | E65: Type
A66: 65 | B66: Keine Guppen bei dieser Anlagenart möglich | C66: No masterkeys possible in type of system | D66: Pas de passe disponible dans ce type d'organigramme | E66: In deze inrichting (Z) is geen groepenindeling mogelijk
A67: 66 | B67: Speichern | C67: Save | D67: Enregistrer | E67: Opslaan
A68: 67 | B68: Löschen | C68: Delete | D68: Supprimer | E68: Wissen
A69: 68 | B69: Maximale Gruppenanzahl bei Anlagenart ZHS: 1 | C69: Max. Masterkeys in type ZHS: 1 | D69: En mode ZHS, nombre de passe max.: 1 | E69: Maximaal aantal groepen in een ZHS- inrichting: 1
A70: 69 | B70: Maximale Gruppenanzahl bei Anlagenart HS: 2 (HS + HS-T) | C70: Max. Masterkeys in type HS: 2 | D70: En mode HS, nombre de passe max.: 1 | E70: Maximale groepenaantal in een HS- inrichting: 2 (HS + HS-TD)
A71: 70 | B71: Bitte Schlüsselnummer, Typ und Neu oder Bestehend angeben. | C71: Please input Masterkey number, type and new or existing group. | D71: Veuillez indiquer le n°de clé, le type ou l'état | E71: Sleutelnummer, type, nieuw of bestaand aangeven a.u.b.
A72: 71 | B72: Schlüsselnummer bereits vorhanden | C72: Keynumber already exists | D72: N° de clé déjà existant | E72: Sleutelnummer is reeds bekend
A73: 72 | B73: Bearbeiten ... | C73: Edit ... | D73: Éditer ... | E73: Bewerken ...
A74: 73 | B74: Spalte(n) hinzufügen | C74: Add column(s) | D74: Insérer colonne(s) | E74: Kolom invoegen
A75: 74 | B75: Spalte(n) löschen | C75: Delete column(s) | D75: Supprimer colonne(s) | E75: Kolom verwijderen
A76: 75 | B76: Zeile(n) hinzufügen | C76: Add row(s) | D76: Insérer ligne(s) | E76: Regel invoegen
A77: 76 | B77: Zeile(n) löschen | C77: Delete row(s) | D77: Supprimer ligne(s) | E77: Regel verwijderen
A78: 77 | B78: Spalten | C78: Columns | D78: Colonne | E78: Kolommen
A79: 78 | B79: Zeilen | C79: Rows | D79: Ligne | E79: Regels
A80: 79 | B80: Bearbeitet werden die ausgwählten Zeilen oder Spalten. | C80: Eding the selected row/columns | D80: Édition des lignes ou colonnes sélectionnées | E80: De geselecteerde regels of kolommen worden bewerkt
A81: 80 | B81: Schließen | C81: Close | D81: Quitter | E81: Sluiten
A82: 81 | B82: Bitte lesen Sie die Sicherungskarte in den Kartenleser ein. Danach OK drücken | C82: Please input security card and then OK. | D82: Insérer SVP la carte de propriété dans le lecteur puis cliquer sur OK | E82: Het veiligheidscertificaat door de kaartlezer halen. Daarna op OK drukken
A83: 82 | B83: Eine bestehende Funktion soll geändert werden. Dies ist in der Regel nicht möglich. Trotzdem ändern? | C83: You try to change an existing Funktion. Mostly not possible. Nevertheless change? | D83: Une fonction existante doit être modifiée. Ce n'est pas pas possible normalement. Continuer ? | E83: Een bestaande functie moet gewijzigd worden.Dit is in het principe niet mogelijk. Toch veranderen?
A84: 83 | B84: Typen OK | C84: Cylinder typ OK | D84: Types OK | E84: Types zijn OK
A85: 84 | B85: Typen fehlerhaft | C85: Cylinder typ not correct. | D85: Types erronés | E85: Types foutmelding
A86: 85 | B86: Typen prüfen | C86: Check types. | D86: Contrôle des types | E86: Types controleren
A87: 86 | B87: Preisvorgaben | C87: Prices | D87: Calcul des prix | E87: Prijsopgave
A88: 87 | B88: Multi % | C88: Multi % | D88: % Multi | E88: Korting %
A89: 88 | B89: BAZ (<=10Zyl.) % | C89: <=10 cyl. % | D89: <10 pièces | E89: Uitbreidingstoeslag %
A90: 89 | B90: Altanlage % | C90: Old system % | D90: % anc.plan | E90: Ouderdomstoeslag
A91: 90 | B91: Zuschlag 1 % | C91: Add 1 % | D91: % Plus-value 1 | E91: Toeslag 1 %
A92: 91 | B92: Zuschlag 2 % | C92: Add 2 % | D92: % Plus-value 2 | E92: Toeslag 2 %
A93: 92 | B93: Abschlag 1 % | C93: minus 1 % | D93: % Remise 1 | E93: Korting 1 %
A94: 93 | B94: Abschlag 2 % | C94: minus 2 % | D94: % Remise 2 | E94: Korting 2 %
A95: 94 | B95: Massen anzeigen | C95: Show | D95: Voir | E95: Prijzen bekijken
A96: 95 | B96: MwSt. % | C96: Tax % | D96: % TVA | E96: BTW %
A97: 96 | B97: 19 | D97: 19.6 | E97: 21
A98: 97 | B98: zus. Einzelschlüssel | C98: additional keys | D98: Clés supplémentaires | E98: Extra monosleutels
A99: 98 | B99: Einzelschl. ohne Zylinder | C99: Existing Keys | D99: Clé sans cylindre | E99: Monosleutels zonder cilinder
A100: 99 | B100: Neue GS/HS-Schlüssel | C100: New MK | D100: Nouveau Passe (PG seul ou PP ) | E100: Nieuwe GS/HS sleutels
A101: 100 | B101: Best. GS/HS-Schlüssel | C101: Existing MK | D101: Passe existant (PG seul ou PP) | E101: Bestaande GS/HS sleutels
A102: 101 | B102: Neue GHS-Schlüssel | C102: New GMK | D102: Nouveau Passe (PPG) | E102: Nieuwe GHS sleutels
A103: 102 | B103: Best. GHS-Schlüssel | C103: Existing GMK | D103: Passe existant (PPG) | E103: Bestaande GHS sleutels
A104: 103 | B104: Neue G-Schlüssel | C104: New G | D104: Nouvelle clé G | E104: Nieuwe G sleutel
A105: 104 | B105: Best. G-Schlüssel | C105: Existing G | D105: Clé G éxistante | E105: Bestaande G sleutel
A106: 105 | B106: Gesamt | C106: Total | D106: Total | E106: Totaal
A107: 106 | B107: Anz. VL | C107: Quant. Length | D107: Qté de rallongements | E107: Aantal verlengingen
A108: 107 | B108: Summe | C108: Sum | D108: Total | E108: Totaal
A109: 108 | B109: Preis | C109: Price | D109: Prix | E109: Prijs
A110: 109 | B110: Einzelpreis | C110: Single Price | D110: Prix unitaire | E110: Stuksprijs
A111: 110 | B111: Preisliste | C111: Price list | D111: Liste de prix | E111: Prijslijst
A112: 111 | B112: Planung | C112: Planing | D112: Prévision | E112: Planning
A113: 112 | B113: N =Neu | C113: N = New | D113: N=Nouveau | E113: N= Nieuw
A114: 113 | B114: B = Bestehend | C114: B = Exist | D114: B=Existant | E114: B= Bestaand
A115: 114 | B115: Import ab Pos. | C115: Import to Pos. | D115: Importer de lg. | E115: Import vanaf positie
A116: 115 | B116: Spalte(n) Import | C116: Columns import | D116: Importer colonne(s) | E116: Import van kolom(men)
A117: 116 | B117: Bitte Funktionsart wählen. X, Z, M, I, G | C117: Choose kind of Function. X, Z, M, I, G | D117: Choisir, SVP, le type de fonction (X, Z, M, I, G) | E117: Kies uit functie: X, Z, M, I, G
A118: 117 | B118: Sicherungkarte paßt nicht zur Anlagennummer!!! | C118: Security card data not equal to system code | D118: Carte incompatible avec l'organigramme | E118: Veiligheidscertificaat komt niet overeen met Sluitsysteemnummer
A119: 118 | B119: Unverbindliche Preisermittlung auf der Grundlage der o.g. Vorgaben. | D119: Ce devis est calculé à titre indicatif et n´a pas de valeur contractuelle. | E119: Prijsindicaties van het systeem zijn onder voorbehoud van een correcte invoer
A120: 119 | B120: Bitte beachten Sie die Preise unserer Auftragsbestätigung. | D120: Le prix vous sera confirmé par le service d'administration des ventes. | E120: Let U a.u.b. op de prijzen die vermeld staan op de opdrachtbevestiging
A121: 120 | B121: Diese Preisermittlung wird beim verlassen der Tabelle gelöscht. | D121: Ce calcul de prix sera supprimé en quittant ce tableau | E121: Deze prijsopgaaf wordt bij het verlaten van dit tabblad gewist
A122: 121 | B122: Schlüssel | C122: Keys | D122: Clé | E122: Sleutel
A123: 122 | B123: Zylinder | C123: Cylinders | D123: Cylindre | E123: Cilinder
A124: 123 | B124: Duplizieren mit "@" | C124: duplicate with "@" | D124: Dupliquer avec "@" | E124: Kopie met "@"
A125: 124 | B125: Startnummer für "@" | C125: Start number for "@" | D125: 1er numéro | E125: Start nummer
A126: 125 | B126: Anzahl der Kopien | C126: Copys count | D126: Nombre de copie | E126: Aantal copys
A127: 126 | B127: Wertehilfe für Typ, Ausf., Länge und Farbe mit "F1" | C127: Input help for types, design, length and color with "F1" | D127: Aide pour le Type, Fonction, longueurs et Finition avec "F1"
A128: 127 | B128: Lesefehler | C128: reading error | D128: Erreur de lecture | E128: Error inlezen
A129: 128 | B129: Nur neue Positionen ohne Status | C129: Only new positions with no status | D129: Uniquement les positions en extension | E129: Nieuwe positions zonder status
A130: 129 | B130: Drucken | C130: Print | D130: Imprimer | E130: Drukken
A131: 130 | B131: . (Punkt) bitte nicht verwenden. | C131: Please do not use "." (Full stop) | D131: . ! Merci de ne pas utiliser le point | E131: "." - Nummer Error
A132: 131 | B132: Fester Aufschag je Zylinder | C132: Text 131 | D132: Plus-value / cyl. | E132: Toeslag per cylinder
A133: 132 | B133: Fehler Daten Typ bei Abzug je Zylinder | C133: Text 132 | D133: Erreur Data-Type - Remise par cylindres | E133: Error - Korting per cilinder
A134: 133 | B134: Sortieren nach Spalte | C134: Sort by column | D134: trier colonne | E134: Sort by column
A135: 134 | B135: Der Schließplan ist auf max. 5000 Zeilen begrenzt. | C135: Maximally 5000 rows | D135: Au maximum 5000 lignes | E135: Maximaal 5000 regel
A136: 135 | B136: Anzahl Sonderspalten. Werden wie die "Freie Eingabe" nicht in DOM-Plan übernommen | C136: Special Columns | D136: Colonne spécialement | E136: Speciaal Kolommen
A137: 136 | B137: Schüsselnummer mehrfach vorhanden. Funktion wird für alle Positionen übernommen. | C137: Keynumber already exists. Existing positions get the new funktion. | D137: N° de clé déjà existant. La nouvelle fonction est prise en charge. | E137: Sleutelnummer komt voor op meerdere posities.Functie wordt op al deze posities overgenomen.
A138: 137 | B138: !!Nicht im DOM-Plan!! | C138: !!Not in DOM-MK-Plan!! | D138: !!Pas dans le DOM l'organigramme!! | E138: !!Niet in DOM-plan!!
A139: 138 | B139: Typenbezeichnung | C139: Type designation | D139: Dénomination du type
A140: 139 | B140: GHS | C140: MKS | D140: PPG | E140: GHS
A141: 140 | B141: HS | C141: MK | D141: PG | E141: HS
A142: 141 | B142: ZHS | C142: CMK | D142: CPG | E142: ZHS
A143: 142 | B143: Z | C143: CC | D143: C | E143: Z
A144: 143 | B144: ? | C144: ? | D144: ? | E144: ?
A145: 144 | B145: Profilserie
A146: 145 | B146: Zentralzyl. I in Z | C146: central cylinder | D146: centrales | E146: Centraalcilinder Z
A147: 146 | B147: Z-Funktion I in Z | C147: central function | D147: function centrales | E147: Centraalfunctie I
A148: 147 | B148: Schlüsselnummer für Zentralzylinder muß mit "C..." beginnen | C148: Key number for Centralcylinder must start with "C..." | D148: Les n° d' ouvertures centrales doivent commencer par "C…." | E148: Sleutelnummer voor Centraalcilinder moet met "C.." beginnen
A149: 148 | B149: GS | C149: SMK | D149: SPG | E149: GS
A150: 149 | B150: Eingang | C150: entrance | D150: contribution | E150: invoer
A151: 150 | B151: Haupteingang | C151: Main entrance | D151: entrée principale | E151: hoofdingang
A152: 151 | B152: Nebeneingang | C152: side entrance | D152: entrée latérale | E152: zijingang
A153: 152 | B153: Fahrradkeller | C153: Bicycle storage | D153: Garage à vélos | E153: fietsenstalling
A154: 153 | B154: Hausanschlussraum | C154: Building connection room | D154: Bâtiment salle de connexion | E154: Gebouw verbinding room
A155: 154 | B155: Heizung | C155: heating | D155: chauffage | E155: verwarming
A156: 155 | B156: Müll | C156: trash | D156: déchets | E156: afval
A157: 156 | B157: Wohnung | C157: apartment | D157: appartement | E157: appartement
A158: 157 | B158: Keller | C158: cellar | D158: cave | E158: kelder
A159: 158 | B159: Briefkasten | C159: mailbox | D159: boîte aux lettres | E159: brievenbus
A160: 159 | B160: Garage | C160: garage | D160: garage | E160: garage
A161: 160 | B161: WC | C161: WC | D161: toilettes | E161: WC
A162: 161 | B162: WC Damen | C162: WC Women | D162: WC Femmes | E162: WC Vrouwen
A163: 162 | B163: WC Herren | C163: WC Men | D163: WC hommes | E163: WC Men
A164: 163 | B164: Büro | C164: office | D164: bureau | E164: kantoor
A165: 164 | B165: Vorraum | C165: anteroom | D165: antichambre | E165: voorkamer
A166: 165 | B166: Durchgang | C166: passage | D166: passage | E166: passage
A167: 166 | B167: Geschäftsleitung | C167: Management | D167: gestion | E167: beheer
A168: 167 | B168: Personalabteilung | C168: personnel department | D168: service du personnel | E168: personeelsdienst
A169: 168 | B169: Konstuktion | C169: Architectural Technology | D169: technologie de l'architecture | E169: Architectural Technology
A170: 169 | B170: Verkauf | C170: sale | D170: vente | E170: verkoop
A171: 170 | B171: Produktion | C171: production | D171: production | E171: productie
A172: 171 | B172: Halle | C172: Hall | D172: hall | E172: hal
A173: 172 | B173: IT | C173: IT | D173: IT | E173: IT
A174: 173 | B174: Server | C174: server | D174: serveur | E174: server
A175: 174 | B175: EDV | C175: it | D175: IT | E175: IT
A176: 175 | B176: Vertrieb | C176: distribution | D176: ventes | E176: verkoop
A177: 176 | B177: Export | C177: export | D177: exportation | E177: export
A178: 177 | B178: Technik | C178: technology | D178: technologie | E178: technologie
A179: 178 | B179: Systeme für Neuanlagen | C179: New systems | D179: Nouveaux systèmes | E179: Nieuwe systemen
A180: 179 | B180: Sonstige Systeme | C180: Other systems | D180: D'autres systèmes | E180: Overige systemen
A181: 180 | B181: Händlerprofile | C181: Lochsmith profiles | D181: Revendeur profil | E181: Eigen profielen
A182: 181 | B182: ? | C182: ? | D182: ? | E182: Netto totaalbedrag excl.BTW
A183: 182 | B183: ? | C183: ? | D183: ? | E183: Meesluiting
A184: 183 | B184: ? | C184: ? | D184: ? | E184: Nieuw / uitbreiding …
A185: 184 | B185: Straße | C185: Road | D185: Rue | E185: Versienummer

Sheet Schlüssel (hidden)
A1: Gruppenschlüssel | B1: Schließplan | C1: Nachlieferung | D1: Gesamt | F1: Einzelschlüssel | G1: Schließplan | H1: Nachlieferung | I1: Gesamt

Sheet Hilfe-DE (hidden)
A3: DOM-XL
A5: DOM - Sicherheitstechnik GmbH , 50309 Brühl
A7: Tel: 02232/ 704-0
A9: Bitte senden Sie uns den fertigen DOM-XL-Schließplan per E-Mail, Diskette oder CD-ROM.
A11: Anleitung:
A13: Nach dem Lesen der folgenden Zeilen sind Sie in der Lage, mit DOMXL Schließanlagen schnell zu erfassen und vorab zu kalkulieren.
A15: Start
A17: 1. Öffnen Sie die Datei DOMXL.XLT. Beim Öffnen werden Sie gefragt ob Sie "Makros aktivieren" möchten. Diese Frage müssen Sie mit "Ja" beantworten, um die Datei mit voller Funktionalität zu öffnen. Sollte diese Frage nicht gestellt werden, müssen Sie in Excel unter "Extras>Macro>Sicherheit" die Sicherheitsstufe auf "Mittel" oder "Niedrig" einstellen. Danach schließen Sie Excel und starten Excel neu.
A18: 2. Füllen Sie, soweit bekannt, die Felder im Tabellenblatt "Start" aus.
A19: 3. Wenn Sie einen Magnetkartenleser besitzen und zu einer bestehenden Schließanlage eine Erweiterung erfassen wollen, klicken Sie auf "Sicherungskarte". In der nächsten Maske stellen Sie den Anschluss Ihres Kartenlesers ein und wählen "Karte einlesen". Nachdem die Karte in den Leser eingelesen wurde wählen Sie "OK".
A20: 4. Über "Schließplan bearbeiten" oder F3 gelangen Sie zum Schließplan.
A22: Schließplan
A24: 1. Soweit die Felder noch nicht durch die Sicherungskarte gefüllt wurden, machen Sie Angaben zu "Neuanlage/Erweiterung", "Anlagennummer", "Anlagenart" und "System".
A25: 2. Erfassen Sie die Spalten "Raumbezeichnungen", "Freie Eingabe" und "Schlüsselnummer". Über den Schalter "Bearbeiten>Spalten importieren" (oder F8-Taste ) können externe Daten durch Kopieren über die Zwischenablage übernommen werden.
A26: 3. Füllen Sie die Felder "Anzahl", "Zylindertyp", "Ausführung", "Länge" und "Farbe" aus. Hier erhalten Sie mit der F1-Taste Hilfe über eine Auswahlliste gültiger Werte, die Sie durch Anklicken übernehmen können.
A28: F1: Wertehilfe für Zylindertyp, Ausführung, Länge und Farbe.
A29: F5: Übernimmt den Wert der darüberliegenden Zelle.
A30: F6: Übernimmt die darüberliegende Zeile komplett.
A31: F7: Übernimmt den rechten Rest der darüberliegenden Zeile.
A32: F9: Fügt Zeile(n) ein. Diese Funktion ist auch unter dem Schalter "Bearbeiten zu finden".
A33: F10: Löscht Zeile(n). Diese Funktion ist auch unter dem Schalter "Bearbeiten zu finden".
A34: F11: Fügt Spalte(n) ein. Diese Funktion ist auch unter dem Schalter "Bearbeiten zu finden".
A35: F12: Löscht Spalte(n). Diese Funktion ist auch unter dem Schalter "Bearbeiten zu finden".
A36: Shift F5: Kopiert die markierten Werte einer Spalte und fügt sie unterhalb der Markierung ein.
A37: Shift F6: Kopiert den markierten Bereich und fügt ihn unterhalb der Markierung ein.
A39: 4. Rot markierte Felder deuten darauf hin, dass hier noch eine Eingabe bzw. Änderung (z.B.: Andere Schreibweise, Ausführung nicht hinterlegt etc.) erforderlich ist.
A40: 5. Die Gruppenschlüssel werden durch Auswahl von Schlüsselnummer, -Bezeichnung oder -Typ im Schließplankopf erfasst und geändert. Achtung: Das Erfassungsfenster öffnet sich nur, wenn Sie die Auswahl wechseln. Mit Hilfe des "@"-Zeichens können Sie innerhalb GHS-Anlagen Gruppenschlüssel fortlaufend "in einem Rutsch" erfassen.
A41: 6. Die Funktionen werden durch Auswahl der "Funktion" und durch Anklicken der gewünschten Position in der Funktionsmatrix gesetzt. Zum Löschen von Funktionen müssen Sie in der Auswahl "Funktion" im Schließplankopf das Leerfeld wählen.
A42: 7. Über "Preise" oder über F4 kann nun anhand Ihrer Vorgaben eine Kalkulation vorgenommen werden.
A43: 8. Die Exportfunktionen dienen nur dem DOM-Datentransfer und sind für Sie als Fachhändler nicht von Bedeutung.
A44: 9. Wenn Sie zusätzliche Spalten für Daten benötigen, dann können Sie diese unter "Bearbeiten>Anzahl Sonderspalten" sichbar machen.
A47: Funktionen
A49: Kennzeichen in Auswahlliste "Funktion"
A50: X = Gruppenfunktion
A51: Z = Zentralzylinder der von Einzelschlüsseln mit I-Kennzeichnung geschossen wird
A52: M=Mitschließung die von einer Einzelschließung mit I-Kennzeichnung geschlossen wird
A53: I = schließt in Z oder M-Zylinder
A54: G = Gleichschließung (nur erforderlich wenn die Schlüsselnummern unterschiedlich sind)
A55: Leerfeld= Funktion löschen
A57: Grundsätzliches
A58: Alle Schlüssel mit gleicher Schlüsselnummer könne alle Zylinder mit derselben Nummer schließen.
A59: Gleiche Schlüsselnummer bedeutet gleiche Schließfunktion von Schlüssel und Zylinder.
A61: Gruppenschlüssel schließen alle mit X gekennzeichneten Zylinder der Spalte.
A63: Zentralfunktionen: Alle mit I gekennzeichneten Positionen schließen in die mit Z gekennzeichneten Positionen einer Spalte
A64: Für jede Zentralschließung ist eine separate Spalte anzulegen.
A66: Mitschließungen: Alle mit I gekennzeichneten Positionen schließen in die mit M gekennzeichneten Positionen einer Spalte.
A67: Maximal eine Schlüsselnummer kann eine andere mitschließen.
A68: Die Schließfunktionen beider Schlüsselnummern müssen ansonsten identisch sein.
A70: Gleichschließung: Hiermit werden Positionen mit unterschiedliche Schlüsselnummern
A71: jedoch identischen Schließfunktionen gekennzeichnet.
A72: Achtung! Sollte nur in Ausnahmen verwendet werden.
A74: Preis
A76: Die Preisermittlung erfolgt unverbindlich aufgrund Ihrer Vorgaben und der hinterlegten Preisliste. Die Preisvorgaben werden bei jedem Öffnen von DOMXL zurückgesetzt.Das bedeutet, dass Sie die Datei weitergeben können ohne Ihre Kalkulation preiszugeben. Zusätzlich können Sie ein Kennwort eingeben, um den Kalkulationsschalter zu deaktivieren. Gespeichert wir das Kennwort jeweils beim Anzeigen der Preise.
A80: Hinweis. DOMXL verhält sich im Wesentlichen so wie eine normale Exceltabelle. Da der Aufbau von DOMXL geschützt ist und im Hintergrund Plausibilitätsprüfungen stattfinden, kann es sein, dass einige "normale Excelfunktionen" nicht wie gewohnt möglich sind (z.B. Zeilen-Einfügen). Diese Funktionen sind durch DOMXL-eigene Funktionen ersetzt worden (z.B.F9 = Zeile(n) einfügen).
A82: Für Fragen steht Ihnen
A84: Herr Ulrich Stappenbeck
A85: Tel.:02232-704-404
A86: E-Mail mailto:Ulrich.Stappenbeck@DOM-Sicherheitstechnik.de
A87: gerne zur Verfügung.
A89: DOMXL ist urheberechtlich geschützt.
A90: Unbefugte Vervielfältigung, Weitergabe oder Änderung
A91: wird straf- und zivilrechtlich verfolgt.
A92: und kann schwere Strafen und Schadendsersatzforderungen
A93: zur Folge haben.
A95: DOMXL ist Eigentum der
A96: DOM-Sicherheitstechnik GmbH
A97: Wesselinger Str. 10-16
A98: 50321 Brühl

Sheet Help-NL
A3: DOM-XL
A5: DOM Nederland
A7: Tel: 070-3193006
A9: Graag ontvangen wij uw sluitplanbestelling in DOM-XL per e-mail.
A10: verkoop@dom-group.nl
A11: Bediening:
A13: Na het lezen van deze beknopte handleiding bent U in staat om snel en eenvoudig een sluitplan op te stellen en vooraf een calculatie daarvan te maken.
A16: Let op:
A17: Tekst in de ruimteomschrijving mag maximaal 30 tekens bevatten.
A18: Meer tekens zijn in het definitieve sluitplanoverzicht dan ook niet zichtbaar.
A19: Tekst in "vrije ruimte" wordt niet weergegeven in het definitieve sluitplan.
A20: Door op "BEWERKEN" of de <F8> toets te drukken, kunt U o.a. kolommen importeren van een extern bestand.
A22: Sneltoetsen
A23: <F2> laat de cursor zien
A24: <F3> naar het sluitplan
A25: <F4> prijzen bekijken
A26: <F5> kopieert de waarde van bovenliggende cel
A27: <F6> kopieert de gehele bovenliggende regel
A28: <F7> kopieert de bovenliggende regel behalve ruimteomschrijving en vrije invoer
A29: <F9> invoegen van een regel
A30: <F10> verwijderen van een regel
A31: <F11> invoegen van een kolom
A34: Rood gemarkeerde cellen duiden erop dat U iets heeft ingevoerd wat niet juist is. Controleer de types, uitvoeringen en kleur.
A35: Er is een speciaal invoerscherm beschikbaar om een (G)HS of GS in te voeren. Dit scherm komt tevoorschijn wanneer U klikt op een cel waar de
A36: GS sleutels behoren te staan.
A37: Door eerst een functie te kiezen in het keuzemenu "FUNCTIE" kunt U deze functie in de juiste positie zetten in de functiematrix
A38: Dit kan op 2 manieren:
A39: Door een klik met de linker muisknop (1 voor 1)
A40: Door een bereik te selecteren (alles tegelijk)
A42: Door op de knop "PRIJZEN" of <F4> te drukken kunt U de prijzen bekijken van uw zojuist opgestelde sluitplan
A43: (U krijgt eerst een invoerscherm waarin U een aantal gegevens zoals wachtwoord (passwort)/ kortingen/ toeslagen kunt vermelden)
A45: Waar u op moet letten bij een ZHS systeem:
A46: U heeft gekozen voor een Z/ZHS inrichting. DOM XL bepaalt niet of de door u opgegeven inrichting juist is!
A47: De Hoofdsleutel in deze inrichting is een Technische Hoofdsleutel en mag ongeveer 30% van het plan sluiten! (centraalcilinders en technische ruimten)
A48: Controleer of u de juiste inrichting gekozen heeft.
A50: De Exportfunctie is voor DOM doeleinden bestemd en is voor U niet van toepassing.
A52: Omschrijving van cilindertypen:
A54: Cilindertype | B54: Omschrijving
A55: 333 | B55: Dubbele Europrofielcilinder
A56: 333SKG2 | B56: Dubbele Europrofielcilinder met SKG2 keurmerk
A57: 333SKG3 | B57: Dubbele Europrofielcilinder met SKG3 keurmerk
A58: Zorgfunctie | B58: Verschillende sluiting per zijde (tbv dubbele, symetrische, cilinder met T koppeling) Kies; cilindertype 333T, Zorgfunctie opgeven in kolom Uitvoering
A59: SEW | B59: Zeewater bestendige uitvoering (in kleur 4, glans chroom afgewerkt met chemisch vernikkelde meenemer en stulpschroef van rein messing) opgeven in kolom Uitvoering
A60: 333H | B60: Halve Europrofielcilinder
A61: 333HSKG2 | B61: Halve Europrofielcilinder met SKG2 keurmerk
A62: 333HSKG3 | B62: Halve Europrofielcilinder met SKG3 keurmerk
A63: 333K6 | B63: Dubbele Europrofielcilinder met knop (knopcilinder) ook leverbaar met K1, K2, K3 of K3 knopuitvoering
A64: 333K6SKG2 | B64: Dubbele Europrofielcilinde rmet knop (knopcilinder) met SKG2 keurmerk, ook leverbaar met K1, K2, K3 of K4 knopuitvoering
A65: 333K6SKG3 | B65: Dubbele Europrofielcilinder met knop (knopcilinder) met SKG3 keurmerk, ook leverbaar met K1, K2, K3 of K4 knopuitvoering
A66: 333K7 | B66: Dubbele Europrofielcilinder met anti manipuleerbare knop
A67: 333FRL | B67: Dubbele Europrofielcilinder met vrijloopfunctie (360°) FZG gecertificeerd
A68: 333HFRL | B68: Halve Europrofielcilinder met vrijloopfunctie (360°) FZG gecertificeerd
A69: ** | B69: Belangrijke informatie:
A70: ** | B70: ivm FZG certificering voor cilinders tbv vluchtwegen en motorsloten zijn de vrijloopcilinders in de profielen
A71: ** | B71: ix Teco, ix Twido, ix Twinstar, ix Gamma, ix(5)HT, ix 6SR en ix Saturn alleen leverbaar vanaf afmeting 35/35 voor dubbele cilinders en 0/35 voor halve cilinders
B72: Deze systemen zijn in modulaire uitvoering (333M en 333MH) NIET met vrijloopfunctie leverbaar.
A73: 333T | B73: Dubbele Europrofielcilinder voorzien van T-koppeling (gevarenfunctie)
A74: 333M | B74: Dubbele Europrofielcilinder in Modulaire constructie
A75: 333MFRL | B75: Dubbele Europrofielcilinder met vrijloopfunctie (360°) FZG gecertificeerd in Modulaire constructie (alleen conventioneel sleutelprofiel)
A76: 333MH | B76: Halve Europrofielcilinder in Modulaire constructie
A77: 333MHFRL | B77: Halve Europrofielcilinder met vrijloopfunctie 360° FZG gecertificeerd in Modulaire constructie (alleen conventioneel sleutelprofiel)
A78: 333MK6 | B78: Dubbele Europrofielcilinder met knop (knopcilinder) in Modulaire constructie
A79: 333K6KRU | B79: Dubbele Europrofielcilinder met knop en slipkoppeling (knopzijde kan niet worden tegengehouden, toegang altijd mogelijk)
A80: 333KL | B80: Dubbele Europrofielcilinder Kort-Lang (28/35 of 28/40)
A81: 333KLK6 | B81: Dubbele Europrofielcilinder met knop (knopcilinder) Kort-Lang uitvoering (28/35 of 28/40)
A82: 333KLT | B82: Dubbele Europrofielcilinder Kort-Lang (28/35) voorzien van T-koppeling (gevarenfunctie)
A83: 333RI (10/14) | B83: Dubbele Europrofielcilinder met tandwiel (10 of 14 tands)
A84: 333MT | B84: Dubbele Europrofielcilinder in modulaire constructie voorzien van T-koppeling (gevarenfunctie)
A85: 333STAALSKG3 | B85: Dubbele Europrofielcilinder tbv DOM Diamant, staal uitvoering, SKG3
A86: 333TSTAALSKG3 | B86: Dubbele Europrofielcilinder tbv DOM Diamant, staal uitvoering, voorzien van T-koppeling (gevarenfunctie), SKG3
A87: 333HSTAALSKG3 | B87: Halve Europrofielcilinder tbv DOM Diamant, staal uitvoering, SKG3
A88: 333K6STAALSKG3 | B88: Dubbele Europrofielcilinder met knop (knopcilinder) tbv DOM Diamant, staal uitvoering, SKG3
A89: 333DUR | B89: Dubbele Europrofielcilinder tbv DOM Diamant, duracast uitvoering (voor binnendeuren)
A90: 333TDUR | B90: Dubbele Europrofielcilinder tbv DOM Diamant, duracast uitvoering voorzien van T-koppeling (gevarenfunctie) voor binnendeuren
A91: 333HDUR | B91: Halve Europrofielcilinder tbv DOM Diamant, duracast uitvoering (voor binnendeuren)
A92: 333K6DUR | B92: Dubbele profielcilinder met knop tbv Diamant, duracast uitvoering (voor binnendeuren)
A93: 555P | B93: Staartcilinder (t.b.v. Lips 1700 series)
A94: 325L | B94: Binnencilinder t.b.v. LIPS 1754
A95: 325L/1754DR1/DR2 | B95: Lips oplegslot 1754 (DM50mm) DR1 of DR2 icm 325L
A96: 472 | B96: Dubbbele cilinder 22 mm rond
A97: 472H | B97: Halve cilinder 22 mm rond
A98: 472K6 | B98: Dubbele cilinder met knop (knopcilinder) 22 mm rond
A99: 382 LI/RE | B99: Hevelcilinder (voor o.a. postkasten) Links/Rechts
A100: 393 | B100: Cilinder voor lift sleutelschakelaar met aansluiting van 2 microschakelaars (schakelmoment kiezen in "uitvoering")
A101: 419 Lips | B101: Schroefcilinder tbv Lips 2300 serie
A102: 325 / 464 | B102: Meubelkastcilinder tbv slotkast 464
A103: 464 / 325 | B103: Meubelkastcilinder kompleet met slotkast (Doornmaat opgeven in "uitvoering")
A104: 3020/473 | B104: Meubel/kastslot combinatie met cilinder (zonder stangen)
A105: 3020/4015 | B105: Meubel/kastslot combinatie met knop/cilinder (zonder stangen)
A106: 3020/473 ESP | B106: Meubel/kastslot combinatie met cilinder en draaistangen (200cm) met toebehoren (espagnolet)
A107: 3020/4015 ESP | B107: Meubel/kastslot combinatie met knop/cilinder en draaistangen (200cm) met toebehoren (espagnolet)
A108: 777G3 | B108: Hangslot incl. 333H -/30 cilinder
A109: 777G3-HB60 | B109: Hangslot incl. 333H -/30 cilinder met hoge beugel 60mm
A110: 777G3-HB120 | B110: Hangslot incl. 333H -/30 cilinder met hoge beugel 120mm
A112: Let erop dat niet alle typen in alle systemen toepasbaar zijn!
A114: DOM-XL is een databaseprogramma op Microsoft Excel basis en werkt hierdoor in het principe hetzelfde als een Excel spreadsheet.
A115: Omdat DOM-XL beveiligd is en gebruik maakt van verborgen formulebladen, kan het zijn dat bepaalde "gebruikelijke excelfuncties"
A116: niet functioneren zoals U dit gewend bent. (bijvoorbeeld: invoegen en verwijderen van regels en kolommen.) deze functies zijn nog steeds mogelijk, maar op een manier
A117: zoals beschreven in deze beknopte handleiding.
A119: Voor vragen kunt U zich richten tot:
A121: Dom-Nederland
A122: verkoop@dom-group.nl
A123: 070-3193006
G124: De meest recente versie van DOM XL download u van onze website

Sheet grund (hidden)
A1: Bezeichnung | B1: Wert | J1: 59 | K1: 4 | L1: 52 | M1: 13
A2: Sprache Spalte | B2: 5
A3: Sprache | B3: Nederlands | J3: 333 | K3: SEW | L3: 30 / 30 | M3: 01
A4: DOM-XL Version | B4: DOM-XL 2020 V5.3.1 | J4: 333SKG2 | L4: 30 / 35 | M4: 03
A5: Freispalten | B5: 10 | J5: 333H | L5: 30 / 40 | M5: 04
A6: Preisliste | J6: 333HSKG2 | L6: 30 / 45 | M6: 04-S
A7: 1Datei | B7: E:\Dokumente und Einstellungen\Spock\Eigene Dateien\test.xls | J7: 333K6 | L7: 30 / 50 | M7: 05
A8: Letztes speichern | B8: 15.11.2017 - 15:12:05 | J8: 333K6SKG2 | L8: 30 / 55 | M8: 06
A9: Leser | B9: Keybord | J9: 333T | L9: 30 / 60 | M9: 07
A10: SSK Eingabeanschläge | J10: 333TSKG2 | L10: 35 / 30 | M10: 09
A11: SSK Anlage | J11: 333FRL | L11: 35 / 35 | M11: 17
A12: SSK Art | B12: HS | J12: 333FRLSKG2 | L12: 35 / 40 | M12: 25
A13: SSK System | J13: 333M | L13: 35 / 45
A14: SSK Ausführung | J14: 333MSKG3 | L14: 35 / 50
A15: SSK Profil | J15: 333MT | L15: 35 / 55
A16: SSK Datum | J16: 333MTSKG3 | L16: 35 / 60
A17: SSK Schlusselnummer | J17: 333HFRL | L17: 40 / 30
A18: SSK Hersteller | J18: 333HFRLSKG2 | L18: 40 / 35
A19: SSK Datum 2 | J19: 333MH | L19: 40 / 40
A20: SSK | J20: 333MHSKG3 | L20: 40 / 45
A21: SSK eingelesen am | J21: 333K1 | L21: 40 / 50
A22: SSK String | J22: 333K1SKG2 | L22: 40 / 55
A23: SSK input | B23: Tastatur-Schnittstelle | J23: 333K2 | L23: 40 / 60
A24: Multi zwischenspeichern | B24: 100 | C24: 100 | J24: 333K2SKG2 | L24: 45 / 30
A25: BAZ | B25: 0 | C25: 30 | J25: 333K3 | L25: 45 / 35
A26: Altzuschlag | B26: 0 | C26: 0 | J26: 333K3SKG2 | L26: 45 / 40
A27: Zuschlag 1 | B27: 0 | C27: 0 | J27: 333K4 | L27: 45 / 45
A28: Zuschlag 2 | B28: 0 | C28: 0 | J28: 333K4SKG2 | L28: 45 / 50
A29: Abschlag 1 | B29: 0 | C29: 0 | J29: 333K7 | L29: 45 / 55
A30: Abschlag 2 | B30: 0 | C30: 0 | J30: 333K7SKG2 | L30: 45 / 60
A31: Mehrwertsteuer | B31: 0 | C31: 21 | J31: 333K6KRU | L31: 50 / 30
A32: Anlagennummer | B32: ID898989 | J32: 333MK6 | L32: 50 / 35
A33: System | B33: RS8 | J33: 333MK6SKG3 | L33: 50 / 40
A34: Anlagenart | B34: GHS | J34: 333MK1SKG3 | L34: 50 / 45
A35: Ergebnis | B35: 170.69 | J35: 333MK2SKG3 | L35: 50 / 50
A36: Alle Positionen berechnen | B36: J | J36: 333MK3SKG3 | L36: 50 / 55
A37: Passwort | B37: 4711 | J37: 333MK4SKG3 | L37: 50 / 60
A38: Meldung Schl/Zyl >9 | B38: J | J38: 333MK7 | L38: 55 / 30
A39: Betreiber | J39: 333MK7SKG3 | L39: 55 / 35
A40: TAC | J40: 333KL | L40: 55 / 40
A41: TACS | J41: 333KLK6 | L41: 55 / 45
A42: SMPT | B42: 0 | J42: 333KLT | L42: 55 / 50
A43: SMTPHOST | J43: 333RI-10 | L43: 55 / 55
A44: SMTPPort | J44: 333RI-14 | L44: 55 / 60
A45: SMTPKonto | J45: 472 | L45: 60 / 30
A46: SMPTPW | J46: 472H | L46: 60 / 35
A47: POP3 | B47: 0 | J47: 472K6 | L47: 60 / 40
A48: POP3HOST | J48: 555P | L48: 60 / 45
A49: POP3Port | J49: 777G3 | L49: 60 / 50
A50: POP3Konto | J50: 777G3-HB60 | L50: 60 / 55
A51: SMPTPW | J51: 777G3-HB120 | L51: 60 / 60
A52: MAIL | J52: 382LI
A53: Multi 2 | B53: 0 | C53: 100 | J53: 382RE
A54: Multi 3 | B54: 0 | C54: 100 | J54: 393
A55: Aufpreis Z | B55: 30.4 | J55: 3020/473
A56: Aufpreis HS | B56: 39 | J56: 3020/473 ESP
A57: Aufpreis GHS | B57: 68.7 | J57: 3020/4015
A58: Aufpreis Z halb | B58: 25 | J58: 3020/4015 ESP
A59: Aufpreis HS halb | B59: 31.2
A60: Aufpreis GHS halb | B60: 54.7
A61: Multi ELS | B61: 100 | C61: 100
A62: System
A63: Anlagenart
A64: NeuErw | B64: N
A65: Anlagennummer
A66: Version | B66: 6
